Workbook

Sheet Cover
D124: V1.0

Sheet AD ST History
A1: Anaerobic Digestion Screening Tool History

Sheet Contents (hidden)
B1: Content
B3: Introduction
B4: Instructions
B5: Tool Concept Notes
B6: Default Feedstocks Inputs List
B7: Gas to Volume
B8: Digester Inputs
B9: Emissions Inputs
B10: Biogas Production
B11: Digestate Production
B12: Annual Summary
B13: Estimated Emissions Reductions
B14: Feedstocks Characteristics
B15: Feedstocks Toxicity Info
B16: OrganEcs Input Sheet
B17: MCF
B18: References
B19: Help

Sheet 1-Introduction
A1: Introduction to the Anaerobic Digestion (AD) Screening Tool

Sheet 2-Instructions
A1: Tool Instructions

Sheet Default Feedstock Inputs List (hidden)
B1: Default Feedstocks Inputs List
B3: This sheet lists all default Feedstocks inputs available for the user to select.
B4: Fruit and Vegetable Feedstocks | C4: Livestock Excreted Feedstocks | D4: Other Organic Municipal Feedstocks | E4: Kitchen Feedstocks and Food Scraps | F4: Energy and Cash Crops | G4: Garden Feedstock | H4: Dairy Feedstocks | I4: Seafood Feedstock Silages | J4: Other Inputs
B5: Alfalfa | C5: Adolescents Pigs | D5: Composite Wastewater | E5: Boiled Rice | F5: Agave (Agave sisalana) | G5: Water Hyacinths | H5: Dairy Wastewater | I5: Cuttle Fish Waste Silage | J5: Added Water
B6: Bananas | C6: Boar (200 kg.) | D6: Corrugated Cardboard | E6: Bread Feedstocks | F6: De-oiled Cake | G6: Branches | H6: Whey - Acid Cheese | I6: Mackerel Fish Waste Silage
B7: Broccoli | C7: Broiler Chicken | D7: Diverted Municipal Waste (All Organics) | E7: Brewery Grain Feedstocks | F7: Palms (Decanter Cake) | G7: Grass | H7: Whey - Sweet Cheese | I7: Pacific Saury Fish Waste Silage
B8: Cabbage | C8: Calf | D8: Diverted Municipal Waste (Food Only) | E8: Cooked Meat | F8: Palms (Empty Fruit) | G8: Leaves
B9: Carrot Root | C9: Calf In Shelter (200 -350 kg.) | D9: Folding Cartons | E9: Mixed Cafeteria or Canteen Waste | F9: Palms (Pressed Fibers) | G9: Wood
B10: Cauliflower | C10: Cattle With Corn Supplement to Diet | D10: Graywater | E10: Mixed Food Waste With Non‐Veg. | F10: Pressmud
B11: Chinese Cabbage (Pak-Choi) | C11: Cattle With Other Diet Supplements | D11: Human Waste | E11: Mixed Vegetable Waste Only | F11: Rapeseed Meal
B12: Coffee Grounds | C12: Cattle with Primarily Grain/Grass Diet | D12: Junk Mail & Paper | F12: Sugar Beet Tops
B13: Kale | C13: Dry Dairy Cow | D13: Magazines | F13: Sugarcane Pretreated (Bagasse)
B14: Lettuce | C14: Duck | D14: Newsprint | F14: Sugarcane Untreated (Bagasse)
B15: Maize (Early Harvest Or Milk Ripeness) | C15: Heifer | D15: Office Paper | F15: Sunflower Meal
B16: Maize (Middle Harvest Or Wax Ripeness) | C16: Horse | D16: Paper Bags And Sacks
B17: Maize Cob | C17: Lactating Cow | D17: Paper Non‐Recyclable
B18: Onions | C18: Lamb/Sheep/Goat | D18: Raw Sewage Sludge
B19: Orange Pulp | C19: Piglets | D19: Septage Tank Wastewater
B20: Orange, Flesh | C20: Poultry Chicken | D20: Textiles
B21: Potato Peel | C21: Swine - Gestating (190 kg.)
B22: Potato, Top, Mature | C22: Swine - Lactating (190 kg.)
B23: Pumpkins | C23: Turkey Female
B24: Rice Husk | C24: Turkey Male
B25: Rice Residue (Dried) | C25: Veal
B26: Rice Straw
B27: Spinach
B28: Sweet Corn
B29: Tea Leaves
B30: Tomatoes
B31: Tomatoes (Solid Waste)
B32: Wheat Straw

Sheet 3-Digester Inputs
A1: Anaerobic Digester Feedstock Inputs
B4: Project Name
B5: City/Municipality
B6: Country
B8: General Information & Questions | C8: Answer
B9: Is the planned AD a wet or dry system? | C9: Dry
B10: What will the reactor temperature be? | C10: Mesophilic
B11: Will the system installation include post-digestion dewatering equipment? | C11: CHOOSE ONE
B12: If "Yes", what is the solid capture efficiency of the dewatering equipment?
A14: Note: In the Feedstock List column, select from either General or Specific. Select General from the Feedstock list to show general categories in the Feedstock Type column to streamline data entry. If the user knows specific animal waste or food products, select Specific from the Feedstock List to show the full list of option in the Feedstock Type column. | F14: Note: For more accurate results, the user may wish to override the default assumptions with site-specific information, if known. Type over any value in a yellow cell to override the default value. The RESET buttons below each category reset the original default values for that category.
A15: Feedstock Stream Information | F15: Feedstock Characteristics | T15: Mass | Z15: Nitrogen | AF15: C/N ratio | AL15: Moisture | AR15: VS | AX15: Methane Yield
A16: Feedstock List | B16: Feedstock Type | C16: Feedstock Totals | D16: Units | E16: User Notes | F16: Moisture Content (% w.b.) | G16: Total Solids (% w.b) | H16: Volatile Solids (% w.b) | I16: Inert Material and Ash (% w.b.) | J16: Nitrogen Content (d.w.) | K16: Carbon Content (d.w.) | L16: Feedstock Density (kg/m3) | M16: Proteins (% of TS) | N16: Fats (% of TS) | O16: Sugars and Starches (% of TS) | P16: VS (kg) | Q16: TS (kg) | S16: Category | T16: Yard Waste | U16: Food Waste | V16: Manure | W16: Sewage Sludge | X16: Mixed Paper | Y16: Corrugated Cardboard | Z16: Yard Waste | AA16: Food Waste | AB16: Manure | AC16: Sewage Sludge | AD16: Mixed Paper | AE16: Corrugated Cardboard | AF16: Yard Waste | AG16: Food Waste | AH16: Manure | AI16: Sewage Sludge | AJ16: Mixed Paper | AK16: Corrugated Cardboard | AL16: Yard Waste | AM16: Food Waste | AN16: Manure | AO16: Sewage Sludge | AP16: Mixed Paper | AQ16: Corrugated Cardboard | AR16: Yard Waste | AS16: Food Waste | AT16: Manure | AU16: Sewage Sludge | AV16: Mixed Paper | AW16: Corrugated Cardboard | AX16: Yard Waste | AY16: Food Waste | AZ16: Manure | BA16: Sewage Sludge | BB16: Mixed Paper | BC16: Corrugated Cardboard | BE16: Feedstock Totals (kg/day)
A17: General | D17: kg/day | F17: =IFERROR(VLOOKUP(B17,'9-Feedstock Characteristics'!$A$8:$W$127,2,FALSE),"-") -> - | G17: =IFERROR(VLOOKUP(B17,'9-Feedstock Characteristics'!$A$8:$W$127,3,FALSE),"-") -> - | H17: =IFERROR(VLOOKUP(B17,'9-Feedstock Characteristics'!$A$8:$W$127,7,FALSE),"-") -> - | I17: =IFERROR(VLOOKUP(B17,'9-Feedstock Characteristics'!$A$8:$W$127,8,FALSE),"-") -> - | J17: =IFERROR(VLOOKUP(B17,'9-Feedstock Characteristics'!$A$8:$W$127,12,FALSE)/(1-F17),"-") -> - | K17: =IFERROR((H17/(1-F17))*0.55,"") ->  | L17: =IF(C17=0,"-",IF(ReactorType="Dry",VLOOKUP(B17,'9-Feedstock Characteristics'!$A$8:$W$127,18,FALSE),VLOOKUP(B17,'9-Feedstock Characteristics'!$A$8:$W$127,18,FALSE)*((C17/(DensityofWater*VLOOKUP(B17,'9-Feedstock Characteristics'!$A$8:$W$127,19,FALSE)))/Chosen_Reactor_Volume)+DensityofWater*((Chosen_Reactor_Volume-(C17/(DensityofWater*VLOOKUP(B17,'9-Feedstock Characteristics'!$A$8:$W$127,19,FALSE))))/Chosen_Reactor_Volume))) -> - | M17: =IFERROR(VLOOKUP(B17,'9-Feedstock Characteristics'!$A$8:$W$127,15,FALSE),"-") -> - | N17: =IFERROR(VLOOKUP(B17,'9-Feedstock Characteristics'!$A$8:$W$127,14,FALSE),"-") -> - | O17: =IFERROR(VLOOKUP(B17,'9-Feedstock Characteristics'!$A$8:$W$127,13,FALSE),"-") -> - | P17: =IFERROR(BE17*H17,"") ->  | Q17: =IFERROR(BE17*G17,"") ->  | S17: =VLOOKUP(B17,Waste_Item_Table,21,FALSE) ->  | T17: =IFERROR(IF($S17=T$16,$BE17,""),"") ->  | V17: =IFERROR(IF($S17=V$16,$BE17,""),"") ->  | Z17: =IFERROR(IF($S17=Z$16,$J17,""),"") ->  | AF17: =IFERROR(IF($S17=AF$16,$K17/$J17,""),"") ->  | AL17: =IFERROR(IF($S17=AL$16,$F17,""),"") ->  | AR17: =IFERROR(IF($S17=AR$16,$H17,""),"") ->  | AX17: =IFERROR(IF($S17=AX$16,'6-Biogas Production'!$Q58,""),"") ->  | AY17: =IFERROR(IF($S17=AY$16,'6-Biogas Production'!$Q58,""),"") ->  | AZ17: =IFERROR(IF($S17=AZ$16,'6-Biogas Production'!$Q58,""),"") ->  | BA17: =IFERROR(IF($S17=BA$16,'6-Biogas Production'!$Q58,""),"") ->  | BB17: =IFERROR(IF($S17=BB$16,'6-Biogas Production'!$Q58,""),"") ->  | BC17: =IFERROR(IF($S17=BC$16,'6-Biogas Production'!$Q58,""),"") ->  | BE17: =C17*VLOOKUP(D17,'23-Look up values'!$A$4:$B$9,2,FALSE) -> 0
A18: General | D18: kg/day | F18: =IFERROR(VLOOKUP(B18,'9-Feedstock Characteristics'!$A$8:$W$127,2,FALSE),"-") -> - | G18: =IFERROR(VLOOKUP(B18,'9-Feedstock Characteristics'!$A$8:$W$127,3,FALSE),"-") -> - | H18: =IFERROR(VLOOKUP(B18,'9-Feedstock Characteristics'!$A$8:$W$127,7,FALSE),"-") -> - | I18: =IFERROR(VLOOKUP(B18,'9-Feedstock Characteristics'!$A$8:$W$127,8,FALSE),"-") -> - | J18: =IFERROR(VLOOKUP(B18,'9-Feedstock Characteristics'!$A$8:$W$127,12,FALSE)/(1-F18),"-") -> - | L18: =IF(C18=0,"-",IF(ReactorType="Dry",VLOOKUP(B18,'9-Feedstock Characteristics'!$A$8:$W$127,18,FALSE),VLOOKUP(B18,'9-Feedstock Characteristics'!$A$8:$W$127,18,FALSE)*((C18/(DensityofWater*VLOOKUP(B18,'9-Feedstock Characteristics'!$A$8:$W$127,19,FALSE)))/Chosen_Reactor_Volume)+DensityofWater*((Chosen_Reactor_Volume-(C18/(DensityofWater*VLOOKUP(B18,'9-Feedstock Characteristics'!$A$8:$W$127,19,FALSE))))/Chosen_Reactor_Volume))) -> - | M18: =IFERROR(VLOOKUP(B18,'9-Feedstock Characteristics'!$A$8:$W$127,15,FALSE),"-") -> - | N18: =IFERROR(VLOOKUP(B18,'9-Feedstock Characteristics'!$A$8:$W$127,14,FALSE),"-") -> - | O18: =IFERROR(VLOOKUP(B18,'9-Feedstock Characteristics'!$A$8:$W$127,13,FALSE),"-") -> - | U18: =IFERROR(IF($S18=U$16,$BE18,""),"") ->  | Z18: =IFERROR(IF($S18=Z$16,$J18,""),"") ->  | AA18: =IFERROR(IF($S18=AA$16,$J18,""),"") ->  | AF18: =IFERROR(IF($S18=AF$16,$K18/$J18,""),"") ->  | AG18: =IFERROR(IF($S18=AG$16,$K18/$J18,""),"") ->  | AL18: =IFERROR(IF($S18=AL$16,$F18,""),"") ->  | AM18: =IFERROR(IF($S18=AM$16,$F18,""),"") ->  | AR18: =IFERROR(IF($S18=AR$16,$H18,""),"") ->  | AS18: =IFERROR(IF($S18=AS$16,$H18,""),"") ->  | AX18: =IFERROR(IF($S18=AX$16,'6-Biogas Production'!$Q59,""),"") ->  | AY18: =IFERROR(IF($S18=AY$16,'6-Biogas Production'!$Q59,""),"") ->  | AZ18: =IFERROR(IF($S18=AZ$16,'6-Biogas Production'!$Q59,""),"") ->  | BA18: =IFERROR(IF($S18=BA$16,'6-Biogas Production'!$Q59,""),"") ->  | BB18: =IFERROR(IF($S18=BB$16,'6-Biogas Production'!$Q59,""),"") ->  | BC18: =IFERROR(IF($S18=BC$16,'6-Biogas Production'!$Q59,""),"") ->  | BE18: =C18*VLOOKUP(D18,'23-Look up values'!$A$4:$B$9,2,FALSE) -> 0
A19: General | D19: kg/day | F19: =IFERROR(VLOOKUP(B19,'9-Feedstock Characteristics'!$A$8:$W$127,2,FALSE),"-") -> - | G19: =IFERROR(VLOOKUP(B19,'9-Feedstock Characteristics'!$A$8:$W$127,3,FALSE),"-") -> - | H19: =IFERROR(VLOOKUP(B19,'9-Feedstock Characteristics'!$A$8:$W$127,7,FALSE),"-") -> - | I19: =IFERROR(VLOOKUP(B19,'9-Feedstock Characteristics'!$A$8:$W$127,8,FALSE),"-") -> - | J19: =IFERROR(VLOOKUP(B19,'9-Feedstock Characteristics'!$A$8:$W$127,12,FALSE)/(1-F19),"-") -> - | L19: =IF(C19=0,"-",IF(ReactorType="Dry",VLOOKUP(B19,'9-Feedstock Characteristics'!$A$8:$W$127,18,FALSE),VLOOKUP(B19,'9-Feedstock Characteristics'!$A$8:$W$127,18,FALSE)*((C19/(DensityofWater*VLOOKUP(B19,'9-Feedstock Characteristics'!$A$8:$W$127,19,FALSE)))/Chosen_Reactor_Volume)+DensityofWater*((Chosen_Reactor_Volume-(C19/(DensityofWater*VLOOKUP(B19,'9-Feedstock Characteristics'!$A$8:$W$127,19,FALSE))))/Chosen_Reactor_Volume))) -> - | M19: =IFERROR(VLOOKUP(B19,'9-Feedstock Characteristics'!$A$8:$W$127,15,FALSE),"-") -> - | N19: =IFERROR(VLOOKUP(B19,'9-Feedstock Characteristics'!$A$8:$W$127,14,FALSE),"-") -> - | O19: =IFERROR(VLOOKUP(B19,'9-Feedstock Characteristics'!$A$8:$W$127,13,FALSE),"-") -> - | AX19: =IFERROR(IF($S19=AX$16,'6-Biogas Production'!$Q60,""),"") ->  | AY19: =IFERROR(IF($S19=AY$16,'6-Biogas Production'!$Q60,""),"") ->  | AZ19: =IFERROR(IF($S19=AZ$16,'6-Biogas Production'!$Q60,""),"") ->  | BA19: =IFERROR(IF($S19=BA$16,'6-Biogas Production'!$Q60,""),"") ->  | BB19: =IFERROR(IF($S19=BB$16,'6-Biogas Production'!$Q60,""),"") ->  | BC19: =IFERROR(IF($S19=BC$16,'6-Biogas Production'!$Q60,""),"") ->  | BE19: =C19*VLOOKUP(D19,'23-Look up values'!$A$4:$B$9,2,FALSE) -> 0
A20: Specific | D20: kg/day | F20: =IFERROR(VLOOKUP(B20,'9-Feedstock Characteristics'!$A$8:$W$127,2,FALSE),"-") -> - | G20: =IFERROR(VLOOKUP(B20,'9-Feedstock Characteristics'!$A$8:$W$127,3,FALSE),"-") -> - | H20: =IFERROR(VLOOKUP(B20,'9-Feedstock Characteristics'!$A$8:$W$127,7,FALSE),"-") -> - | I20: =IFERROR(VLOOKUP(B20,'9-Feedstock Characteristics'!$A$8:$W$127,8,FALSE),"-") -> - | J20: =IFERROR(VLOOKUP(B20,'9-Feedstock Characteristics'!$A$8:$W$127,12,FALSE)/(1-F20),"-") -> - | L20: =IF(C20=0,"-",IF(ReactorType="Dry",VLOOKUP(B20,'9-Feedstock Characteristics'!$A$8:$W$127,18,FALSE),VLOOKUP(B20,'9-Feedstock Characteristics'!$A$8:$W$127,18,FALSE)*((C20/(DensityofWater*VLOOKUP(B20,'9-Feedstock Characteristics'!$A$8:$W$127,19,FALSE)))/Chosen_Reactor_Volume)+DensityofWater*((Chosen_Reactor_Volume-(C20/(DensityofWater*VLOOKUP(B20,'9-Feedstock Characteristics'!$A$8:$W$127,19,FALSE))))/Chosen_Reactor_Volume))) -> - | M20: =IFERROR(VLOOKUP(B20,'9-Feedstock Characteristics'!$A$8:$W$127,15,FALSE),"-") -> - | N20: =IFERROR(VLOOKUP(B20,'9-Feedstock Characteristics'!$A$8:$W$127,14,FALSE),"-") -> - | O20: =IFERROR(VLOOKUP(B20,'9-Feedstock Characteristics'!$A$8:$W$127,13,FALSE),"-") -> - | AX20: =IFERROR(IF($S20=AX$16,'6-Biogas Production'!$Q61,""),"") ->  | AY20: =IFERROR(IF($S20=AY$16,'6-Biogas Production'!$Q61,""),"") ->  | AZ20: =IFERROR(IF($S20=AZ$16,'6-Biogas Production'!$Q61,""),"") ->  | BA20: =IFERROR(IF($S20=BA$16,'6-Biogas Production'!$Q61,""),"") ->  | BB20: =IFERROR(IF($S20=BB$16,'6-Biogas Production'!$Q61,""),"") ->  | BC20: =IFERROR(IF($S20=BC$16,'6-Biogas Production'!$Q61,""),"") ->  | BE20: =C20*VLOOKUP(D20,'23-Look up values'!$A$4:$B$9,2,FALSE) -> 0
A21: General | D21: kg/day | F21: =IFERROR(VLOOKUP(B21,'9-Feedstock Characteristics'!$A$8:$W$127,2,FALSE),"-") -> - | G21: =IFERROR(VLOOKUP(B21,'9-Feedstock Characteristics'!$A$8:$W$127,3,FALSE),"-") -> - | H21: =IFERROR(VLOOKUP(B21,'9-Feedstock Characteristics'!$A$8:$W$127,7,FALSE),"-") -> - | I21: =IFERROR(VLOOKUP(B21,'9-Feedstock Characteristics'!$A$8:$W$127,8,FALSE),"-") -> - | J21: =IFERROR(VLOOKUP(B21,'9-Feedstock Characteristics'!$A$8:$W$127,12,FALSE)/(1-F21),"-") -> - | L21: =IF(C21=0,"-",IF(ReactorType="Dry",VLOOKUP(B21,'9-Feedstock Characteristics'!$A$8:$W$127,18,FALSE),VLOOKUP(B21,'9-Feedstock Characteristics'!$A$8:$W$127,18,FALSE)*((C21/(DensityofWater*VLOOKUP(B21,'9-Feedstock Characteristics'!$A$8:$W$127,19,FALSE)))/Chosen_Reactor_Volume)+DensityofWater*((Chosen_Reactor_Volume-(C21/(DensityofWater*VLOOKUP(B21,'9-Feedstock Characteristics'!$A$8:$W$127,19,FALSE))))/Chosen_Reactor_Volume))) -> - | M21: =IFERROR(VLOOKUP(B21,'9-Feedstock Characteristics'!$A$8:$W$127,15,FALSE),"-") -> - | N21: =IFERROR(VLOOKUP(B21,'9-Feedstock Characteristics'!$A$8:$W$127,14,FALSE),"-") -> - | O21: =IFERROR(VLOOKUP(B21,'9-Feedstock Characteristics'!$A$8:$W$127,13,FALSE),"-") -> - | S21: =VLOOKUP(B21,Waste_Item_Table,21,FALSE) ->  | AX21: =IFERROR(IF($S21=AX$16,'6-Biogas Production'!$Q62,""),"") ->  | AY21: =IFERROR(IF($S21=AY$16,'6-Biogas Production'!$Q62,""),"") ->  | AZ21: =IFERROR(IF($S21=AZ$16,'6-Biogas Production'!$Q62,""),"") ->  | BA21: =IFERROR(IF($S21=BA$16,'6-Biogas Production'!$Q62,""),"") ->  | BB21: =IFERROR(IF($S21=BB$16,'6-Biogas Production'!$Q62,""),"") ->  | BC21: =IFERROR(IF($S21=BC$16,'6-Biogas Production'!$Q62,""),"") ->  | BE21: =C21*VLOOKUP(D21,'23-Look up values'!$A$4:$B$9,2,FALSE) -> 0
A22: General | D22: kg/day | F22: =IFERROR(VLOOKUP(B22,'9-Feedstock Characteristics'!$A$8:$W$127,2,FALSE),"-") -> - | G22: =IFERROR(VLOOKUP(B22,'9-Feedstock Characteristics'!$A$8:$W$127,3,FALSE),"-") -> - | H22: =IFERROR(VLOOKUP(B22,'9-Feedstock Characteristics'!$A$8:$W$127,7,FALSE),"-") -> - | I22: =IFERROR(VLOOKUP(B22,'9-Feedstock Characteristics'!$A$8:$W$127,8,FALSE),"-") -> - | J22: =IFERROR(VLOOKUP(B22,'9-Feedstock Characteristics'!$A$8:$W$127,12,FALSE)/(1-F22),"-") -> - | L22: =IF(C22=0,"-",IF(ReactorType="Dry",VLOOKUP(B22,'9-Feedstock Characteristics'!$A$8:$W$127,18,FALSE),VLOOKUP(B22,'9-Feedstock Characteristics'!$A$8:$W$127,18,FALSE)*((C22/(DensityofWater*VLOOKUP(B22,'9-Feedstock Characteristics'!$A$8:$W$127,19,FALSE)))/Chosen_Reactor_Volume)+DensityofWater*((Chosen_Reactor_Volume-(C22/(DensityofWater*VLOOKUP(B22,'9-Feedstock Characteristics'!$A$8:$W$127,19,FALSE))))/Chosen_Reactor_Volume))) -> - | M22: =IFERROR(VLOOKUP(B22,'9-Feedstock Characteristics'!$A$8:$W$127,15,FALSE),"-") -> - | N22: =IFERROR(VLOOKUP(B22,'9-Feedstock Characteristics'!$A$8:$W$127,14,FALSE),"-") -> - | O22: =IFERROR(VLOOKUP(B22,'9-Feedstock Characteristics'!$A$8:$W$127,13,FALSE),"-") -> - | AX22: =IFERROR(IF($S22=AX$16,'6-Biogas Production'!$Q63,""),"") ->  | AY22: =IFERROR(IF($S22=AY$16,'6-Biogas Production'!$Q63,""),"") ->  | AZ22: =IFERROR(IF($S22=AZ$16,'6-Biogas Production'!$Q63,""),"") ->  | BA22: =IFERROR(IF($S22=BA$16,'6-Biogas Production'!$Q63,""),"") ->  | BB22: =IFERROR(IF($S22=BB$16,'6-Biogas Production'!$Q63,""),"") ->  | BC22: =IFERROR(IF($S22=BC$16,'6-Biogas Production'!$Q63,""),"") ->  | BE22: =C22*VLOOKUP(D22,'23-Look up values'!$A$4:$B$9,2,FALSE) -> 0
A23: General | D23: kg/day | F23: =IFERROR(VLOOKUP(B23,'9-Feedstock Characteristics'!$A$8:$W$127,2,FALSE),"-") -> - | G23: =IFERROR(VLOOKUP(B23,'9-Feedstock Characteristics'!$A$8:$W$127,3,FALSE),"-") -> - | H23: =IFERROR(VLOOKUP(B23,'9-Feedstock Characteristics'!$A$8:$W$127,7,FALSE),"-") -> - | I23: =IFERROR(VLOOKUP(B23,'9-Feedstock Characteristics'!$A$8:$W$127,8,FALSE),"-") -> - | J23: =IFERROR(VLOOKUP(B23,'9-Feedstock Characteristics'!$A$8:$W$127,12,FALSE)/(1-F23),"-") -> - | L23: =IF(C23=0,"-",IF(ReactorType="Dry",VLOOKUP(B23,'9-Feedstock Characteristics'!$A$8:$W$127,18,FALSE),VLOOKUP(B23,'9-Feedstock Characteristics'!$A$8:$W$127,18,FALSE)*((C23/(DensityofWater*VLOOKUP(B23,'9-Feedstock Characteristics'!$A$8:$W$127,19,FALSE)))/Chosen_Reactor_Volume)+DensityofWater*((Chosen_Reactor_Volume-(C23/(DensityofWater*VLOOKUP(B23,'9-Feedstock Characteristics'!$A$8:$W$127,19,FALSE))))/Chosen_Reactor_Volume))) -> - | M23: =IFERROR(VLOOKUP(B23,'9-Feedstock Characteristics'!$A$8:$W$127,15,FALSE),"-") -> - | N23: =IFERROR(VLOOKUP(B23,'9-Feedstock Characteristics'!$A$8:$W$127,14,FALSE),"-") -> - | O23: =IFERROR(VLOOKUP(B23,'9-Feedstock Characteristics'!$A$8:$W$127,13,FALSE),"-") -> - | AX23: =IFERROR(IF($S23=AX$16,'6-Biogas Production'!$Q64,""),"") ->  | AY23: =IFERROR(IF($S23=AY$16,'6-Biogas Production'!$Q64,""),"") ->  | AZ23: =IFERROR(IF($S23=AZ$16,'6-Biogas Production'!$Q64,""),"") ->  | BA23: =IFERROR(IF($S23=BA$16,'6-Biogas Production'!$Q64,""),"") ->  | BB23: =IFERROR(IF($S23=BB$16,'6-Biogas Production'!$Q64,""),"") ->  | BC23: =IFERROR(IF($S23=BC$16,'6-Biogas Production'!$Q64,""),"") ->  | BE23: =C23*VLOOKUP(D23,'23-Look up values'!$A$4:$B$9,2,FALSE) -> 0
A24: General | D24: kg/day | F24: =IFERROR(VLOOKUP(B24,'9-Feedstock Characteristics'!$A$8:$W$127,2,FALSE),"-") -> - | G24: =IFERROR(VLOOKUP(B24,'9-Feedstock Characteristics'!$A$8:$W$127,3,FALSE),"-") -> - | H24: =IFERROR(VLOOKUP(B24,'9-Feedstock Characteristics'!$A$8:$W$127,7,FALSE),"-") -> - | I24: =IFERROR(VLOOKUP(B24,'9-Feedstock Characteristics'!$A$8:$W$127,8,FALSE),"-") -> - | J24: =IFERROR(VLOOKUP(B24,'9-Feedstock Characteristics'!$A$8:$W$127,12,FALSE)/(1-F24),"-") -> - | L24: =IF(C24=0,"-",IF(ReactorType="Dry",VLOOKUP(B24,'9-Feedstock Characteristics'!$A$8:$W$127,18,FALSE),VLOOKUP(B24,'9-Feedstock Characteristics'!$A$8:$W$127,18,FALSE)*((C24/(DensityofWater*VLOOKUP(B24,'9-Feedstock Characteristics'!$A$8:$W$127,19,FALSE)))/Chosen_Reactor_Volume)+DensityofWater*((Chosen_Reactor_Volume-(C24/(DensityofWater*VLOOKUP(B24,'9-Feedstock Characteristics'!$A$8:$W$127,19,FALSE))))/Chosen_Reactor_Volume))) -> - | M24: =IFERROR(VLOOKUP(B24,'9-Feedstock Characteristics'!$A$8:$W$127,15,FALSE),"-") -> - | N24: =IFERROR(VLOOKUP(B24,'9-Feedstock Characteristics'!$A$8:$W$127,14,FALSE),"-") -> - | O24: =IFERROR(VLOOKUP(B24,'9-Feedstock Characteristics'!$A$8:$W$127,13,FALSE),"-") -> - | AX24: =IFERROR(IF($S24=AX$16,'6-Biogas Production'!$Q65,""),"") ->  | AY24: =IFERROR(IF($S24=AY$16,'6-Biogas Production'!$Q65,""),"") ->  | AZ24: =IFERROR(IF($S24=AZ$16,'6-Biogas Production'!$Q65,""),"") ->  | BA24: =IFERROR(IF($S24=BA$16,'6-Biogas Production'!$Q65,""),"") ->  | BB24: =IFERROR(IF($S24=BB$16,'6-Biogas Production'!$Q65,""),"") ->  | BC24: =IFERROR(IF($S24=BC$16,'6-Biogas Production'!$Q65,""),"") ->  | BE24: =C24*VLOOKUP(D24,'23-Look up values'!$A$4:$B$9,2,FALSE) -> 0
A25: General | D25: kg/day | F25: =IFERROR(VLOOKUP(B25,'9-Feedstock Characteristics'!$A$8:$W$127,2,FALSE),"-") -> - | G25: =IFERROR(VLOOKUP(B25,'9-Feedstock Characteristics'!$A$8:$W$127,3,FALSE),"-") -> - | H25: =IFERROR(VLOOKUP(B25,'9-Feedstock Characteristics'!$A$8:$W$127,7,FALSE),"-") -> - | I25: =IFERROR(VLOOKUP(B25,'9-Feedstock Characteristics'!$A$8:$W$127,8,FALSE),"-") -> - | J25: =IFERROR(VLOOKUP(B25,'9-Feedstock Characteristics'!$A$8:$W$127,12,FALSE)/(1-F25),"-") -> - | L25: =IF(C25=0,"-",IF(ReactorType="Dry",VLOOKUP(B25,'9-Feedstock Characteristics'!$A$8:$W$127,18,FALSE),VLOOKUP(B25,'9-Feedstock Characteristics'!$A$8:$W$127,18,FALSE)*((C25/(DensityofWater*VLOOKUP(B25,'9-Feedstock Characteristics'!$A$8:$W$127,19,FALSE)))/Chosen_Reactor_Volume)+DensityofWater*((Chosen_Reactor_Volume-(C25/(DensityofWater*VLOOKUP(B25,'9-Feedstock Characteristics'!$A$8:$W$127,19,FALSE))))/Chosen_Reactor_Volume))) -> - | M25: =IFERROR(VLOOKUP(B25,'9-Feedstock Characteristics'!$A$8:$W$127,15,FALSE),"-") -> - | N25: =IFERROR(VLOOKUP(B25,'9-Feedstock Characteristics'!$A$8:$W$127,14,FALSE),"-") -> - | O25: =IFERROR(VLOOKUP(B25,'9-Feedstock Characteristics'!$A$8:$W$127,13,FALSE),"-") -> - | AX25: =IFERROR(IF($S25=AX$16,'6-Biogas Production'!$Q66,""),"") ->  | AY25: =IFERROR(IF($S25=AY$16,'6-Biogas Production'!$Q66,""),"") ->  | AZ25: =IFERROR(IF($S25=AZ$16,'6-Biogas Production'!$Q66,""),"") ->  | BA25: =IFERROR(IF($S25=BA$16,'6-Biogas Production'!$Q66,""),"") ->  | BB25: =IFERROR(IF($S25=BB$16,'6-Biogas Production'!$Q66,""),"") ->  | BC25: =IFERROR(IF($S25=BC$16,'6-Biogas Production'!$Q66,""),"") ->  | BE25: =C25*VLOOKUP(D25,'23-Look up values'!$A$4:$B$9,2,FALSE) -> 0
A26: General | D26: kg/day | F26: =IFERROR(VLOOKUP(B26,'9-Feedstock Characteristics'!$A$8:$W$127,2,FALSE),"-") -> - | G26: =IFERROR(VLOOKUP(B26,'9-Feedstock Characteristics'!$A$8:$W$127,3,FALSE),"-") -> - | H26: =IFERROR(VLOOKUP(B26,'9-Feedstock Characteristics'!$A$8:$W$127,7,FALSE),"-") -> - | I26: =IFERROR(VLOOKUP(B26,'9-Feedstock Characteristics'!$A$8:$W$127,8,FALSE),"-") -> - | J26: =IFERROR(VLOOKUP(B26,'9-Feedstock Characteristics'!$A$8:$W$127,12,FALSE)/(1-F26),"-") -> - | L26: =IF(C26=0,"-",IF(ReactorType="Dry",VLOOKUP(B26,'9-Feedstock Characteristics'!$A$8:$W$127,18,FALSE),VLOOKUP(B26,'9-Feedstock Characteristics'!$A$8:$W$127,18,FALSE)*((C26/(DensityofWater*VLOOKUP(B26,'9-Feedstock Characteristics'!$A$8:$W$127,19,FALSE)))/Chosen_Reactor_Volume)+DensityofWater*((Chosen_Reactor_Volume-(C26/(DensityofWater*VLOOKUP(B26,'9-Feedstock Characteristics'!$A$8:$W$127,19,FALSE))))/Chosen_Reactor_Volume))) -> - | M26: =IFERROR(VLOOKUP(B26,'9-Feedstock Characteristics'!$A$8:$W$127,15,FALSE),"-") -> - | N26: =IFERROR(VLOOKUP(B26,'9-Feedstock Characteristics'!$A$8:$W$127,14,FALSE),"-") -> - | O26: =IFERROR(VLOOKUP(B26,'9-Feedstock Characteristics'!$A$8:$W$127,13,FALSE),"-") -> - | AX26: =IFERROR(IF($S26=AX$16,'6-Biogas Production'!$Q67,""),"") ->  | AY26: =IFERROR(IF($S26=AY$16,'6-Biogas Production'!$Q67,""),"") ->  | AZ26: =IFERROR(IF($S26=AZ$16,'6-Biogas Production'!$Q67,""),"") ->  | BA26: =IFERROR(IF($S26=BA$16,'6-Biogas Production'!$Q67,""),"") ->  | BB26: =IFERROR(IF($S26=BB$16,'6-Biogas Production'!$Q67,""),"") ->  | BC26: =IFERROR(IF($S26=BC$16,'6-Biogas Production'!$Q67,""),"") ->  | BE26: =C26*VLOOKUP(D26,'23-Look up values'!$A$4:$B$9,2,FALSE) -> 0
A27: General | D27: kg/day | F27: =IFERROR(VLOOKUP(B27,'9-Feedstock Characteristics'!$A$8:$W$127,2,FALSE),"-") -> - | G27: =IFERROR(VLOOKUP(B27,'9-Feedstock Characteristics'!$A$8:$W$127,3,FALSE),"-") -> - | H27: =IFERROR(VLOOKUP(B27,'9-Feedstock Characteristics'!$A$8:$W$127,7,FALSE),"-") -> - | I27: =IFERROR(VLOOKUP(B27,'9-Feedstock Characteristics'!$A$8:$W$127,8,FALSE),"-") -> - | J27: =IFERROR(VLOOKUP(B27,'9-Feedstock Characteristics'!$A$8:$W$127,12,FALSE)/(1-F27),"-") -> - | L27: =IF(C27=0,"-",IF(ReactorType="Dry",VLOOKUP(B27,'9-Feedstock Characteristics'!$A$8:$W$127,18,FALSE),VLOOKUP(B27,'9-Feedstock Characteristics'!$A$8:$W$127,18,FALSE)*((C27/(DensityofWater*VLOOKUP(B27,'9-Feedstock Characteristics'!$A$8:$W$127,19,FALSE)))/Chosen_Reactor_Volume)+DensityofWater*((Chosen_Reactor_Volume-(C27/(DensityofWater*VLOOKUP(B27,'9-Feedstock Characteristics'!$A$8:$W$127,19,FALSE))))/Chosen_Reactor_Volume))) -> - | M27: =IFERROR(VLOOKUP(B27,'9-Feedstock Characteristics'!$A$8:$W$127,15,FALSE),"-") -> - | N27: =IFERROR(VLOOKUP(B27,'9-Feedstock Characteristics'!$A$8:$W$127,14,FALSE),"-") -> - | O27: =IFERROR(VLOOKUP(B27,'9-Feedstock Characteristics'!$A$8:$W$127,13,FALSE),"-") -> - | AX27: =IFERROR(IF($S27=AX$16,'6-Biogas Production'!$Q68,""),"") ->  | AY27: =IFERROR(IF($S27=AY$16,'6-Biogas Production'!$Q68,""),"") ->  | AZ27: =IFERROR(IF($S27=AZ$16,'6-Biogas Production'!$Q68,""),"") ->  | BA27: =IFERROR(IF($S27=BA$16,'6-Biogas Production'!$Q68,""),"") ->  | BB27: =IFERROR(IF($S27=BB$16,'6-Biogas Production'!$Q68,""),"") ->  | BC27: =IFERROR(IF($S27=BC$16,'6-Biogas Production'!$Q68,""),"") ->  | BE27: =C27*VLOOKUP(D27,'23-Look up values'!$A$4:$B$9,2,FALSE) -> 0
A28: General | D28: kg/day | F28: =IFERROR(VLOOKUP(B28,'9-Feedstock Characteristics'!$A$8:$W$127,2,FALSE),"-") -> - | G28: =IFERROR(VLOOKUP(B28,'9-Feedstock Characteristics'!$A$8:$W$127,3,FALSE),"-") -> - | H28: =IFERROR(VLOOKUP(B28,'9-Feedstock Characteristics'!$A$8:$W$127,7,FALSE),"-") -> - | I28: =IFERROR(VLOOKUP(B28,'9-Feedstock Characteristics'!$A$8:$W$127,8,FALSE),"-") -> - | J28: =IFERROR(VLOOKUP(B28,'9-Feedstock Characteristics'!$A$8:$W$127,12,FALSE)/(1-F28),"-") -> - | L28: =IF(C28=0,"-",IF(ReactorType="Dry",VLOOKUP(B28,'9-Feedstock Characteristics'!$A$8:$W$127,18,FALSE),VLOOKUP(B28,'9-Feedstock Characteristics'!$A$8:$W$127,18,FALSE)*((C28/(DensityofWater*VLOOKUP(B28,'9-Feedstock Characteristics'!$A$8:$W$127,19,FALSE)))/Chosen_Reactor_Volume)+DensityofWater*((Chosen_Reactor_Volume-(C28/(DensityofWater*VLOOKUP(B28,'9-Feedstock Characteristics'!$A$8:$W$127,19,FALSE))))/Chosen_Reactor_Volume))) -> - | M28: =IFERROR(VLOOKUP(B28,'9-Feedstock Characteristics'!$A$8:$W$127,15,FALSE),"-") -> - | N28: =IFERROR(VLOOKUP(B28,'9-Feedstock Characteristics'!$A$8:$W$127,14,FALSE),"-") -> - | O28: =IFERROR(VLOOKUP(B28,'9-Feedstock Characteristics'!$A$8:$W$127,13,FALSE),"-") -> - | AX28: =IFERROR(IF($S28=AX$16,'6-Biogas Production'!$Q69,""),"") ->  | AY28: =IFERROR(IF($S28=AY$16,'6-Biogas Production'!$Q69,""),"") ->  | AZ28: =IFERROR(IF($S28=AZ$16,'6-Biogas Production'!$Q69,""),"") ->  | BA28: =IFERROR(IF($S28=BA$16,'6-Biogas Production'!$Q69,""),"") ->  | BB28: =IFERROR(IF($S28=BB$16,'6-Biogas Production'!$Q69,""),"") ->  | BC28: =IFERROR(IF($S28=BC$16,'6-Biogas Production'!$Q69,""),"") ->  | BE28: =C28*VLOOKUP(D28,'23-Look up values'!$A$4:$B$9,2,FALSE) -> 0
A29: General | D29: kg/day | F29: =IFERROR(VLOOKUP(B29,'9-Feedstock Characteristics'!$A$8:$W$127,2,FALSE),"-") -> - | G29: =IFERROR(VLOOKUP(B29,'9-Feedstock Characteristics'!$A$8:$W$127,3,FALSE),"-") -> - | H29: =IFERROR(VLOOKUP(B29,'9-Feedstock Characteristics'!$A$8:$W$127,7,FALSE),"-") -> - | I29: =IFERROR(VLOOKUP(B29,'9-Feedstock Characteristics'!$A$8:$W$127,8,FALSE),"-") -> - | J29: =IFERROR(VLOOKUP(B29,'9-Feedstock Characteristics'!$A$8:$W$127,12,FALSE)/(1-F29),"-") -> - | L29: =IF(C29=0,"-",IF(ReactorType="Dry",VLOOKUP(B29,'9-Feedstock Characteristics'!$A$8:$W$127,18,FALSE),VLOOKUP(B29,'9-Feedstock Characteristics'!$A$8:$W$127,18,FALSE)*((C29/(DensityofWater*VLOOKUP(B29,'9-Feedstock Characteristics'!$A$8:$W$127,19,FALSE)))/Chosen_Reactor_Volume)+DensityofWater*((Chosen_Reactor_Volume-(C29/(DensityofWater*VLOOKUP(B29,'9-Feedstock Characteristics'!$A$8:$W$127,19,FALSE))))/Chosen_Reactor_Volume))) -> - | M29: =IFERROR(VLOOKUP(B29,'9-Feedstock Characteristics'!$A$8:$W$127,15,FALSE),"-") -> - | N29: =IFERROR(VLOOKUP(B29,'9-Feedstock Characteristics'!$A$8:$W$127,14,FALSE),"-") -> - | O29: =IFERROR(VLOOKUP(B29,'9-Feedstock Characteristics'!$A$8:$W$127,13,FALSE),"-") -> - | AX29: =IFERROR(IF($S29=AX$16,'6-Biogas Production'!$Q70,""),"") ->  | AY29: =IFERROR(IF($S29=AY$16,'6-Biogas Production'!$Q70,""),"") ->  | AZ29: =IFERROR(IF($S29=AZ$16,'6-Biogas Production'!$Q70,""),"") ->  | BA29: =IFERROR(IF($S29=BA$16,'6-Biogas Production'!$Q70,""),"") ->  | BB29: =IFERROR(IF($S29=BB$16,'6-Biogas Production'!$Q70,""),"") ->  | BC29: =IFERROR(IF($S29=BC$16,'6-Biogas Production'!$Q70,""),"") ->  | BE29: =C29*VLOOKUP(D29,'23-Look up values'!$A$4:$B$9,2,FALSE) -> 0
A30: General | D30: kg/day | F30: =IFERROR(VLOOKUP(B30,'9-Feedstock Characteristics'!$A$8:$W$127,2,FALSE),"-") -> - | G30: =IFERROR(VLOOKUP(B30,'9-Feedstock Characteristics'!$A$8:$W$127,3,FALSE),"-") -> - | H30: =IFERROR(VLOOKUP(B30,'9-Feedstock Characteristics'!$A$8:$W$127,7,FALSE),"-") -> - | I30: =IFERROR(VLOOKUP(B30,'9-Feedstock Characteristics'!$A$8:$W$127,8,FALSE),"-") -> - | J30: =IFERROR(VLOOKUP(B30,'9-Feedstock Characteristics'!$A$8:$W$127,12,FALSE)/(1-F30),"-") -> - | L30: =IF(C30=0,"-",IF(ReactorType="Dry",VLOOKUP(B30,'9-Feedstock Characteristics'!$A$8:$W$127,18,FALSE),VLOOKUP(B30,'9-Feedstock Characteristics'!$A$8:$W$127,18,FALSE)*((C30/(DensityofWater*VLOOKUP(B30,'9-Feedstock Characteristics'!$A$8:$W$127,19,FALSE)))/Chosen_Reactor_Volume)+DensityofWater*((Chosen_Reactor_Volume-(C30/(DensityofWater*VLOOKUP(B30,'9-Feedstock Characteristics'!$A$8:$W$127,19,FALSE))))/Chosen_Reactor_Volume))) -> - | M30: =IFERROR(VLOOKUP(B30,'9-Feedstock Characteristics'!$A$8:$W$127,15,FALSE),"-") -> - | N30: =IFERROR(VLOOKUP(B30,'9-Feedstock Characteristics'!$A$8:$W$127,14,FALSE),"-") -> - | O30: =IFERROR(VLOOKUP(B30,'9-Feedstock Characteristics'!$A$8:$W$127,13,FALSE),"-") -> - | AX30: =IFERROR(IF($S30=AX$16,'6-Biogas Production'!$Q71,""),"") ->  | AY30: =IFERROR(IF($S30=AY$16,'6-Biogas Production'!$Q71,""),"") ->  | AZ30: =IFERROR(IF($S30=AZ$16,'6-Biogas Production'!$Q71,""),"") ->  | BA30: =IFERROR(IF($S30=BA$16,'6-Biogas Production'!$Q71,""),"") ->  | BB30: =IFERROR(IF($S30=BB$16,'6-Biogas Production'!$Q71,""),"") ->  | BC30: =IFERROR(IF($S30=BC$16,'6-Biogas Production'!$Q71,""),"") ->  | BE30: =C30*VLOOKUP(D30,'23-Look up values'!$A$4:$B$9,2,FALSE) -> 0
A31: General | D31: kg/day | F31: =IFERROR(VLOOKUP(B31,'9-Feedstock Characteristics'!$A$8:$W$127,2,FALSE),"-") -> - | G31: =IFERROR(VLOOKUP(B31,'9-Feedstock Characteristics'!$A$8:$W$127,3,FALSE),"-") -> - | H31: =IFERROR(VLOOKUP(B31,'9-Feedstock Characteristics'!$A$8:$W$127,7,FALSE),"-") -> - | I31: =IFERROR(VLOOKUP(B31,'9-Feedstock Characteristics'!$A$8:$W$127,8,FALSE),"-") -> - | J31: =IFERROR(VLOOKUP(B31,'9-Feedstock Characteristics'!$A$8:$W$127,12,FALSE)/(1-F31),"-") -> - | L31: =IF(C31=0,"-",IF(ReactorType="Dry",VLOOKUP(B31,'9-Feedstock Characteristics'!$A$8:$W$127,18,FALSE),VLOOKUP(B31,'9-Feedstock Characteristics'!$A$8:$W$127,18,FALSE)*((C31/(DensityofWater*VLOOKUP(B31,'9-Feedstock Characteristics'!$A$8:$W$127,19,FALSE)))/Chosen_Reactor_Volume)+DensityofWater*((Chosen_Reactor_Volume-(C31/(DensityofWater*VLOOKUP(B31,'9-Feedstock Characteristics'!$A$8:$W$127,19,FALSE))))/Chosen_Reactor_Volume))) -> - | M31: =IFERROR(VLOOKUP(B31,'9-Feedstock Characteristics'!$A$8:$W$127,15,FALSE),"-") -> - | N31: =IFERROR(VLOOKUP(B31,'9-Feedstock Characteristics'!$A$8:$W$127,14,FALSE),"-") -> - | O31: =IFERROR(VLOOKUP(B31,'9-Feedstock Characteristics'!$A$8:$W$127,13,FALSE),"-") -> - | AX31: =IFERROR(IF($S31=AX$16,'6-Biogas Production'!$Q72,""),"") ->  | AY31: =IFERROR(IF($S31=AY$16,'6-Biogas Production'!$Q72,""),"") ->  | AZ31: =IFERROR(IF($S31=AZ$16,'6-Biogas Production'!$Q72,""),"") ->  | BA31: =IFERROR(IF($S31=BA$16,'6-Biogas Production'!$Q72,""),"") ->  | BB31: =IFERROR(IF($S31=BB$16,'6-Biogas Production'!$Q72,""),"") ->  | BC31: =IFERROR(IF($S31=BC$16,'6-Biogas Production'!$Q72,""),"") ->  | BE31: =C31*VLOOKUP(D31,'23-Look up values'!$A$4:$B$9,2,FALSE) -> 0
F32: =IFERROR(SUMPRODUCT($BE$17:$BE$31,$F$17:$F$31)/SUM($BE$17:$BE$31),"") ->  | G32: =IFERROR(SUMPRODUCT($BE$17:$BE$31,$G$17:$G$31)/SUM($BE$17:$BE$31),"") ->  | H32: =IFERROR(SUMPRODUCT($BE$17:$BE$31,$H$17:$H$31)/SUM($BE$17:$BE$31),"") ->  | I32: =IFERROR(SUMPRODUCT($BE$17:$BE$31,$I$17:$I$31)/SUM($BE$17:$BE$31),"") ->  | J32: =IFERROR(SUMPRODUCT($BE$17:$BE$31,$J$17:$J$31)/SUM($BE$17:$BE$31),"") ->  | K32: =IFERROR(SUMPRODUCT($BE$17:$BE$31,$K$17:$K$31)/SUM($BE$17:$BE$31),"") ->  | L32: =SUMPRODUCT($BE$17:$BE$31,$L$17:$L$31)/SUM($BE$17:$BE$31) ->  | M32: =IFERROR(SUMPRODUCT($Q$17:$Q$31,$M$17:$M$31)/SUM($Q$17:$Q$31),"") ->  | N32: =IFERROR(SUMPRODUCT($Q$17:$Q$31,$N$17:$N$31)/SUM($Q$17:$Q$31),"") ->  | O32: =IFERROR(SUMPRODUCT($Q$17:$Q$31,$O$17:$O$31)/SUM($Q$17:$Q$31),"") ->  | P32: =C32*H32 ->  | Q32: =C32*G32 ->  | BE32: =SUM(BE17:BE31) -> 0
B34: AD Waste Substrate Summary Information | C34: Percent | D34: Unit | E34: Notes
B35: Moisture Content | C35: =IFERROR(SUMPRODUCT($BE$17:$BE$31,$F$17:$F$31)/SUM($BE$17:$BE$31),) -> 0 | D35: % w.b.
B36: Total Solids (TS) | C36: =IFERROR(SUMPRODUCT($BE$17:$BE$31,$G$17:$G$31)/SUM($BE$17:$BE$31),) -> 0 | D36: % w.b.
B37: Volatile Solids (VS) | C37: =IFERROR(SUMPRODUCT($BE$17:$BE$31,$H$17:$H$31)/SUM($BE$17:$BE$31),) -> 0 | D37: % w.b.
B38: Inserts or Ash | C38: =IFERROR(SUMPRODUCT($BE$17:$BE$31,$I$17:$I$31)/SUM($BE$17:$BE$31),) -> 0 | D38: % w.b.
B39: Bioreactor Design Summary Information | C39: Value | D39: Unit | E39: Notes
B40: Solid Retention Time | C40: =IFERROR(IF(ReactorType="Dry",21,18)*IF(ReactorTemp="Psychrophilic",4,IF(ReactorTemp="Mesophilic",1,IF(ReactorTemp="Thermophilic",0.7))),) -> 21 | D40: days
B41: Waste Stream C:N ratio | C41: =IFERROR(K32/J32,) -> 0 | D41: ratio
B42: Reccomendation Bioreactor Type | C42: =IFERROR(IF(TotalSolidsPercent<=0.03,"Covered Lagoon",IF(OR(TotalSolidsPercent>0.03,TotalSolidsPercent<=0.1),"Complete Mix Digester",IF(OR(TotalSolidsPercent>0.1,TotalSolidsPercent<=0.13),"Plug Flow Digester",IF(OR(TotalSolidsPercent>0.18,TotalSolidsPercent<=0.5),"Slurry Digester or High-Solids Fermentation Digester","Solid Waste Digesters")))),"-") -> Complete Mix Digester | D42: Note: this reccomendation is not definitive. Most waste streams can be converted to a liquid, slurry, or dry solids reactor with additional processing.
B43: Science & Error Check Box | D43: Results | E43: Error Explanation
B44: Does the reactor have the optimal mix of Total Solids based on system design? | D44: =IF(AND(ReactorType="Dry",AND(C36<=40%,C36>=15%)),"Yes",IF(AND(ReactorType="Wet",C36<=15%),"Yes","No")) -> No | E44: =IF(D44="No","In typical dry reactors TS = 15-40%. In typical wet reactors TS <=15%.","") -> In typical dry reactors TS = 15-40%. In typical wet reactors TS <=15%.
B45: Is the C:N ratio optimal for Anaerobic Digestion? | D45: =IF(OR(C41<25,C41>35),"No","Yes") -> No | E45: =IF(D45="No","Typical healthy AD systems operate with a C:N ratio between 25 and 35.","") -> Typical healthy AD systems operate with a C:N ratio between 25 and 35.
B54: Instructions: The model automatically recommends a default gas composition. However, if the user desires, they may override AD Screening Tool's recommended default gas composition. The button to the right of the table resets the formulas for the default values.
B55: Biogas Composition | C55: Answer | D55: Units
B56: What will the composition of the planned AD System Substrate be composed of? | C56: =$I$97 ->  | N56: =IFERROR(IF(SUM(TotalProtein+TotalFats)<5%,$C$98,IF(TotalSugar<5%,$C$101,IF(SUM(TotalProtein+TotalFats)>66%,$C$100,IF(SUM(TotalProtein+TotalFats)>50%,$C$99,$C$98)))),"-") -> -
B57: Biogas Composition
B58: Methane (CH4) | C58: =$I$99 -> - | D58: % | N58: =INDEX($M$86:$M$90,MATCH($N$56,$C$97:$C$101,0)) -> 
B59: Carbon Dioxide (CO2) | C59: =$I$100 -> - | D59: % | N59: =INDEX($N$86:$N$90,MATCH($N$56,$C$97:$C$101,0)) -> 
B60: Nitrogen (N2) | C60: =$I$101 -> - | D60: % | N60: =INDEX($O$86:$O$90,MATCH($N$56,$C$97:$C$101,0)) -> 
B61: Hydrogen Sulfide (H2S), Ammonia (NH3), Carbon Monoxide (CO) | C61: =$I$102 -> - | D61: % | N61: =INDEX($P$86:$P$90,MATCH($N$56,$C$97:$C$101,0)) -> 
B62: Total | C62: =SUM(C58:C61) -> 0
B63: Biogas Density | C63: =1.18 -> 1.18 | D63: kg/m3
B65: Other Default Assumptions | C65: Assumption | D65: Units
B66: Energy Content Methane | C66: 9.611111 | D66: kWh/m3
B67: Energy Content Biogas | C67: 6.5 | D67: kWh/m3
B68: Home Cooking Consumption | C68: 300 | D68: liters/day
B69: Home Heating Consumption | C69: 400 | D69: liters/day
B70: Gas Lamp Consumption | C70: 1500 | D70: liters/day
L86: Substrate Composition Includes | P86: Hydrogen Sulfide (H2S), Ammonia (NH3), Carbon Monoxide (CO)
L87: Mostly Sugars & Starches | P87: 0.001
L88: Equal Parts Sugars, Starches, Proteins, & Fats | P88: 0.005
L89: Equal Parts Proteins, Fats, Sugars, Starches, & Oils | P89: 0.01
L90: Mostly Proteins & Oils | P90: 0.01
C96: Biogas Composition Assumptions | I96: DO NOT DELETE TEXT
C97: Substrate Composition Includes | D97: Mostly Sugars & Starches | E97: Equal Parts Sugars, Starches, Proteins, & Fats | F97: Equal Parts Proteins, Fats, Sugars, Starches, & Oils | G97: Mostly Proteins & Oils | I97: =IFERROR(IF(SUM(TotalProtein+TotalFats)<5%,$D$97,IF(SUM(TotalProtein+TotalFats)>50%,$E$97,IF(SUM(TotalProtein+TotalFats)>66%,$F$97,IF(TotalSugar<5%,$G$97,$D$97)))),"") -> 
C98: Methane | D98: 0.499 | E98: 0.545 | F98: 0.59 | G98: 0.68
C99: Carbon Dioxide | D99: 0.499 | E99: 0.445 | F99: 0.39 | G99: 0.29 | I99: =IFERROR(HLOOKUP($C$56,$C$97:$G$101,2,FALSE),"-") -> - | J99: =MATCH(I97,D97:G97,0) -> 
C100: Nitrogen (N2) | D100: 0.001 | E100: 0.005 | F100: 0.01 | G100: 0.02 | I100: =IFERROR(HLOOKUP($C$56,$C$97:$G$101,3,FALSE),"-") -> -
C101: Hydrogen Sulfide (H2S), Ammonia (NH3), Carbon Monoxide (CO) | D101: 0.001 | E101: 0.005 | F101: 0.01 | G101: 0.01 | I101: =IFERROR(HLOOKUP($C$56,$C$97:$G$101,4,FALSE),"-") -> -
I102: =IFERROR(HLOOKUP($C$56,$C$97:$G$101,5,FALSE),"-") -> -
B115: Macro Formulas do not edit or delete will be hidden with final publication of the tool
B116: Poultry Chicken | C116: =BE17 -> 0 | F116: =IFERROR(VLOOKUP(B116,'9-Feedstock Characteristics'!$A$8:$W$127,2,FALSE),"-") -> 0.75 | G116: =IFERROR(VLOOKUP(B116,'9-Feedstock Characteristics'!$A$8:$W$127,3,FALSE),"-") -> 0.25 | H116: =IFERROR(VLOOKUP(B116,'9-Feedstock Characteristics'!$A$8:$W$127,7,FALSE),"-") -> 0.1833333333 | I116: =IFERROR(VLOOKUP(B116,'9-Feedstock Characteristics'!$A$8:$W$127,8,FALSE),"-") -> 0.06666666667 | J116: =IFERROR(VLOOKUP(B116,'9-Feedstock Characteristics'!$A$8:$W$127,12,FALSE)/(1-F116),"-") -> 0.07333333333 | K116: =IFERROR((H116/(1-F116))*0.55,"") -> 0.4033333333 | L116: =IF(C116=0,"-",IF(ReactorType="Dry",VLOOKUP(B116,'9-Feedstock Characteristics'!$A$8:$W$127,18,FALSE),VLOOKUP(B116,'9-Feedstock Characteristics'!$A$8:$W$127,18,FALSE)*((C116/(DensityofWater*VLOOKUP(B116,'9-Feedstock Characteristics'!$A$8:$W$127,19,FALSE)))/Chosen_Reactor_Volume)+DensityofWater*((Chosen_Reactor_Volume-(C116/(DensityofWater*VLOOKUP(B116,'9-Feedstock Characteristics'!$A$8:$W$127,19,FALSE))))/Chosen_Reactor_Volume))) -> - | M116: =IFERROR(VLOOKUP(B116,'9-Feedstock Characteristics'!$A$8:$W$127,15,FALSE),"-") -> 0.131 | N116: =IFERROR(VLOOKUP(B116,'9-Feedstock Characteristics'!$A$8:$W$127,14,FALSE),"-") -> 0.0279 | O116: =IFERROR(VLOOKUP(B116,'9-Feedstock Characteristics'!$A$8:$W$127,13,FALSE),"-") -> 0.7744333333
B117: Broiler Chicken | C117: 0 | F117: =IFERROR(VLOOKUP(B117,'9-Feedstock Characteristics'!$A$8:$W$127,2,FALSE),"-") -> 0.74 | G117: =IFERROR(VLOOKUP(B117,'9-Feedstock Characteristics'!$A$8:$W$127,3,FALSE),"-") -> 0.26 | H117: =IFERROR(VLOOKUP(B117,'9-Feedstock Characteristics'!$A$8:$W$127,7,FALSE),"-") -> 0.2009090909 | I117: =IFERROR(VLOOKUP(B117,'9-Feedstock Characteristics'!$A$8:$W$127,8,FALSE),"-") -> 0.05909090909 | J117: =IFERROR(VLOOKUP(B117,'9-Feedstock Characteristics'!$A$8:$W$127,12,FALSE)/(1-F117),"-") -> 0.04363636364 | K117: =IFERROR((H117/(1-F117))*0.55,"") -> 0.425 | L117: =IF(C117=0,"-",IF(ReactorType="Dry",VLOOKUP(B117,'9-Feedstock Characteristics'!$A$8:$W$127,18,FALSE),VLOOKUP(B117,'9-Feedstock Characteristics'!$A$8:$W$127,18,FALSE)*((C117/(DensityofWater*VLOOKUP(B117,'9-Feedstock Characteristics'!$A$8:$W$127,19,FALSE)))/Chosen_Reactor_Volume)+DensityofWater*((Chosen_Reactor_Volume-(C117/(DensityofWater*VLOOKUP(B117,'9-Feedstock Characteristics'!$A$8:$W$127,19,FALSE))))/Chosen_Reactor_Volume))) -> - | M117: =IFERROR(VLOOKUP(B117,'9-Feedstock Characteristics'!$A$8:$W$127,15,FALSE),"-") -> 0.131 | N117: =IFERROR(VLOOKUP(B117,'9-Feedstock Characteristics'!$A$8:$W$127,14,FALSE),"-") -> 0.0279 | O117: =IFERROR(VLOOKUP(B117,'9-Feedstock Characteristics'!$A$8:$W$127,13,FALSE),"-") -> 0.7820090909
B118: Turkey male | C118: 0 | F118: =IFERROR(VLOOKUP(B118,'9-Feedstock Characteristics'!$A$8:$W$127,2,FALSE),"-") -> 0.74 | G118: =IFERROR(VLOOKUP(B118,'9-Feedstock Characteristics'!$A$8:$W$127,3,FALSE),"-") -> 0.26 | H118: =IFERROR(VLOOKUP(B118,'9-Feedstock Characteristics'!$A$8:$W$127,7,FALSE),"-") -> 0.2097727273 | I118: =IFERROR(VLOOKUP(B118,'9-Feedstock Characteristics'!$A$8:$W$127,8,FALSE),"-") -> 0.05022727273 | J118: =IFERROR(VLOOKUP(B118,'9-Feedstock Characteristics'!$A$8:$W$127,12,FALSE)/(1-F118),"-") -> 0.06022727273 | K118: 0.44375 | L118: =IF(C118=0,"-",IF(ReactorType="Dry",VLOOKUP(B118,'9-Feedstock Characteristics'!$A$8:$W$127,18,FALSE),VLOOKUP(B118,'9-Feedstock Characteristics'!$A$8:$W$127,18,FALSE)*((C118/(DensityofWater*VLOOKUP(B118,'9-Feedstock Characteristics'!$A$8:$W$127,19,FALSE)))/Chosen_Reactor_Volume)+DensityofWater*((Chosen_Reactor_Volume-(C118/(DensityofWater*VLOOKUP(B118,'9-Feedstock Characteristics'!$A$8:$W$127,19,FALSE))))/Chosen_Reactor_Volume))) -> - | M118: =IFERROR(VLOOKUP(B118,'9-Feedstock Characteristics'!$A$8:$W$127,15,FALSE),"-") -> 0.131 | N118: =IFERROR(VLOOKUP(B118,'9-Feedstock Characteristics'!$A$8:$W$127,14,FALSE),"-") -> 0.0279 | O118: =IFERROR(VLOOKUP(B118,'9-Feedstock Characteristics'!$A$8:$W$127,13,FALSE),"-") -> 0.7908727273
B119: Turkey female | C119: 0 | F119: =IFERROR(VLOOKUP(B119,'9-Feedstock Characteristics'!$A$8:$W$127,2,FALSE),"-") -> 0.74 | G119: =IFERROR(VLOOKUP(B119,'9-Feedstock Characteristics'!$A$8:$W$127,3,FALSE),"-") -> 0.26 | H119: =IFERROR(VLOOKUP(B119,'9-Feedstock Characteristics'!$A$8:$W$127,7,FALSE),"-") -> 0.2123333333 | I119: =IFERROR(VLOOKUP(B119,'9-Feedstock Characteristics'!$A$8:$W$127,8,FALSE),"-") -> 0.04766666667 | J119: =IFERROR(VLOOKUP(B119,'9-Feedstock Characteristics'!$A$8:$W$127,12,FALSE)/(1-F119),"-") -> 0.06 | K119: 0.4491666667 | L119: =IF(C119=0,"-",IF(ReactorType="Dry",VLOOKUP(B119,'9-Feedstock Characteristics'!$A$8:$W$127,18,FALSE),VLOOKUP(B119,'9-Feedstock Characteristics'!$A$8:$W$127,18,FALSE)*((C119/(DensityofWater*VLOOKUP(B119,'9-Feedstock Characteristics'!$A$8:$W$127,19,FALSE)))/Chosen_Reactor_Volume)+DensityofWater*((Chosen_Reactor_Volume-(C119/(DensityofWater*VLOOKUP(B119,'9-Feedstock Characteristics'!$A$8:$W$127,19,FALSE))))/Chosen_Reactor_Volume))) -> - | M119: =IFERROR(VLOOKUP(B119,'9-Feedstock Characteristics'!$A$8:$W$127,15,FALSE),"-") -> 0.131 | N119: =IFERROR(VLOOKUP(B119,'9-Feedstock Characteristics'!$A$8:$W$127,14,FALSE),"-") -> 0.0279 | O119: =IFERROR(VLOOKUP(B119,'9-Feedstock Characteristics'!$A$8:$W$127,13,FALSE),"-") -> 0.7934333333
B120: Duck | C120: 0 | F120: =IFERROR(VLOOKUP(B120,'9-Feedstock Characteristics'!$A$8:$W$127,2,FALSE),"-") -> 0.74 | G120: =IFERROR(VLOOKUP(B120,'9-Feedstock Characteristics'!$A$8:$W$127,3,FALSE),"-") -> 0.26 | H120: =IFERROR(VLOOKUP(B120,'9-Feedstock Characteristics'!$A$8:$W$127,7,FALSE),"-") -> 0.1540740741 | I120: =IFERROR(VLOOKUP(B120,'9-Feedstock Characteristics'!$A$8:$W$127,8,FALSE),"-") -> 0.1059259259 | J120: =IFERROR(VLOOKUP(B120,'9-Feedstock Characteristics'!$A$8:$W$127,12,FALSE)/(1-F120),"-") -> 0.03703703704 | K120: 0.3259259259 | L120: =IF(C120=0,"-",IF(ReactorType="Dry",VLOOKUP(B120,'9-Feedstock Characteristics'!$A$8:$W$127,18,FALSE),VLOOKUP(B120,'9-Feedstock Characteristics'!$A$8:$W$127,18,FALSE)*((C120/(DensityofWater*VLOOKUP(B120,'9-Feedstock Characteristics'!$A$8:$W$127,19,FALSE)))/Chosen_Reactor_Volume)+DensityofWater*((Chosen_Reactor_Volume-(C120/(DensityofWater*VLOOKUP(B120,'9-Feedstock Characteristics'!$A$8:$W$127,19,FALSE))))/Chosen_Reactor_Volume))) -> - | M120: =IFERROR(VLOOKUP(B120,'9-Feedstock Characteristics'!$A$8:$W$127,15,FALSE),"-") -> 0.131 | N120: =IFERROR(VLOOKUP(B120,'9-Feedstock Characteristics'!$A$8:$W$127,14,FALSE),"-") -> 0.0279 | O120: =IFERROR(VLOOKUP(B120,'9-Feedstock Characteristics'!$A$8:$W$127,13,FALSE),"-") -> 0.7351740741
B121: Lamb/Sheep | C121: 0 | F121: =IFERROR(VLOOKUP(B121,'9-Feedstock Characteristics'!$A$8:$W$127,2,FALSE),"-") -> - | G121: =IFERROR(VLOOKUP(B121,'9-Feedstock Characteristics'!$A$8:$W$127,3,FALSE),"-") -> - | H121: =IFERROR(VLOOKUP(B121,'9-Feedstock Characteristics'!$A$8:$W$127,7,FALSE),"-") -> - | I121: =IFERROR(VLOOKUP(B121,'9-Feedstock Characteristics'!$A$8:$W$127,8,FALSE),"-") -> - | J121: =IFERROR(VLOOKUP(B121,'9-Feedstock Characteristics'!$A$8:$W$127,12,FALSE)/(1-F121),"-") -> - | L121: =IF(C121=0,"-",IF(ReactorType="Dry",VLOOKUP(B121,'9-Feedstock Characteristics'!$A$8:$W$127,18,FALSE),VLOOKUP(B121,'9-Feedstock Characteristics'!$A$8:$W$127,18,FALSE)*((C121/(DensityofWater*VLOOKUP(B121,'9-Feedstock Characteristics'!$A$8:$W$127,19,FALSE)))/Chosen_Reactor_Volume)+DensityofWater*((Chosen_Reactor_Volume-(C121/(DensityofWater*VLOOKUP(B121,'9-Feedstock Characteristics'!$A$8:$W$127,19,FALSE))))/Chosen_Reactor_Volume))) -> - | M121: =IFERROR(VLOOKUP(B121,'9-Feedstock Characteristics'!$A$8:$W$127,15,FALSE),"-") -> - | N121: =IFERROR(VLOOKUP(B121,'9-Feedstock Characteristics'!$A$8:$W$127,14,FALSE),"-") -> - | O121: =IFERROR(VLOOKUP(B121,'9-Feedstock Characteristics'!$A$8:$W$127,13,FALSE),"-") -> -
B122: Veal | C122: 0 | F122: =IFERROR(VLOOKUP(B122,'9-Feedstock Characteristics'!$A$8:$W$127,2,FALSE),"-") -> 0.98 | G122: =IFERROR(VLOOKUP(B122,'9-Feedstock Characteristics'!$A$8:$W$127,3,FALSE),"-") -> 0.02 | H122: =IFERROR(VLOOKUP(B122,'9-Feedstock Characteristics'!$A$8:$W$127,7,FALSE),"-") -> 0.01133333333 | I122: =IFERROR(VLOOKUP(B122,'9-Feedstock Characteristics'!$A$8:$W$127,8,FALSE),"-") -> 0.008666666667 | J122: =IFERROR(VLOOKUP(B122,'9-Feedstock Characteristics'!$A$8:$W$127,12,FALSE)/(1-F122),"-") -> 0.1333333333 | K122: 0.3116666667 | L122: =IF(C122=0,"-",IF(ReactorType="Dry",VLOOKUP(B122,'9-Feedstock Characteristics'!$A$8:$W$127,18,FALSE),VLOOKUP(B122,'9-Feedstock Characteristics'!$A$8:$W$127,18,FALSE)*((C122/(DensityofWater*VLOOKUP(B122,'9-Feedstock Characteristics'!$A$8:$W$127,19,FALSE)))/Chosen_Reactor_Volume)+DensityofWater*((Chosen_Reactor_Volume-(C122/(DensityofWater*VLOOKUP(B122,'9-Feedstock Characteristics'!$A$8:$W$127,19,FALSE))))/Chosen_Reactor_Volume))) -> - | M122: =IFERROR(VLOOKUP(B122,'9-Feedstock Characteristics'!$A$8:$W$127,15,FALSE),"-") -> 0.0853 | N122: =IFERROR(VLOOKUP(B122,'9-Feedstock Characteristics'!$A$8:$W$127,14,FALSE),"-") -> 0.0194 | O122: =IFERROR(VLOOKUP(B122,'9-Feedstock Characteristics'!$A$8:$W$127,13,FALSE),"-") -> 0.8866333333
B123: Horse - Active | C123: 0 | F123: =IFERROR(VLOOKUP(B123,'9-Feedstock Characteristics'!$A$8:$W$127,2,FALSE),"-") -> - | G123: =IFERROR(VLOOKUP(B123,'9-Feedstock Characteristics'!$A$8:$W$127,3,FALSE),"-") -> - | H123: =IFERROR(VLOOKUP(B123,'9-Feedstock Characteristics'!$A$8:$W$127,7,FALSE),"-") -> - | I123: =IFERROR(VLOOKUP(B123,'9-Feedstock Characteristics'!$A$8:$W$127,8,FALSE),"-") -> - | J123: =IFERROR(VLOOKUP(B123,'9-Feedstock Characteristics'!$A$8:$W$127,12,FALSE)/(1-F123),"-") -> - | L123: =IF(C123=0,"-",IF(ReactorType="Dry",VLOOKUP(B123,'9-Feedstock Characteristics'!$A$8:$W$127,18,FALSE),VLOOKUP(B123,'9-Feedstock Characteristics'!$A$8:$W$127,18,FALSE)*((C123/(DensityofWater*VLOOKUP(B123,'9-Feedstock Characteristics'!$A$8:$W$127,19,FALSE)))/Chosen_Reactor_Volume)+DensityofWater*((Chosen_Reactor_Volume-(C123/(DensityofWater*VLOOKUP(B123,'9-Feedstock Characteristics'!$A$8:$W$127,19,FALSE))))/Chosen_Reactor_Volume))) -> - | M123: =IFERROR(VLOOKUP(B123,'9-Feedstock Characteristics'!$A$8:$W$127,15,FALSE),"-") -> - | N123: =IFERROR(VLOOKUP(B123,'9-Feedstock Characteristics'!$A$8:$W$127,14,FALSE),"-") -> - | O123: =IFERROR(VLOOKUP(B123,'9-Feedstock Characteristics'!$A$8:$W$127,13,FALSE),"-") -> -
B124: Horse - Inactive | C124: 0 | F124: =IFERROR(VLOOKUP(B124,'9-Feedstock Characteristics'!$A$8:$W$127,2,FALSE),"-") -> - | G124: =IFERROR(VLOOKUP(B124,'9-Feedstock Characteristics'!$A$8:$W$127,3,FALSE),"-") -> - | H124: =IFERROR(VLOOKUP(B124,'9-Feedstock Characteristics'!$A$8:$W$127,7,FALSE),"-") -> - | I124: =IFERROR(VLOOKUP(B124,'9-Feedstock Characteristics'!$A$8:$W$127,8,FALSE),"-") -> - | J124: =IFERROR(VLOOKUP(B124,'9-Feedstock Characteristics'!$A$8:$W$127,12,FALSE)/(1-F124),"-") -> - | L124: =IF(C124=0,"-",IF(ReactorType="Dry",VLOOKUP(B124,'9-Feedstock Characteristics'!$A$8:$W$127,18,FALSE),VLOOKUP(B124,'9-Feedstock Characteristics'!$A$8:$W$127,18,FALSE)*((C124/(DensityofWater*VLOOKUP(B124,'9-Feedstock Characteristics'!$A$8:$W$127,19,FALSE)))/Chosen_Reactor_Volume)+DensityofWater*((Chosen_Reactor_Volume-(C124/(DensityofWater*VLOOKUP(B124,'9-Feedstock Characteristics'!$A$8:$W$127,19,FALSE))))/Chosen_Reactor_Volume))) -> - | M124: =IFERROR(VLOOKUP(B124,'9-Feedstock Characteristics'!$A$8:$W$127,15,FALSE),"-") -> - | N124: =IFERROR(VLOOKUP(B124,'9-Feedstock Characteristics'!$A$8:$W$127,14,FALSE),"-") -> - | O124: =IFERROR(VLOOKUP(B124,'9-Feedstock Characteristics'!$A$8:$W$127,13,FALSE),"-") -> -
B125: Leaves | C125: 0 | F125: =IFERROR(VLOOKUP(B125,'9-Feedstock Characteristics'!$A$8:$W$127,2,FALSE),"-") -> 0.382 | G125: =IFERROR(VLOOKUP(B125,'9-Feedstock Characteristics'!$A$8:$W$127,3,FALSE),"-") -> 0.618 | H125: =IFERROR(VLOOKUP(B125,'9-Feedstock Characteristics'!$A$8:$W$127,7,FALSE),"-") -> 0.557436 | I125: =IFERROR(VLOOKUP(B125,'9-Feedstock Characteristics'!$A$8:$W$127,8,FALSE),"-") -> 0.060564 | J125: =IFERROR(VLOOKUP(B125,'9-Feedstock Characteristics'!$A$8:$W$127,12,FALSE)/(1-F125),"-") -> 0.0145631068 | K125: 0.4961 | L125: =IF(C125=0,"-",IF(ReactorType="Dry",VLOOKUP(B125,'9-Feedstock Characteristics'!$A$8:$W$127,18,FALSE),VLOOKUP(B125,'9-Feedstock Characteristics'!$A$8:$W$127,18,FALSE)*((C125/(DensityofWater*VLOOKUP(B125,'9-Feedstock Characteristics'!$A$8:$W$127,19,FALSE)))/Chosen_Reactor_Volume)+DensityofWater*((Chosen_Reactor_Volume-(C125/(DensityofWater*VLOOKUP(B125,'9-Feedstock Characteristics'!$A$8:$W$127,19,FALSE))))/Chosen_Reactor_Volume))) -> - | M125: =IFERROR(VLOOKUP(B125,'9-Feedstock Characteristics'!$A$8:$W$127,15,FALSE),"-") -> 0.0865 | N125: =IFERROR(VLOOKUP(B125,'9-Feedstock Characteristics'!$A$8:$W$127,14,FALSE),"-") -> 0.0485 | O125: =IFERROR(VLOOKUP(B125,'9-Feedstock Characteristics'!$A$8:$W$127,13,FALSE),"-") -> 0.804436
B126: Alfalfa | C126: 0 | F126: =IFERROR(VLOOKUP(B126,'9-Feedstock Characteristics'!$A$8:$W$127,2,FALSE),"-") -> 0.58 | G126: =IFERROR(VLOOKUP(B126,'9-Feedstock Characteristics'!$A$8:$W$127,3,FALSE),"-") -> 0.42 | H126: =IFERROR(VLOOKUP(B126,'9-Feedstock Characteristics'!$A$8:$W$127,7,FALSE),"-") -> 0.3822 | I126: =IFERROR(VLOOKUP(B126,'9-Feedstock Characteristics'!$A$8:$W$127,8,FALSE),"-") -> 0.0378 | J126: =IFERROR(VLOOKUP(B126,'9-Feedstock Characteristics'!$A$8:$W$127,12,FALSE)/(1-F126),"-") -> 0.05357142857 | K126: 0.5005 | L126: =IF(C126=0,"-",IF(ReactorType="Dry",VLOOKUP(B126,'9-Feedstock Characteristics'!$A$8:$W$127,18,FALSE),VLOOKUP(B126,'9-Feedstock Characteristics'!$A$8:$W$127,18,FALSE)*((C126/(DensityofWater*VLOOKUP(B126,'9-Feedstock Characteristics'!$A$8:$W$127,19,FALSE)))/Chosen_Reactor_Volume)+DensityofWater*((Chosen_Reactor_Volume-(C126/(DensityofWater*VLOOKUP(B126,'9-Feedstock Characteristics'!$A$8:$W$127,19,FALSE))))/Chosen_Reactor_Volume))) -> - | M126: =IFERROR(VLOOKUP(B126,'9-Feedstock Characteristics'!$A$8:$W$127,15,FALSE),"-") -> 0.0399 | N126: =IFERROR(VLOOKUP(B126,'9-Feedstock Characteristics'!$A$8:$W$127,14,FALSE),"-") -> 0.0069 | O126: =IFERROR(VLOOKUP(B126,'9-Feedstock Characteristics'!$A$8:$W$127,13,FALSE),"-") -> 0.9154
B127: Banana, fresh | C127: 0 | F127: =IFERROR(VLOOKUP(B127,'9-Feedstock Characteristics'!$A$8:$W$127,2,FALSE),"-") -> - | G127: =IFERROR(VLOOKUP(B127,'9-Feedstock Characteristics'!$A$8:$W$127,3,FALSE),"-") -> - | H127: =IFERROR(VLOOKUP(B127,'9-Feedstock Characteristics'!$A$8:$W$127,7,FALSE),"-") -> - | I127: =IFERROR(VLOOKUP(B127,'9-Feedstock Characteristics'!$A$8:$W$127,8,FALSE),"-") -> - | J127: =IFERROR(VLOOKUP(B127,'9-Feedstock Characteristics'!$A$8:$W$127,12,FALSE)/(1-F127),"-") -> - | L127: =IF(C127=0,"-",IF(ReactorType="Dry",VLOOKUP(B127,'9-Feedstock Characteristics'!$A$8:$W$127,18,FALSE),VLOOKUP(B127,'9-Feedstock Characteristics'!$A$8:$W$127,18,FALSE)*((C127/(DensityofWater*VLOOKUP(B127,'9-Feedstock Characteristics'!$A$8:$W$127,19,FALSE)))/Chosen_Reactor_Volume)+DensityofWater*((Chosen_Reactor_Volume-(C127/(DensityofWater*VLOOKUP(B127,'9-Feedstock Characteristics'!$A$8:$W$127,19,FALSE))))/Chosen_Reactor_Volume))) -> - | M127: =IFERROR(VLOOKUP(B127,'9-Feedstock Characteristics'!$A$8:$W$127,15,FALSE),"-") -> - | N127: =IFERROR(VLOOKUP(B127,'9-Feedstock Characteristics'!$A$8:$W$127,14,FALSE),"-") -> - | O127: =IFERROR(VLOOKUP(B127,'9-Feedstock Characteristics'!$A$8:$W$127,13,FALSE),"-") -> -
B128: Broccoli, leaf | C128: 0 | F128: =IFERROR(VLOOKUP(B128,'9-Feedstock Characteristics'!$A$8:$W$127,2,FALSE),"-") -> - | G128: =IFERROR(VLOOKUP(B128,'9-Feedstock Characteristics'!$A$8:$W$127,3,FALSE),"-") -> - | H128: =IFERROR(VLOOKUP(B128,'9-Feedstock Characteristics'!$A$8:$W$127,7,FALSE),"-") -> - | I128: =IFERROR(VLOOKUP(B128,'9-Feedstock Characteristics'!$A$8:$W$127,8,FALSE),"-") -> - | J128: =IFERROR(VLOOKUP(B128,'9-Feedstock Characteristics'!$A$8:$W$127,12,FALSE)/(1-F128),"-") -> - | L128: =IF(C128=0,"-",IF(ReactorType="Dry",VLOOKUP(B128,'9-Feedstock Characteristics'!$A$8:$W$127,18,FALSE),VLOOKUP(B128,'9-Feedstock Characteristics'!$A$8:$W$127,18,FALSE)*((C128/(DensityofWater*VLOOKUP(B128,'9-Feedstock Characteristics'!$A$8:$W$127,19,FALSE)))/Chosen_Reactor_Volume)+DensityofWater*((Chosen_Reactor_Volume-(C128/(DensityofWater*VLOOKUP(B128,'9-Feedstock Characteristics'!$A$8:$W$127,19,FALSE))))/Chosen_Reactor_Volume))) -> - | M128: =IFERROR(VLOOKUP(B128,'9-Feedstock Characteristics'!$A$8:$W$127,15,FALSE),"-") -> - | N128: =IFERROR(VLOOKUP(B128,'9-Feedstock Characteristics'!$A$8:$W$127,14,FALSE),"-") -> - | O128: =IFERROR(VLOOKUP(B128,'9-Feedstock Characteristics'!$A$8:$W$127,13,FALSE),"-") -> -
B129: Cabbage, leaf | C129: 0 | F129: =IFERROR(VLOOKUP(B129,'9-Feedstock Characteristics'!$A$8:$W$127,2,FALSE),"-") -> - | G129: =IFERROR(VLOOKUP(B129,'9-Feedstock Characteristics'!$A$8:$W$127,3,FALSE),"-") -> - | H129: =IFERROR(VLOOKUP(B129,'9-Feedstock Characteristics'!$A$8:$W$127,7,FALSE),"-") -> - | I129: =IFERROR(VLOOKUP(B129,'9-Feedstock Characteristics'!$A$8:$W$127,8,FALSE),"-") -> - | J129: =IFERROR(VLOOKUP(B129,'9-Feedstock Characteristics'!$A$8:$W$127,12,FALSE)/(1-F129),"-") -> - | L129: =IF(C129=0,"-",IF(ReactorType="Dry",VLOOKUP(B129,'9-Feedstock Characteristics'!$A$8:$W$127,18,FALSE),VLOOKUP(B129,'9-Feedstock Characteristics'!$A$8:$W$127,18,FALSE)*((C129/(DensityofWater*VLOOKUP(B129,'9-Feedstock Characteristics'!$A$8:$W$127,19,FALSE)))/Chosen_Reactor_Volume)+DensityofWater*((Chosen_Reactor_Volume-(C129/(DensityofWater*VLOOKUP(B129,'9-Feedstock Characteristics'!$A$8:$W$127,19,FALSE))))/Chosen_Reactor_Volume))) -> - | M129: =IFERROR(VLOOKUP(B129,'9-Feedstock Characteristics'!$A$8:$W$127,15,FALSE),"-") -> - | N129: =IFERROR(VLOOKUP(B129,'9-Feedstock Characteristics'!$A$8:$W$127,14,FALSE),"-") -> - | O129: =IFERROR(VLOOKUP(B129,'9-Feedstock Characteristics'!$A$8:$W$127,13,FALSE),"-") -> -
B130: Piglets | C130: 0 | F130: =IFERROR(VLOOKUP(B130,'9-Feedstock Characteristics'!$A$8:$W$127,2,FALSE),"-") -> 0.9 | G130: =IFERROR(VLOOKUP(B130,'9-Feedstock Characteristics'!$A$8:$W$127,3,FALSE),"-") -> 0.1 | H130: =IFERROR(VLOOKUP(B130,'9-Feedstock Characteristics'!$A$8:$W$127,7,FALSE),"-") -> 0.088 | I130: =IFERROR(VLOOKUP(B130,'9-Feedstock Characteristics'!$A$8:$W$127,8,FALSE),"-") -> 0.012 | J130: =IFERROR(VLOOKUP(B130,'9-Feedstock Characteristics'!$A$8:$W$127,12,FALSE)/(1-F130),"-") -> 0.092 | K130: 0.484 | L130: =IF(C130=0,"-",IF(ReactorType="Dry",VLOOKUP(B130,'9-Feedstock Characteristics'!$A$8:$W$127,18,FALSE),VLOOKUP(B130,'9-Feedstock Characteristics'!$A$8:$W$127,18,FALSE)*((C130/(DensityofWater*VLOOKUP(B130,'9-Feedstock Characteristics'!$A$8:$W$127,19,FALSE)))/Chosen_Reactor_Volume)+DensityofWater*((Chosen_Reactor_Volume-(C130/(DensityofWater*VLOOKUP(B130,'9-Feedstock Characteristics'!$A$8:$W$127,19,FALSE))))/Chosen_Reactor_Volume))) -> - | M130: =IFERROR(VLOOKUP(B130,'9-Feedstock Characteristics'!$A$8:$W$127,15,FALSE),"-") -> 0.0939 | N130: =IFERROR(VLOOKUP(B130,'9-Feedstock Characteristics'!$A$8:$W$127,14,FALSE),"-") -> 0.0221 | O130: =IFERROR(VLOOKUP(B130,'9-Feedstock Characteristics'!$A$8:$W$127,13,FALSE),"-") -> 0.872
B135: Reset Table for Macro
B136: =B17 -> 0 | D136: 10000
B137: =B18 -> 0 | D137: 10000
B138: 0 | D138: 10000
B139: 0 | D139: 10000
B140: =B21 -> 0 | D140: 10000
B141: 0 | D141: 10000
B142: 0 | D142: 0
B143: 0 | D143: 0
B144: 0 | D144: 0
B145: 0 | D145: 0
B146: 0 | D146: 0
B147: 0 | D147: 0
B148: 0 | D148: 0
B149: 0 | D149: 0
B150: 0 | D150: 0
B151: Total | D151: =SUM(D136:D150) -> 60000

Sheet 4-Emissions Inputs
A1: Anaerobic Digester Emissions Calculation Inputs
A10: Waste Management and Storage Emission Reduction Instructions: Baseline emissions are determined based on the management systems in place for manure and co-digested wastes prior to the use of the AD system. Users should select a primary management system for the waste and an average reporting temperature. These factors determine the Methane Conversion Factor (MCF) used in subsequent calculations. MCF values can be viewed in the MCF tab of this workbook.
A11: Waste Management and Storage Emission Reductions | B11: Value | C11: Units
A12: Primary Previous Management System for Manure | C12: (select one)
A13: Primary Previous Management System for Other Waste | C13: (select one)
A14: Average Reporting Period Temperature | C14: Celsius
A15: Storage
A16: Does the facility temporarily store any organic Feedstocks on-site? | C16: (Yes/No)
A17: If Yes, please choose a storage system | C17: (select one)
A18: Total Days Waste Stored Temporarily per Year | C18: days per year
A20: Onsite Methane Utilization Instructions: Biogas produced onsite sometimes can be combusted to generate electricity, used as boiler, furnace, or combustion engine fuel onsite. If gas is burned onsite, enter the estimated percentage of gas per day that will be combusted. The default for methane utilization is set at 90 percent. The user can enter their own methane utilization percent by typing in a whole number percent in cell B22 below). Emissions factors for the combustion processes are based on IPCC (2006) values. If gas is not utilized onsite and will only be flared, enter 0 for utilization percentage and choose "none" for combustion process. If the utilization percent is 0, the total flare percentage in cell B27 below will be 100%
A21: Methane Utilization | B21: Value | C21: Units | D21: Notes
A22: Methane Utilization Percent | B22: 0.9 | C22: percent
A23: Combustion Process | C23: (select one)
A25: Flaring Instructions: Methane sent to a flare is combusted, but this process is not 100 percent efficient. Some methane is released to the environment due to incomplete combustion, or flaring may take place if the generator is offline. Additionally, some projects may flare all methane instead of utilizing it on-site. The measured methane sent to flaring is calculated using the percentage entered above in cell B22. The sum of methane utilization and methane sent to flare should equal 100 percent. To calculate methane released due to flaring, the amount of methane sent to flare is multiplied by the combustion process efficiency. Default combustion efficiencies are from the UNFCCC CDM (2017) and are based on the type of flare used. If more specific information about a flare's efficiency is known, users may override the recommended default. The button to the right resets the flaring default value.
A26: Flaring | B26: Value | C26: Units | D26: Notes
A27: Percentage of Methane sent to Flare | B27: =1-Methane_Utilization_Percentage -> 0.1 | C27: percent
A28: Flare Type | C28: (select one)
A29: Use Default Efficiency? | C29: (select one)
A30: Combustion Process Efficiency | B30: =IFERROR(IF(Use_Defaults_Flare="No","",VLOOKUP(FlareType,'22-Flaring & Leakage'!$A$5:$B$7,2,FALSE)),0) -> 0 | C30: percent
A32: Electricity Consumption and Generation Instructions: AD projects can source electricity from the grid or use electricity generated to power their own operations. Grid emissions estimates are derived from country-level emissions data from IEA (2018) and generation data from BP (2018). Users may override default emissions rates with more specific information if it is available. Users can also indicate grid gross loss - the amount of electricity lost due to transmission as a percent of total generation - or the default based on US values for 2022 will be used (eGRID 2022). If electricity is generated onsite and consumed by the project, the tool subtracts this amount of consumption from the total electricity consumption. Biogas specific emissions factors from IPCC (2006) are then applied to the onsite generation. The user can supply more specific emissions factors for biogas if available. The button to the right resets the leakage default values.
A33: Electricity Consumption and Generation | B33: Value | C33: Units | D33: Notes
A34: Country | C34: (select one)
A35: Electricity Generation
A36: Is electricity generated and used onsite? | C36: (Yes/No)
A37: How much onsite generation is consumed? | C37: kWh per day
A38: Project Biogas CO2 Emissions Factor | B38: =IF($B$36="Yes",'21-Electricity Use'!$B$7,"") ->  | C38: kg/MMBtu
A39: Project Biogas CH4 Emissions Factor | B39: =IF($B$36="Yes",'21-Electricity Use'!$B$8,"") ->  | C39: g/MMBtu
A40: Direct Electricity Use
A41: How much Electricity is consumed from the grid? | C41: kWh per day
A42: Use Default Grid Data? | C42: (select one)
A43: Default Grid Emissions Rate | B43: =IFERROR(VLOOKUP($B$34,'21-Electricity Use'!$A$22:$I$51,8,FALSE),"") ->  | C43: kgCO2/kWh
A44: If no, what is your Grid Emissions factor?
A45: Grid Gross Loss | B45: 0.051 | C45: percent
A47: Leakage Instructions: Some degree of leakage occurs from all Anaerobic Digesters. Leakage is the methane released through pipes, equipment, and other apparatuses used to generate biogas. This tool uses the UNFCCC CDM (2017) default leakage rate of 10% of methane production, but the user may override the recommended defaults. The tool using the previously entered waste and equipment inputs calculates methane production. The button to the right resets the leakage default values.
A48: Leakage | B48: Value | C48: Units | D48: Notes
A49: Assumed Fraction of Methane Leakage | B49: 0.1 | C49: percent
A71: Defaults -hide
A72: Combustion Process Efficiency | B72: =IFERROR(IF(Use_Defaults_Flare="No","",VLOOKUP(FlareType,'22-Flaring & Leakage'!$A$5:$B$7,2,FALSE)),0) -> 0
A73: Assumed Fraction of Methane Leakage | B73: 0.1
A74: Default Grid Emissions Rate | B74: =IFERROR(VLOOKUP($B$34,'21-Electricity Use'!$A$22:$I$51,8,FALSE),"") -> 
A75: Grid Gross Loss | B75: 0.045
A76: CO2 Emissions Factor | B76: =IF($B$36="Yes",'21-Electricity Use'!$B$7,"") -> 
A77: CH4 Emissions Factor | B77: =IF($B$36="Yes",'21-Electricity Use'!$B$8,"") -> 
A78: Default methane sent to flare | B78: =1-Methane_Utilization_Percentage -> 0.1

Sheet 5-Annual Summary
A1: Annual Output Summary Information
A2: The table below shows the planned Anaerobic Digester’s annual digestate and biogas production and options for energy recovery based on the user’s inputs, calculated by taking the daily production and multiplying it by 365 days per year. This should be considered a first-order estimate. In reality, anaerobic digester production may vary based on waste characteristics, reactor temperature, system design limitations, and daily operations.
A7: Biogas Production - The estimated low and high production values use calibration factors from actual observations that represent the 25th and 75th percentile values of the ratio between measured and modeled data. These values are used to adjust the maximum potential biogas generation values to estimate the likely biogas generation potential values. | B7: Estimated Value (low) | C7: Estimated Value (high) | D7: Theoretical Maximum Potential | E7: Unit | F7: Notes | AI7: Estimated Biogas Production - low (m3/year) | AJ7: Estimated Biogas Production - high (m3/year) | AK7: Maximum Potential (m3/year)
A8: Annual Biogas Production | B8: =IFERROR(($D$8*VLOOKUP(ReactorType&"_"&ReactorTemp,'11-Calibration Factors'!$A$4:$C$9,2,FALSE))," ") -> 0 | C8: =IFERROR(($D$8*VLOOKUP(ReactorType&"_"&ReactorTemp,'11-Calibration Factors'!$A$4:$C$9,3,FALSE))," ") -> 0 | D8: =IFERROR((Estimated_Max_Daily_Biogas_Production*365)*VLOOKUP('5-Annual Summary'!E8,'23-Look up values'!$A$13:$B$14,2,FALSE)," ") -> 0 | E8: m3/year
A9: Annual Methane Production | B9: =IFERROR($D$9*VLOOKUP(ReactorType&"_"&ReactorTemp,'11-Calibration Factors'!$A$4:$C$9,2,FALSE)," ") -> 0 | C9: =IFERROR($D$9*VLOOKUP(ReactorType&"_"&ReactorTemp,'11-Calibration Factors'!$A$4:$C$9,3,FALSE)," ") -> 0 | D9: =IFERROR((Estimated_Max_Daily_Methane_Production*365)*VLOOKUP(E9,'23-Look up values'!$A$13:$B$14,2,FALSE)," ") -> 0 | E9: m3/year
A10: Digestate Production | B10: Value | E10: Unit | F10: Notes
A11: Total Non- Biodegradable Solids | B11: ='7-Digestate Production'!B87*365/VLOOKUP(E11,'23-Look up values'!$A$18:$B$21,2,FALSE) -> 0 | E11: kg/year
A12: Remaining Volatile Solids | B12: ='7-Digestate Production'!C87*365/VLOOKUP(E12,'23-Look up values'!$A$18:$B$21,2,FALSE) -> 0 | E12: kg/year
A13: Digester Solids | B13: ='7-Digestate Production'!E87*365/VLOOKUP(E13,'23-Look up values'!$A$18:$B$21,2,FALSE) -> 0 | E13: kg/year
A14: Dry Sludge | B14: =IFERROR(IFERROR(IF('3-Digester Inputs'!$C$11="Yes",'7-Digestate Production'!F87,"")*365,"N/A")/VLOOKUP(E14,'23-Look up values'!$A$18:$B$21,2,FALSE),"N/A") -> N/A | E14: kg/year
A15: Liquid Effluent | B15: =IFERROR('7-Digestate Production'!G87*365/VLOOKUP(E15,'23-Look up values'!$A$18:$B$21,2,FALSE),"N/A") -> 0 | E15: kg/year
A16: Energy Recovery Options - Each energy recovery option is an "or" estimate (i.e., the plant will not be capable of producing both X kWh of electricity and Y m3/year natural gas, but is capable of producing either X kWh of electricity hours or Y m3/year of natural gas). | B16: Value | E16: Unit | F16: Notes
A17: Electricity Production (cleaned biogas to natural gas quality) | B17: =IFERROR(Annual_Avg_Biogas_Production*'3-Digester Inputs'!$C$58*'3-Digester Inputs'!C66/1000," ") ->  | E17: MWh
A18: Electricity Production (biogas only) | B18: =IFERROR(Annual_Avg_Biogas_Production*'3-Digester Inputs'!$C$58*'3-Digester Inputs'!C67/1000," ") ->  | E18: MWh
A19: Renewable Natural Gas (RNG) Production | B19: =IFERROR(Annual_Avg_Biogas_Production*'3-Digester Inputs'!C58*VLOOKUP(E19,'23-Look up values'!$A$13:$B$14,2,FALSE)," ") ->  | E19: m3/year
A20: Cooking Gas Potential | B20: =IFERROR(CONVERT(Annual_Avg_Biogas_Production,"m^3","l")/('3-Digester Inputs'!C68*365)," ") -> 0 | E20: homes/year
A21: Home Heating Potential | B21: =IFERROR(CONVERT(Annual_Avg_Biogas_Production,"m^3","l")/('3-Digester Inputs'!C69*365)," ") -> 0 | E21: homes/year
A22: Gas Lamps Powered | B22: =IFERROR(CONVERT(Annual_Avg_Biogas_Production,"m^3","l")/('3-Digester Inputs'!C70*365), " ") -> 0 | E22: lamps/year
A24: Additional Operational Notes on Bioreactor Toxicity: The first table below lists additional information about your modeled waste stream's possible Anaerobic Inhibitors to consider while designing your project. The definitions list below shows design and process solutions to consider to address those toxic inhibitors or ensure the stay at a manageable level. For further reading and sources see Chen et al. 2007 and Arinbaatar et al. 2014. Light metal include sodium, potassium, magnesium, calcium and aluminum. Heavy Metals includes chromium, iron, cobalt, copper, zinc, cadmium and nickel. Organic Components includes Chlorophenols, Halogenated Alophatics, N-substituted aromatics, LCFAs, and Lignin. For important definitions see the green box below.
A29: Which waste stream inhibitors may impact the digester? | B29: Ammonia | C29: Sulfides | D29: Light Metals | E29: Heavy Metals | F29: Organic Components | G29: Notes
A30: =IF('3-Digester Inputs'!B17=0,"-",'3-Digester Inputs'!B17) -> - | B30: =IF(COUNTIFS('10-Feedstock Toxicity Info'!$A$6:$A$113,'5-Annual Summary'!$A30,'10-Feedstock Toxicity Info'!B$6:B$113,"*")>0,"Yes","") ->  | C30: =IF(COUNTIFS('10-Feedstock Toxicity Info'!$A$6:$A$113,'5-Annual Summary'!$A30,'10-Feedstock Toxicity Info'!C$6:C$113,"*")>0,"Yes","") ->  | D30: =IF(COUNTIFS('10-Feedstock Toxicity Info'!$A$6:$A$113,'5-Annual Summary'!$A30,'10-Feedstock Toxicity Info'!T$6:T$113,"*")>0,"Yes","") ->  | E30: =IF(COUNTIFS('10-Feedstock Toxicity Info'!$A$6:$A$113,'5-Annual Summary'!$A30,'10-Feedstock Toxicity Info'!I$6:I$113,"*")>0,"Yes","") ->  | F30: =IF(COUNTIFS('10-Feedstock Toxicity Info'!$A$6:$A$113,'5-Annual Summary'!$A30,'10-Feedstock Toxicity Info'!J$6:J$113,"*")>0,"Yes","") -> 
A31: =IF('3-Digester Inputs'!B18=0,"-",'3-Digester Inputs'!B18) -> - | B31: =IF(COUNTIFS('10-Feedstock Toxicity Info'!$A$6:$A$113,'5-Annual Summary'!$A31,'10-Feedstock Toxicity Info'!B$6:B$113,"*")>0,"Yes","") ->  | C31: =IF(COUNTIFS('10-Feedstock Toxicity Info'!$A$6:$A$113,'5-Annual Summary'!$A31,'10-Feedstock Toxicity Info'!C$6:C$113,"*")>0,"Yes","") ->  | D31: =IF(COUNTIFS('10-Feedstock Toxicity Info'!$A$6:$A$113,'5-Annual Summary'!$A31,'10-Feedstock Toxicity Info'!T$6:T$113,"*")>0,"Yes","") ->  | E31: =IF(COUNTIFS('10-Feedstock Toxicity Info'!$A$6:$A$113,'5-Annual Summary'!$A31,'10-Feedstock Toxicity Info'!I$6:I$113,"*")>0,"Yes","") ->  | F31: =IF(COUNTIFS('10-Feedstock Toxicity Info'!$A$6:$A$113,'5-Annual Summary'!$A31,'10-Feedstock Toxicity Info'!J$6:J$113,"*")>0,"Yes","") -> 
A32: =IF('3-Digester Inputs'!B19=0,"-",'3-Digester Inputs'!B19) -> - | B32: =IF(COUNTIFS('10-Feedstock Toxicity Info'!$A$6:$A$113,'5-Annual Summary'!$A32,'10-Feedstock Toxicity Info'!B$6:B$113,"*")>0,"Yes","") ->  | C32: =IF(COUNTIFS('10-Feedstock Toxicity Info'!$A$6:$A$113,'5-Annual Summary'!$A32,'10-Feedstock Toxicity Info'!C$6:C$113,"*")>0,"Yes","") ->  | D32: =IF(COUNTIFS('10-Feedstock Toxicity Info'!$A$6:$A$113,'5-Annual Summary'!$A32,'10-Feedstock Toxicity Info'!T$6:T$113,"*")>0,"Yes","") ->  | E32: =IF(COUNTIFS('10-Feedstock Toxicity Info'!$A$6:$A$113,'5-Annual Summary'!$A32,'10-Feedstock Toxicity Info'!I$6:I$113,"*")>0,"Yes","") ->  | F32: =IF(COUNTIFS('10-Feedstock Toxicity Info'!$A$6:$A$113,'5-Annual Summary'!$A32,'10-Feedstock Toxicity Info'!J$6:J$113,"*")>0,"Yes","") -> 
A33: =IF('3-Digester Inputs'!B20=0,"-",'3-Digester Inputs'!B20) -> - | B33: =IF(COUNTIFS('10-Feedstock Toxicity Info'!$A$6:$A$113,'5-Annual Summary'!$A33,'10-Feedstock Toxicity Info'!B$6:B$113,"*")>0,"Yes","") ->  | C33: =IF(COUNTIFS('10-Feedstock Toxicity Info'!$A$6:$A$113,'5-Annual Summary'!$A33,'10-Feedstock Toxicity Info'!C$6:C$113,"*")>0,"Yes","") ->  | D33: =IF(COUNTIFS('10-Feedstock Toxicity Info'!$A$6:$A$113,'5-Annual Summary'!$A33,'10-Feedstock Toxicity Info'!T$6:T$113,"*")>0,"Yes","") ->  | E33: =IF(COUNTIFS('10-Feedstock Toxicity Info'!$A$6:$A$113,'5-Annual Summary'!$A33,'10-Feedstock Toxicity Info'!I$6:I$113,"*")>0,"Yes","") ->  | F33: =IF(COUNTIFS('10-Feedstock Toxicity Info'!$A$6:$A$113,'5-Annual Summary'!$A33,'10-Feedstock Toxicity Info'!J$6:J$113,"*")>0,"Yes","") -> 
A34: =IF('3-Digester Inputs'!B21=0,"-",'3-Digester Inputs'!B21) -> - | B34: =IF(COUNTIFS('10-Feedstock Toxicity Info'!$A$6:$A$113,'5-Annual Summary'!$A34,'10-Feedstock Toxicity Info'!B$6:B$113,"*")>0,"Yes","") ->  | C34: =IF(COUNTIFS('10-Feedstock Toxicity Info'!$A$6:$A$113,'5-Annual Summary'!$A34,'10-Feedstock Toxicity Info'!C$6:C$113,"*")>0,"Yes","") ->  | D34: =IF(COUNTIFS('10-Feedstock Toxicity Info'!$A$6:$A$113,'5-Annual Summary'!$A34,'10-Feedstock Toxicity Info'!T$6:T$113,"*")>0,"Yes","") ->  | E34: =IF(COUNTIFS('10-Feedstock Toxicity Info'!$A$6:$A$113,'5-Annual Summary'!$A34,'10-Feedstock Toxicity Info'!I$6:I$113,"*")>0,"Yes","") ->  | F34: =IF(COUNTIFS('10-Feedstock Toxicity Info'!$A$6:$A$113,'5-Annual Summary'!$A34,'10-Feedstock Toxicity Info'!J$6:J$113,"*")>0,"Yes","") -> 
A35: =IF('3-Digester Inputs'!B22=0,"-",'3-Digester Inputs'!B22) -> - | B35: =IF(COUNTIFS('10-Feedstock Toxicity Info'!$A$6:$A$113,'5-Annual Summary'!$A35,'10-Feedstock Toxicity Info'!B$6:B$113,"*")>0,"Yes","") ->  | C35: =IF(COUNTIFS('10-Feedstock Toxicity Info'!$A$6:$A$113,'5-Annual Summary'!$A35,'10-Feedstock Toxicity Info'!C$6:C$113,"*")>0,"Yes","") ->  | D35: =IF(COUNTIFS('10-Feedstock Toxicity Info'!$A$6:$A$113,'5-Annual Summary'!$A35,'10-Feedstock Toxicity Info'!T$6:T$113,"*")>0,"Yes","") ->  | E35: =IF(COUNTIFS('10-Feedstock Toxicity Info'!$A$6:$A$113,'5-Annual Summary'!$A35,'10-Feedstock Toxicity Info'!I$6:I$113,"*")>0,"Yes","") ->  | F35: =IF(COUNTIFS('10-Feedstock Toxicity Info'!$A$6:$A$113,'5-Annual Summary'!$A35,'10-Feedstock Toxicity Info'!J$6:J$113,"*")>0,"Yes","") -> 
A36: =IF('3-Digester Inputs'!B23=0,"-",'3-Digester Inputs'!B23) -> - | B36: =IF(COUNTIFS('10-Feedstock Toxicity Info'!$A$6:$A$113,'5-Annual Summary'!$A36,'10-Feedstock Toxicity Info'!B$6:B$113,"*")>0,"Yes","") ->  | C36: =IF(COUNTIFS('10-Feedstock Toxicity Info'!$A$6:$A$113,'5-Annual Summary'!$A36,'10-Feedstock Toxicity Info'!C$6:C$113,"*")>0,"Yes","") ->  | D36: =IF(COUNTIFS('10-Feedstock Toxicity Info'!$A$6:$A$113,'5-Annual Summary'!$A36,'10-Feedstock Toxicity Info'!T$6:T$113,"*")>0,"Yes","") ->  | E36: =IF(COUNTIFS('10-Feedstock Toxicity Info'!$A$6:$A$113,'5-Annual Summary'!$A36,'10-Feedstock Toxicity Info'!I$6:I$113,"*")>0,"Yes","") ->  | F36: =IF(COUNTIFS('10-Feedstock Toxicity Info'!$A$6:$A$113,'5-Annual Summary'!$A36,'10-Feedstock Toxicity Info'!J$6:J$113,"*")>0,"Yes","") -> 
A37: =IF('3-Digester Inputs'!B24=0,"-",'3-Digester Inputs'!B24) -> - | B37: =IF(COUNTIFS('10-Feedstock Toxicity Info'!$A$6:$A$113,'5-Annual Summary'!$A37,'10-Feedstock Toxicity Info'!B$6:B$113,"*")>0,"Yes","") ->  | C37: =IF(COUNTIFS('10-Feedstock Toxicity Info'!$A$6:$A$113,'5-Annual Summary'!$A37,'10-Feedstock Toxicity Info'!C$6:C$113,"*")>0,"Yes","") ->  | D37: =IF(COUNTIFS('10-Feedstock Toxicity Info'!$A$6:$A$113,'5-Annual Summary'!$A37,'10-Feedstock Toxicity Info'!T$6:T$113,"*")>0,"Yes","") ->  | E37: =IF(COUNTIFS('10-Feedstock Toxicity Info'!$A$6:$A$113,'5-Annual Summary'!$A37,'10-Feedstock Toxicity Info'!I$6:I$113,"*")>0,"Yes","") ->  | F37: =IF(COUNTIFS('10-Feedstock Toxicity Info'!$A$6:$A$113,'5-Annual Summary'!$A37,'10-Feedstock Toxicity Info'!J$6:J$113,"*")>0,"Yes","") -> 
A38: =IF('3-Digester Inputs'!B25=0,"-",'3-Digester Inputs'!B25) -> - | B38: =IF(COUNTIFS('10-Feedstock Toxicity Info'!$A$6:$A$113,'5-Annual Summary'!$A38,'10-Feedstock Toxicity Info'!B$6:B$113,"*")>0,"Yes","") ->  | C38: =IF(COUNTIFS('10-Feedstock Toxicity Info'!$A$6:$A$113,'5-Annual Summary'!$A38,'10-Feedstock Toxicity Info'!C$6:C$113,"*")>0,"Yes","") ->  | D38: =IF(COUNTIFS('10-Feedstock Toxicity Info'!$A$6:$A$113,'5-Annual Summary'!$A38,'10-Feedstock Toxicity Info'!T$6:T$113,"*")>0,"Yes","") ->  | E38: =IF(COUNTIFS('10-Feedstock Toxicity Info'!$A$6:$A$113,'5-Annual Summary'!$A38,'10-Feedstock Toxicity Info'!I$6:I$113,"*")>0,"Yes","") ->  | F38: =IF(COUNTIFS('10-Feedstock Toxicity Info'!$A$6:$A$113,'5-Annual Summary'!$A38,'10-Feedstock Toxicity Info'!J$6:J$113,"*")>0,"Yes","") -> 
A39: =IF('3-Digester Inputs'!B26=0,"-",'3-Digester Inputs'!B26) -> - | B39: =IF(COUNTIFS('10-Feedstock Toxicity Info'!$A$6:$A$113,'5-Annual Summary'!$A39,'10-Feedstock Toxicity Info'!B$6:B$113,"*")>0,"Yes","") ->  | C39: =IF(COUNTIFS('10-Feedstock Toxicity Info'!$A$6:$A$113,'5-Annual Summary'!$A39,'10-Feedstock Toxicity Info'!C$6:C$113,"*")>0,"Yes","") ->  | D39: =IF(COUNTIFS('10-Feedstock Toxicity Info'!$A$6:$A$113,'5-Annual Summary'!$A39,'10-Feedstock Toxicity Info'!T$6:T$113,"*")>0,"Yes","") ->  | E39: =IF(COUNTIFS('10-Feedstock Toxicity Info'!$A$6:$A$113,'5-Annual Summary'!$A39,'10-Feedstock Toxicity Info'!I$6:I$113,"*")>0,"Yes","") ->  | F39: =IF(COUNTIFS('10-Feedstock Toxicity Info'!$A$6:$A$113,'5-Annual Summary'!$A39,'10-Feedstock Toxicity Info'!J$6:J$113,"*")>0,"Yes","") -> 
A40: =IF('3-Digester Inputs'!B27=0,"-",'3-Digester Inputs'!B27) -> - | B40: =IF(COUNTIFS('10-Feedstock Toxicity Info'!$A$6:$A$113,'5-Annual Summary'!$A40,'10-Feedstock Toxicity Info'!B$6:B$113,"*")>0,"Yes","") ->  | C40: =IF(COUNTIFS('10-Feedstock Toxicity Info'!$A$6:$A$113,'5-Annual Summary'!$A40,'10-Feedstock Toxicity Info'!C$6:C$113,"*")>0,"Yes","") ->  | D40: =IF(COUNTIFS('10-Feedstock Toxicity Info'!$A$6:$A$113,'5-Annual Summary'!$A40,'10-Feedstock Toxicity Info'!T$6:T$113,"*")>0,"Yes","") ->  | E40: =IF(COUNTIFS('10-Feedstock Toxicity Info'!$A$6:$A$113,'5-Annual Summary'!$A40,'10-Feedstock Toxicity Info'!I$6:I$113,"*")>0,"Yes","") ->  | F40: =IF(COUNTIFS('10-Feedstock Toxicity Info'!$A$6:$A$113,'5-Annual Summary'!$A40,'10-Feedstock Toxicity Info'!J$6:J$113,"*")>0,"Yes","") -> 
A41: =IF('3-Digester Inputs'!B28=0,"-",'3-Digester Inputs'!B28) -> - | B41: =IF(COUNTIFS('10-Feedstock Toxicity Info'!$A$6:$A$113,'5-Annual Summary'!$A41,'10-Feedstock Toxicity Info'!B$6:B$113,"*")>0,"Yes","") ->  | C41: =IF(COUNTIFS('10-Feedstock Toxicity Info'!$A$6:$A$113,'5-Annual Summary'!$A41,'10-Feedstock Toxicity Info'!C$6:C$113,"*")>0,"Yes","") ->  | D41: =IF(COUNTIFS('10-Feedstock Toxicity Info'!$A$6:$A$113,'5-Annual Summary'!$A41,'10-Feedstock Toxicity Info'!T$6:T$113,"*")>0,"Yes","") ->  | E41: =IF(COUNTIFS('10-Feedstock Toxicity Info'!$A$6:$A$113,'5-Annual Summary'!$A41,'10-Feedstock Toxicity Info'!I$6:I$113,"*")>0,"Yes","") ->  | F41: =IF(COUNTIFS('10-Feedstock Toxicity Info'!$A$6:$A$113,'5-Annual Summary'!$A41,'10-Feedstock Toxicity Info'!J$6:J$113,"*")>0,"Yes","") -> 
A42: =IF('3-Digester Inputs'!B29=0,"-",'3-Digester Inputs'!B29) -> - | B42: =IF(COUNTIFS('10-Feedstock Toxicity Info'!$A$6:$A$113,'5-Annual Summary'!$A42,'10-Feedstock Toxicity Info'!B$6:B$113,"*")>0,"Yes","") ->  | C42: =IF(COUNTIFS('10-Feedstock Toxicity Info'!$A$6:$A$113,'5-Annual Summary'!$A42,'10-Feedstock Toxicity Info'!C$6:C$113,"*")>0,"Yes","") ->  | D42: =IF(COUNTIFS('10-Feedstock Toxicity Info'!$A$6:$A$113,'5-Annual Summary'!$A42,'10-Feedstock Toxicity Info'!T$6:T$113,"*")>0,"Yes","") ->  | E42: =IF(COUNTIFS('10-Feedstock Toxicity Info'!$A$6:$A$113,'5-Annual Summary'!$A42,'10-Feedstock Toxicity Info'!I$6:I$113,"*")>0,"Yes","") ->  | F42: =IF(COUNTIFS('10-Feedstock Toxicity Info'!$A$6:$A$113,'5-Annual Summary'!$A42,'10-Feedstock Toxicity Info'!J$6:J$113,"*")>0,"Yes","") -> 
A43: =IF('3-Digester Inputs'!B30=0,"-",'3-Digester Inputs'!B30) -> - | B43: =IF(COUNTIFS('10-Feedstock Toxicity Info'!$A$6:$A$113,'5-Annual Summary'!$A43,'10-Feedstock Toxicity Info'!B$6:B$113,"*")>0,"Yes","") ->  | C43: =IF(COUNTIFS('10-Feedstock Toxicity Info'!$A$6:$A$113,'5-Annual Summary'!$A43,'10-Feedstock Toxicity Info'!C$6:C$113,"*")>0,"Yes","") ->  | D43: =IF(COUNTIFS('10-Feedstock Toxicity Info'!$A$6:$A$113,'5-Annual Summary'!$A43,'10-Feedstock Toxicity Info'!T$6:T$113,"*")>0,"Yes","") ->  | E43: =IF(COUNTIFS('10-Feedstock Toxicity Info'!$A$6:$A$113,'5-Annual Summary'!$A43,'10-Feedstock Toxicity Info'!I$6:I$113,"*")>0,"Yes","") ->  | F43: =IF(COUNTIFS('10-Feedstock Toxicity Info'!$A$6:$A$113,'5-Annual Summary'!$A43,'10-Feedstock Toxicity Info'!J$6:J$113,"*")>0,"Yes","") -> 
A44: =IF('3-Digester Inputs'!B31=0,"-",'3-Digester Inputs'!B31) -> - | B44: =IF(COUNTIFS('10-Feedstock Toxicity Info'!$A$6:$A$113,'5-Annual Summary'!$A44,'10-Feedstock Toxicity Info'!B$6:B$113,"*")>0,"Yes","") ->  | C44: =IF(COUNTIFS('10-Feedstock Toxicity Info'!$A$6:$A$113,'5-Annual Summary'!$A44,'10-Feedstock Toxicity Info'!C$6:C$113,"*")>0,"Yes","") ->  | D44: =IF(COUNTIFS('10-Feedstock Toxicity Info'!$A$6:$A$113,'5-Annual Summary'!$A44,'10-Feedstock Toxicity Info'!T$6:T$113,"*")>0,"Yes","") ->  | E44: =IF(COUNTIFS('10-Feedstock Toxicity Info'!$A$6:$A$113,'5-Annual Summary'!$A44,'10-Feedstock Toxicity Info'!I$6:I$113,"*")>0,"Yes","") ->  | F44: =IF(COUNTIFS('10-Feedstock Toxicity Info'!$A$6:$A$113,'5-Annual Summary'!$A44,'10-Feedstock Toxicity Info'!J$6:J$113,"*")>0,"Yes","") -> 
A45: Pretreatment or Design Options to Address Inhibitors

Sheet 6-Biogas Production
A1: Biogas Production Summary Information
A6: The estimated low and high production values use calibration factors from actual observations that represent the 25th and 75th percentile values of the ratio between measured and modeled data. These values are used to adjust the maximum potential biogas generation values to estimate the likely biogas generation potential values. The total daily biogas and methane production estimates below are an average of the low and high production values.
A7: Total Biogas Production | B7: =F53 -> 0 | C7: m3/day
A8: Total Methane Production | B8: =D53 -> 0
A10: ="Biogas Production per Retention Period by Organic Waste (" & C7&")" -> Biogas Production per Retention Period by Organic Waste (m3/day)
A36: ="Average Biogas Production per Retention Period by Organic Waste (" & C7&")" -> Average Biogas Production per Retention Period by Organic Waste (m3/day)
A37: Feedstock Type | B37: Volatile Solids (kg / day) | C37: Methane Yields (m3/kg of VS) | D37: ="Methane Production ("&C7&")" -> Methane Production (m3/day) | E37: ="Other Gases ("&C7&")" -> Other Gases (m3/day) | F37: ="Total Biogas Production ("&C7&")" -> Total Biogas Production (m3/day)
A38: =IF('3-Digester Inputs'!B17=0,"",'3-Digester Inputs'!B17) ->  | B38: ='3-Digester Inputs'!P17 ->  | C38: =IFERROR(VLOOKUP(A38,'9-Feedstock Characteristics'!$A$10:$R$117,17,FALSE)/1000,"") ->  | D38: =IFERROR(AVERAGE(D58,K58)*VLOOKUP($C$7,'23-Look up values'!$A$15:$B$16,2,FALSE),"") ->  | E38: =IFERROR(F38-D38,"") ->  | F38: =IFERROR(D38/Methane_CH4_Percent,"") -> 
A39: =IF('3-Digester Inputs'!B18=0,"",'3-Digester Inputs'!B18) ->  | B39: ='3-Digester Inputs'!P18 ->  | C39: =IFERROR(VLOOKUP(A39,'9-Feedstock Characteristics'!$A$10:$R$117,17,FALSE)/1000,"") ->  | D39: =IFERROR(AVERAGE(D59,K59)*VLOOKUP($C$7,'23-Look up values'!$A$15:$B$16,2,FALSE),"") ->  | E39: =IFERROR(F39-D39,"") ->  | F39: =IFERROR(D39/Methane_CH4_Percent,"") -> 
A40: =IF('3-Digester Inputs'!B19=0,"",'3-Digester Inputs'!B19) ->  | B40: ='3-Digester Inputs'!P19 ->  | C40: =IFERROR(VLOOKUP(A40,'9-Feedstock Characteristics'!$A$10:$R$117,17,FALSE)/1000,"") ->  | D40: =IFERROR(AVERAGE(D60,K60)*VLOOKUP($C$7,'23-Look up values'!$A$15:$B$16,2,FALSE),"") ->  | E40: =IFERROR(F40-D40,"") ->  | F40: =IFERROR(D40/Methane_CH4_Percent,"") -> 
A41: =IF('3-Digester Inputs'!B20=0,"",'3-Digester Inputs'!B20) ->  | B41: ='3-Digester Inputs'!P20 ->  | C41: =IFERROR(VLOOKUP(A41,'9-Feedstock Characteristics'!$A$10:$R$117,17,FALSE)/1000,"") ->  | D41: =IFERROR(AVERAGE(D61,K61)*VLOOKUP($C$7,'23-Look up values'!$A$15:$B$16,2,FALSE),"") -> 
A42: =IF('3-Digester Inputs'!B21=0,"",'3-Digester Inputs'!B21) ->  | B42: ='3-Digester Inputs'!P21 ->  | C42: =IFERROR(VLOOKUP(A42,'9-Feedstock Characteristics'!$A$10:$R$117,17,FALSE)/1000,"") ->  | D42: =IFERROR(AVERAGE(D62,K62)*VLOOKUP($C$7,'23-Look up values'!$A$15:$B$16,2,FALSE),"") -> 
A43: =IF('3-Digester Inputs'!B22=0,"",'3-Digester Inputs'!B22) ->  | B43: ='3-Digester Inputs'!P22 ->  | C43: =IFERROR(VLOOKUP(A43,'9-Feedstock Characteristics'!$A$10:$R$117,17,FALSE)/1000,"") ->  | D43: =IFERROR(AVERAGE(D63,K63)*VLOOKUP($C$7,'23-Look up values'!$A$15:$B$16,2,FALSE),"") -> 
A44: =IF('3-Digester Inputs'!B23=0,"",'3-Digester Inputs'!B23) ->  | B44: ='3-Digester Inputs'!P23 ->  | C44: =IFERROR(VLOOKUP(A44,'9-Feedstock Characteristics'!$A$10:$R$117,17,FALSE)/1000,"") ->  | D44: =IFERROR(AVERAGE(D64,K64)*VLOOKUP($C$7,'23-Look up values'!$A$15:$B$16,2,FALSE),"") -> 
A45: =IF('3-Digester Inputs'!B24=0,"",'3-Digester Inputs'!B24) ->  | B45: ='3-Digester Inputs'!P24 ->  | C45: =IFERROR(VLOOKUP(A45,'9-Feedstock Characteristics'!$A$10:$R$117,17,FALSE)/1000,"") ->  | D45: =IFERROR(AVERAGE(D65,K65)*VLOOKUP($C$7,'23-Look up values'!$A$15:$B$16,2,FALSE),"") -> 
A46: =IF('3-Digester Inputs'!B25=0,"",'3-Digester Inputs'!B25) ->  | B46: ='3-Digester Inputs'!P25 ->  | C46: =IFERROR(VLOOKUP(A46,'9-Feedstock Characteristics'!$A$10:$R$117,17,FALSE)/1000,"") ->  | D46: =IFERROR(AVERAGE(D66,K66)*VLOOKUP($C$7,'23-Look up values'!$A$15:$B$16,2,FALSE),"") -> 
A47: =IF('3-Digester Inputs'!B26=0,"",'3-Digester Inputs'!B26) ->  | B47: ='3-Digester Inputs'!P26 ->  | C47: =IFERROR(VLOOKUP(A47,'9-Feedstock Characteristics'!$A$10:$R$117,17,FALSE)/1000,"") ->  | D47: =IFERROR(AVERAGE(D67,K67)*VLOOKUP($C$7,'23-Look up values'!$A$15:$B$16,2,FALSE),"") -> 
A48: =IF('3-Digester Inputs'!B27=0,"",'3-Digester Inputs'!B27) ->  | B48: ='3-Digester Inputs'!P27 ->  | C48: =IFERROR(VLOOKUP(A48,'9-Feedstock Characteristics'!$A$10:$R$117,17,FALSE)/1000,"") ->  | D48: =IFERROR(AVERAGE(D68,K68)*VLOOKUP($C$7,'23-Look up values'!$A$15:$B$16,2,FALSE),"") -> 
A49: =IF('3-Digester Inputs'!B28=0,"",'3-Digester Inputs'!B28) ->  | B49: ='3-Digester Inputs'!P28 ->  | C49: =IFERROR(VLOOKUP(A49,'9-Feedstock Characteristics'!$A$10:$R$117,17,FALSE)/1000,"") ->  | D49: =IFERROR(AVERAGE(D69,K69)*VLOOKUP($C$7,'23-Look up values'!$A$15:$B$16,2,FALSE),"") -> 
A50: =IF('3-Digester Inputs'!B29=0,"",'3-Digester Inputs'!B29) ->  | B50: ='3-Digester Inputs'!P29 ->  | C50: =IFERROR(VLOOKUP(A50,'9-Feedstock Characteristics'!$A$10:$R$117,17,FALSE)/1000,"") ->  | D50: =IFERROR(AVERAGE(D70,K70)*VLOOKUP($C$7,'23-Look up values'!$A$15:$B$16,2,FALSE),"") -> 
A51: =IF('3-Digester Inputs'!B30=0,"",'3-Digester Inputs'!B30) ->  | B51: ='3-Digester Inputs'!P30 ->  | C51: =IFERROR(VLOOKUP(A51,'9-Feedstock Characteristics'!$A$10:$R$117,17,FALSE)/1000,"") ->  | D51: =IFERROR(AVERAGE(D71,K71)*VLOOKUP($C$7,'23-Look up values'!$A$15:$B$16,2,FALSE),"") -> 
A52: =IF('3-Digester Inputs'!B31=0,"",'3-Digester Inputs'!B31) ->  | B52: ='3-Digester Inputs'!P31 ->  | C52: =IFERROR(VLOOKUP(A52,'9-Feedstock Characteristics'!$A$10:$R$117,17,FALSE)/1000,"") ->  | D52: =IFERROR(AVERAGE(D72,K72)*VLOOKUP($C$7,'23-Look up values'!$A$15:$B$16,2,FALSE),"") -> 
A53: Total | B53: =SUM(B38:B52) -> 0 | C53: =SUMPRODUCT(B38:B52,C38:C52)/SUM(B38:B52) ->  | D53: =SUM(D38:D52) -> 0 | E53: =IFERROR(F53-D53,"") -> 0 | F53: =SUM(F38:F52) -> 0
A56: Biogas Production Per Retention Period (m3/day) - Low Production | H56: Biogas Production Per Retention Period (m3/day)- High Production | O56: Biogas Production Per Retention Period (m3/day) - Theoretical Maximum Production | V56: Biogas Production Per Retention Period (m3/day) - Average of Low and High Production
A57: Feedstock Type | B57: Volatile Solids (kg/day) | C57: Methane Yields (m3/kg of VS) | D57: Methane Production (m3/day) | E57: Other Gases (m3/day) | F57: Total Biogas Production (m3/day) | H57: Feedstock Type | I57: Volatile Solids (kg/day) | J57: Methane Yields (m3/kg of VS) | K57: Methane Production (m3/day) | L57: Other Gases (m3/day) | M57: Total Biogas Production (m3/day) | O57: Feedstock Type | P57: Volatile Solids (kg/day) | Q57: Methane Yields (m3/kg of VS) | R57: Methane Production (m3/day) | S57: Other Gases (m3/day) | T57: Total Biogas Production (m3/day) | V57: Feedstock Type | W57: Volatile Solids (kg/day) | X57: Methane Yields (m3/kg of VS) | Y57: Methane Production (m3/day) | Z57: Other Gases (m3/day) | AA57: Total Biogas Production (m3/day)
A58: =IF('3-Digester Inputs'!B17=0,"",'3-Digester Inputs'!B17) ->  | B58: ='3-Digester Inputs'!P17 ->  | C58: =IFERROR(VLOOKUP(A58,'9-Feedstock Characteristics'!$A$10:$R$117,17,FALSE)/1000,"") ->  | D58: =IFERROR(C58*B58*VLOOKUP(ReactorType&"_"&ReactorTemp,'11-Calibration Factors'!$A$4:$C$9,2,FALSE),"") ->  | E58: =IFERROR(F58-D58,"") ->  | F58: =IFERROR(D58/Methane_CH4_Percent,"") ->  | H58: =IF('3-Digester Inputs'!B17=0,"",'3-Digester Inputs'!B17) ->  | I58: ='3-Digester Inputs'!P17 ->  | J58: =IFERROR(VLOOKUP(H58,'9-Feedstock Characteristics'!$A$10:$R$117,17,FALSE)/1000,"") ->  | K58: =IFERROR(J58*I58*VLOOKUP(ReactorType&"_"&ReactorTemp,'11-Calibration Factors'!$A$4:$C$9,3,FALSE),"") ->  | L58: =IFERROR(M58-K58,"") ->  | M58: =IFERROR(K58/Methane_CH4_Percent,"") ->  | O58: =IF('3-Digester Inputs'!B17=0,"",'3-Digester Inputs'!B17) ->  | P58: ='3-Digester Inputs'!P17 ->  | Q58: =IFERROR(VLOOKUP(O58,'9-Feedstock Characteristics'!$A$10:$R$117,17,FALSE)/1000,"") ->  | R58: =IFERROR(Q58*P58,"") ->  | S58: =IFERROR(T58-R58,"") ->  | T58: =IFERROR(R58/Methane_CH4_Percent,"") ->  | V58: =IF('3-Digester Inputs'!B17=0,"",'3-Digester Inputs'!B17) ->  | W58: ='3-Digester Inputs'!P17 ->  | X58: =IFERROR(VLOOKUP(V58,'9-Feedstock Characteristics'!$A$10:$R$117,17,FALSE)/1000,"") ->  | Y58: =IFERROR(AVERAGE(D58,K58)," ") ->  | Z58: =IFERROR(AA58-Y58,"") ->  | AA58: =IFERROR(Y58/Methane_CH4_Percent,"") -> 
A59: =IF('3-Digester Inputs'!B18=0,"",'3-Digester Inputs'!B18) ->  | B59: ='3-Digester Inputs'!P18 ->  | C59: =IFERROR(VLOOKUP(A59,'9-Feedstock Characteristics'!$A$10:$R$117,17,FALSE)/1000,"") ->  | D59: =IFERROR(C59*B59*VLOOKUP(ReactorType&"_"&ReactorTemp,'11-Calibration Factors'!$A$4:$C$9,2,FALSE),"") ->  | E59: =IFERROR(F59-D59,"") ->  | F59: =IFERROR(D59/Methane_CH4_Percent,"") ->  | H59: =IF('3-Digester Inputs'!B18=0,"",'3-Digester Inputs'!B18) ->  | I59: ='3-Digester Inputs'!P18 ->  | J59: =IFERROR(VLOOKUP(H59,'9-Feedstock Characteristics'!$A$10:$R$117,17,FALSE)/1000,"") ->  | K59: =IFERROR(J59*I59*VLOOKUP(ReactorType&"_"&ReactorTemp,'11-Calibration Factors'!$A$4:$C$9,3,FALSE),"") ->  | L59: =IFERROR(M59-K59,"") ->  | M59: =IFERROR(K59/Methane_CH4_Percent,"") ->  | O59: =IF('3-Digester Inputs'!B18=0,"",'3-Digester Inputs'!B18) ->  | P59: ='3-Digester Inputs'!P18 ->  | Q59: =IFERROR(VLOOKUP(O59,'9-Feedstock Characteristics'!$A$10:$R$117,17,FALSE)/1000,"") ->  | R59: =IFERROR(Q59*P59,"") ->  | S59: =IFERROR(T59-R59,"") ->  | T59: =IFERROR(R59/Methane_CH4_Percent,"") ->  | V59: =IF('3-Digester Inputs'!B18=0,"",'3-Digester Inputs'!B18) ->  | W59: ='3-Digester Inputs'!P18 ->  | X59: =IFERROR(VLOOKUP(V59,'9-Feedstock Characteristics'!$A$10:$R$117,17,FALSE)/1000,"") ->  | Y59: =IFERROR(AVERAGE(D59,K59)," ") ->  | Z59: =IFERROR(AA59-Y59,"") -> 
A60: =IF('3-Digester Inputs'!B19=0,"",'3-Digester Inputs'!B19) ->  | B60: ='3-Digester Inputs'!P19 ->  | C60: =IFERROR(VLOOKUP(A60,'9-Feedstock Characteristics'!$A$10:$R$117,17,FALSE)/1000,"") ->  | D60: =IFERROR(C60*B60*VLOOKUP(ReactorType&"_"&ReactorTemp,'11-Calibration Factors'!$A$4:$C$9,2,FALSE),"") ->  | E60: =IFERROR(F60-D60,"") ->  | F60: =IFERROR(D60/Methane_CH4_Percent,"") ->  | H60: =IF('3-Digester Inputs'!B19=0,"",'3-Digester Inputs'!B19) ->  | I60: ='3-Digester Inputs'!P19 ->  | J60: =IFERROR(VLOOKUP(H60,'9-Feedstock Characteristics'!$A$10:$R$117,17,FALSE)/1000,"") ->  | K60: =IFERROR(J60*I60*VLOOKUP(ReactorType&"_"&ReactorTemp,'11-Calibration Factors'!$A$4:$C$9,3,FALSE),"") ->  | L60: =IFERROR(M60-K60,"") ->  | M60: =IFERROR(K60/Methane_CH4_Percent,"") ->  | O60: =IF('3-Digester Inputs'!B19=0,"",'3-Digester Inputs'!B19) ->  | P60: ='3-Digester Inputs'!P19 ->  | Q60: =IFERROR(VLOOKUP(O60,'9-Feedstock Characteristics'!$A$10:$R$117,17,FALSE)/1000,"") ->  | R60: =IFERROR(Q60*P60,"") ->  | S60: =IFERROR(T60-R60,"") ->  | T60: =IFERROR(R60/Methane_CH4_Percent,"") ->  | V60: =IF('3-Digester Inputs'!B19=0,"",'3-Digester Inputs'!B19) ->  | W60: ='3-Digester Inputs'!P19 ->  | X60: =IFERROR(VLOOKUP(V60,'9-Feedstock Characteristics'!$A$10:$R$117,17,FALSE)/1000,"") ->  | Y60: =IFERROR(AVERAGE(D60,K60)," ") -> 
A61: =IF('3-Digester Inputs'!B20=0,"",'3-Digester Inputs'!B20) ->  | B61: ='3-Digester Inputs'!P20 ->  | C61: =IFERROR(VLOOKUP(A61,'9-Feedstock Characteristics'!$A$10:$R$117,17,FALSE)/1000,"") ->  | D61: =IFERROR(C61*B61*VLOOKUP(ReactorType&"_"&ReactorTemp,'11-Calibration Factors'!$A$4:$C$9,2,FALSE),"") ->  | H61: =IF('3-Digester Inputs'!B20=0,"",'3-Digester Inputs'!B20) ->  | I61: ='3-Digester Inputs'!P20 ->  | J61: =IFERROR(VLOOKUP(H61,'9-Feedstock Characteristics'!$A$10:$R$117,17,FALSE)/1000,"") ->  | K61: =IFERROR(J61*I61*VLOOKUP(ReactorType&"_"&ReactorTemp,'11-Calibration Factors'!$A$4:$C$9,3,FALSE),"") ->  | O61: =IF('3-Digester Inputs'!B20=0,"",'3-Digester Inputs'!B20) ->  | P61: ='3-Digester Inputs'!P20 ->  | Q61: =IFERROR(VLOOKUP(O61,'9-Feedstock Characteristics'!$A$10:$R$117,17,FALSE)/1000,"") ->  | V61: =IF('3-Digester Inputs'!B20=0,"",'3-Digester Inputs'!B20) ->  | W61: ='3-Digester Inputs'!P20 ->  | X61: =IFERROR(VLOOKUP(V61,'9-Feedstock Characteristics'!$A$10:$R$117,17,FALSE)/1000,"") -> 
A62: =IF('3-Digester Inputs'!B21=0,"",'3-Digester Inputs'!B21) ->  | B62: ='3-Digester Inputs'!P21 ->  | C62: =IFERROR(VLOOKUP(A62,'9-Feedstock Characteristics'!$A$10:$R$117,17,FALSE)/1000,"") ->  | D62: =IFERROR(C62*B62*VLOOKUP(ReactorType&"_"&ReactorTemp,'11-Calibration Factors'!$A$4:$C$9,2,FALSE),"") ->  | H62: =IF('3-Digester Inputs'!B21=0,"",'3-Digester Inputs'!B21) ->  | I62: ='3-Digester Inputs'!P21 ->  | J62: =IFERROR(VLOOKUP(H62,'9-Feedstock Characteristics'!$A$10:$R$117,17,FALSE)/1000,"") ->  | K62: =IFERROR(J62*I62*VLOOKUP(ReactorType&"_"&ReactorTemp,'11-Calibration Factors'!$A$4:$C$9,3,FALSE),"") ->  | O62: =IF('3-Digester Inputs'!B21=0,"",'3-Digester Inputs'!B21) ->  | P62: ='3-Digester Inputs'!P21 ->  | Q62: =IFERROR(VLOOKUP(O62,'9-Feedstock Characteristics'!$A$10:$R$117,17,FALSE)/1000,"") ->  | V62: =IF('3-Digester Inputs'!B21=0,"",'3-Digester Inputs'!B21) ->  | W62: ='3-Digester Inputs'!P21 ->  | X62: =IFERROR(VLOOKUP(V62,'9-Feedstock Characteristics'!$A$10:$R$117,17,FALSE)/1000,"") -> 
A63: =IF('3-Digester Inputs'!B22=0,"",'3-Digester Inputs'!B22) ->  | B63: ='3-Digester Inputs'!P22 ->  | C63: =IFERROR(VLOOKUP(A63,'9-Feedstock Characteristics'!$A$10:$R$117,17,FALSE)/1000,"") ->  | D63: =IFERROR(C63*B63*VLOOKUP(ReactorType&"_"&ReactorTemp,'11-Calibration Factors'!$A$4:$C$9,2,FALSE),"") ->  | H63: =IF('3-Digester Inputs'!B22=0,"",'3-Digester Inputs'!B22) ->  | I63: ='3-Digester Inputs'!P22 ->  | J63: =IFERROR(VLOOKUP(H63,'9-Feedstock Characteristics'!$A$10:$R$117,17,FALSE)/1000,"") ->  | K63: =IFERROR(J63*I63*VLOOKUP(ReactorType&"_"&ReactorTemp,'11-Calibration Factors'!$A$4:$C$9,3,FALSE),"") ->  | O63: =IF('3-Digester Inputs'!B22=0,"",'3-Digester Inputs'!B22) ->  | P63: ='3-Digester Inputs'!P22 ->  | Q63: =IFERROR(VLOOKUP(O63,'9-Feedstock Characteristics'!$A$10:$R$117,17,FALSE)/1000,"") ->  | V63: =IF('3-Digester Inputs'!B22=0,"",'3-Digester Inputs'!B22) ->  | W63: ='3-Digester Inputs'!P22 ->  | X63: =IFERROR(VLOOKUP(V63,'9-Feedstock Characteristics'!$A$10:$R$117,17,FALSE)/1000,"") -> 
A64: =IF('3-Digester Inputs'!B23=0,"",'3-Digester Inputs'!B23) ->  | B64: ='3-Digester Inputs'!P23 ->  | C64: =IFERROR(VLOOKUP(A64,'9-Feedstock Characteristics'!$A$10:$R$117,17,FALSE)/1000,"") ->  | D64: =IFERROR(C64*B64*VLOOKUP(ReactorType&"_"&ReactorTemp,'11-Calibration Factors'!$A$4:$C$9,2,FALSE),"") ->  | H64: =IF('3-Digester Inputs'!B23=0,"",'3-Digester Inputs'!B23) ->  | I64: ='3-Digester Inputs'!P23 ->  | J64: =IFERROR(VLOOKUP(H64,'9-Feedstock Characteristics'!$A$10:$R$117,17,FALSE)/1000,"") ->  | K64: =IFERROR(J64*I64*VLOOKUP(ReactorType&"_"&ReactorTemp,'11-Calibration Factors'!$A$4:$C$9,3,FALSE),"") ->  | O64: =IF('3-Digester Inputs'!B23=0,"",'3-Digester Inputs'!B23) ->  | P64: ='3-Digester Inputs'!P23 ->  | Q64: =IFERROR(VLOOKUP(O64,'9-Feedstock Characteristics'!$A$10:$R$117,17,FALSE)/1000,"") ->  | V64: =IF('3-Digester Inputs'!B23=0,"",'3-Digester Inputs'!B23) ->  | W64: ='3-Digester Inputs'!P23 ->  | X64: =IFERROR(VLOOKUP(V64,'9-Feedstock Characteristics'!$A$10:$R$117,17,FALSE)/1000,"") -> 
A65: =IF('3-Digester Inputs'!B24=0,"",'3-Digester Inputs'!B24) ->  | B65: ='3-Digester Inputs'!P24 ->  | C65: =IFERROR(VLOOKUP(A65,'9-Feedstock Characteristics'!$A$10:$R$117,17,FALSE)/1000,"") ->  | D65: =IFERROR(C65*B65*VLOOKUP(ReactorType&"_"&ReactorTemp,'11-Calibration Factors'!$A$4:$C$9,2,FALSE),"") ->  | H65: =IF('3-Digester Inputs'!B24=0,"",'3-Digester Inputs'!B24) ->  | I65: ='3-Digester Inputs'!P24 ->  | J65: =IFERROR(VLOOKUP(H65,'9-Feedstock Characteristics'!$A$10:$R$117,17,FALSE)/1000,"") ->  | K65: =IFERROR(J65*I65*VLOOKUP(ReactorType&"_"&ReactorTemp,'11-Calibration Factors'!$A$4:$C$9,3,FALSE),"") ->  | O65: =IF('3-Digester Inputs'!B24=0,"",'3-Digester Inputs'!B24) ->  | P65: ='3-Digester Inputs'!P24 ->  | Q65: =IFERROR(VLOOKUP(O65,'9-Feedstock Characteristics'!$A$10:$R$117,17,FALSE)/1000,"") ->  | V65: =IF('3-Digester Inputs'!B24=0,"",'3-Digester Inputs'!B24) ->  | W65: ='3-Digester Inputs'!P24 ->  | X65: =IFERROR(VLOOKUP(V65,'9-Feedstock Characteristics'!$A$10:$R$117,17,FALSE)/1000,"") -> 
A66: =IF('3-Digester Inputs'!B25=0,"",'3-Digester Inputs'!B25) ->  | B66: ='3-Digester Inputs'!P25 ->  | C66: =IFERROR(VLOOKUP(A66,'9-Feedstock Characteristics'!$A$10:$R$117,17,FALSE)/1000,"") ->  | D66: =IFERROR(C66*B66*VLOOKUP(ReactorType&"_"&ReactorTemp,'11-Calibration Factors'!$A$4:$C$9,2,FALSE),"") ->  | H66: =IF('3-Digester Inputs'!B25=0,"",'3-Digester Inputs'!B25) ->  | I66: ='3-Digester Inputs'!P25 ->  | J66: =IFERROR(VLOOKUP(H66,'9-Feedstock Characteristics'!$A$10:$R$117,17,FALSE)/1000,"") ->  | K66: =IFERROR(J66*I66*VLOOKUP(ReactorType&"_"&ReactorTemp,'11-Calibration Factors'!$A$4:$C$9,3,FALSE),"") ->  | O66: =IF('3-Digester Inputs'!B25=0,"",'3-Digester Inputs'!B25) ->  | P66: ='3-Digester Inputs'!P25 ->  | Q66: =IFERROR(VLOOKUP(O66,'9-Feedstock Characteristics'!$A$10:$R$117,17,FALSE)/1000,"") ->  | V66: =IF('3-Digester Inputs'!B25=0,"",'3-Digester Inputs'!B25) ->  | W66: ='3-Digester Inputs'!P25 ->  | X66: =IFERROR(VLOOKUP(V66,'9-Feedstock Characteristics'!$A$10:$R$117,17,FALSE)/1000,"") -> 
A67: =IF('3-Digester Inputs'!B26=0,"",'3-Digester Inputs'!B26) ->  | B67: ='3-Digester Inputs'!P26 ->  | C67: =IFERROR(VLOOKUP(A67,'9-Feedstock Characteristics'!$A$10:$R$117,17,FALSE)/1000,"") ->  | D67: =IFERROR(C67*B67*VLOOKUP(ReactorType&"_"&ReactorTemp,'11-Calibration Factors'!$A$4:$C$9,2,FALSE),"") ->  | H67: =IF('3-Digester Inputs'!B26=0,"",'3-Digester Inputs'!B26) ->  | I67: ='3-Digester Inputs'!P26 ->  | J67: =IFERROR(VLOOKUP(H67,'9-Feedstock Characteristics'!$A$10:$R$117,17,FALSE)/1000,"") ->  | K67: =IFERROR(J67*I67*VLOOKUP(ReactorType&"_"&ReactorTemp,'11-Calibration Factors'!$A$4:$C$9,3,FALSE),"") ->  | O67: =IF('3-Digester Inputs'!B26=0,"",'3-Digester Inputs'!B26) ->  | P67: ='3-Digester Inputs'!P26 ->  | Q67: =IFERROR(VLOOKUP(O67,'9-Feedstock Characteristics'!$A$10:$R$117,17,FALSE)/1000,"") ->  | V67: =IF('3-Digester Inputs'!B26=0,"",'3-Digester Inputs'!B26) ->  | W67: ='3-Digester Inputs'!P26 ->  | X67: =IFERROR(VLOOKUP(V67,'9-Feedstock Characteristics'!$A$10:$R$117,17,FALSE)/1000,"") -> 
A68: =IF('3-Digester Inputs'!B27=0,"",'3-Digester Inputs'!B27) ->  | B68: ='3-Digester Inputs'!P27 ->  | C68: =IFERROR(VLOOKUP(A68,'9-Feedstock Characteristics'!$A$10:$R$117,17,FALSE)/1000,"") ->  | D68: =IFERROR(C68*B68*VLOOKUP(ReactorType&"_"&ReactorTemp,'11-Calibration Factors'!$A$4:$C$9,2,FALSE),"") ->  | H68: =IF('3-Digester Inputs'!B27=0,"",'3-Digester Inputs'!B27) ->  | I68: ='3-Digester Inputs'!P27 ->  | J68: =IFERROR(VLOOKUP(H68,'9-Feedstock Characteristics'!$A$10:$R$117,17,FALSE)/1000,"") ->  | K68: =IFERROR(J68*I68*VLOOKUP(ReactorType&"_"&ReactorTemp,'11-Calibration Factors'!$A$4:$C$9,3,FALSE),"") ->  | O68: =IF('3-Digester Inputs'!B27=0,"",'3-Digester Inputs'!B27) ->  | P68: ='3-Digester Inputs'!P27 ->  | Q68: =IFERROR(VLOOKUP(O68,'9-Feedstock Characteristics'!$A$10:$R$117,17,FALSE)/1000,"") ->  | V68: =IF('3-Digester Inputs'!B27=0,"",'3-Digester Inputs'!B27) ->  | W68: ='3-Digester Inputs'!P27 ->  | X68: =IFERROR(VLOOKUP(V68,'9-Feedstock Characteristics'!$A$10:$R$117,17,FALSE)/1000,"") -> 
A69: =IF('3-Digester Inputs'!B28=0,"",'3-Digester Inputs'!B28) ->  | B69: ='3-Digester Inputs'!P28 ->  | C69: =IFERROR(VLOOKUP(A69,'9-Feedstock Characteristics'!$A$10:$R$117,17,FALSE)/1000,"") ->  | D69: =IFERROR(C69*B69*VLOOKUP(ReactorType&"_"&ReactorTemp,'11-Calibration Factors'!$A$4:$C$9,2,FALSE),"") ->  | H69: =IF('3-Digester Inputs'!B28=0,"",'3-Digester Inputs'!B28) ->  | I69: ='3-Digester Inputs'!P28 ->  | J69: =IFERROR(VLOOKUP(H69,'9-Feedstock Characteristics'!$A$10:$R$117,17,FALSE)/1000,"") ->  | K69: =IFERROR(J69*I69*VLOOKUP(ReactorType&"_"&ReactorTemp,'11-Calibration Factors'!$A$4:$C$9,3,FALSE),"") ->  | O69: =IF('3-Digester Inputs'!B28=0,"",'3-Digester Inputs'!B28) ->  | P69: ='3-Digester Inputs'!P28 ->  | Q69: =IFERROR(VLOOKUP(O69,'9-Feedstock Characteristics'!$A$10:$R$117,17,FALSE)/1000,"") ->  | V69: =IF('3-Digester Inputs'!B28=0,"",'3-Digester Inputs'!B28) ->  | W69: ='3-Digester Inputs'!P28 ->  | X69: =IFERROR(VLOOKUP(V69,'9-Feedstock Characteristics'!$A$10:$R$117,17,FALSE)/1000,"") -> 
A70: =IF('3-Digester Inputs'!B29=0,"",'3-Digester Inputs'!B29) ->  | B70: ='3-Digester Inputs'!P29 ->  | C70: =IFERROR(VLOOKUP(A70,'9-Feedstock Characteristics'!$A$10:$R$117,17,FALSE)/1000,"") ->  | D70: =IFERROR(C70*B70*VLOOKUP(ReactorType&"_"&ReactorTemp,'11-Calibration Factors'!$A$4:$C$9,2,FALSE),"") ->  | H70: =IF('3-Digester Inputs'!B29=0,"",'3-Digester Inputs'!B29) ->  | I70: ='3-Digester Inputs'!P29 ->  | J70: =IFERROR(VLOOKUP(H70,'9-Feedstock Characteristics'!$A$10:$R$117,17,FALSE)/1000,"") ->  | K70: =IFERROR(J70*I70*VLOOKUP(ReactorType&"_"&ReactorTemp,'11-Calibration Factors'!$A$4:$C$9,3,FALSE),"") ->  | O70: =IF('3-Digester Inputs'!B29=0,"",'3-Digester Inputs'!B29) ->  | P70: ='3-Digester Inputs'!P29 ->  | Q70: =IFERROR(VLOOKUP(O70,'9-Feedstock Characteristics'!$A$10:$R$117,17,FALSE)/1000,"") ->  | V70: =IF('3-Digester Inputs'!B29=0,"",'3-Digester Inputs'!B29) ->  | W70: ='3-Digester Inputs'!P29 ->  | X70: =IFERROR(VLOOKUP(V70,'9-Feedstock Characteristics'!$A$10:$R$117,17,FALSE)/1000,"") -> 
A71: =IF('3-Digester Inputs'!B30=0,"",'3-Digester Inputs'!B30) ->  | B71: ='3-Digester Inputs'!P30 ->  | C71: =IFERROR(VLOOKUP(A71,'9-Feedstock Characteristics'!$A$10:$R$117,17,FALSE)/1000,"") ->  | D71: =IFERROR(C71*B71*VLOOKUP(ReactorType&"_"&ReactorTemp,'11-Calibration Factors'!$A$4:$C$9,2,FALSE),"") ->  | H71: =IF('3-Digester Inputs'!B30=0,"",'3-Digester Inputs'!B30) ->  | I71: ='3-Digester Inputs'!P30 ->  | J71: =IFERROR(VLOOKUP(H71,'9-Feedstock Characteristics'!$A$10:$R$117,17,FALSE)/1000,"") ->  | K71: =IFERROR(J71*I71*VLOOKUP(ReactorType&"_"&ReactorTemp,'11-Calibration Factors'!$A$4:$C$9,3,FALSE),"") ->  | O71: =IF('3-Digester Inputs'!B30=0,"",'3-Digester Inputs'!B30) ->  | P71: ='3-Digester Inputs'!P30 ->  | Q71: =IFERROR(VLOOKUP(O71,'9-Feedstock Characteristics'!$A$10:$R$117,17,FALSE)/1000,"") ->  | V71: =IF('3-Digester Inputs'!B30=0,"",'3-Digester Inputs'!B30) ->  | W71: ='3-Digester Inputs'!P30 ->  | X71: =IFERROR(VLOOKUP(V71,'9-Feedstock Characteristics'!$A$10:$R$117,17,FALSE)/1000,"") -> 
A72: =IF('3-Digester Inputs'!B31=0,"",'3-Digester Inputs'!B31) ->  | B72: ='3-Digester Inputs'!P31 ->  | C72: =IFERROR(VLOOKUP(A72,'9-Feedstock Characteristics'!$A$10:$R$117,17,FALSE)/1000,"") ->  | D72: =IFERROR(C72*B72*VLOOKUP(ReactorType&"_"&ReactorTemp,'11-Calibration Factors'!$A$4:$C$9,2,FALSE),"") ->  | H72: =IF('3-Digester Inputs'!B31=0,"",'3-Digester Inputs'!B31) ->  | I72: ='3-Digester Inputs'!P31 ->  | J72: =IFERROR(VLOOKUP(H72,'9-Feedstock Characteristics'!$A$10:$R$117,17,FALSE)/1000,"") ->  | K72: =IFERROR(J72*I72*VLOOKUP(ReactorType&"_"&ReactorTemp,'11-Calibration Factors'!$A$4:$C$9,3,FALSE),"") ->  | O72: =IF('3-Digester Inputs'!B31=0,"",'3-Digester Inputs'!B31) ->  | P72: ='3-Digester Inputs'!P31 ->  | Q72: =IFERROR(VLOOKUP(O72,'9-Feedstock Characteristics'!$A$10:$R$117,17,FALSE)/1000,"") ->  | V72: =IF('3-Digester Inputs'!B31=0,"",'3-Digester Inputs'!B31) ->  | W72: ='3-Digester Inputs'!P31 ->  | X72: =IFERROR(VLOOKUP(V72,'9-Feedstock Characteristics'!$A$10:$R$117,17,FALSE)/1000,"") -> 
A73: Total | B73: =SUM(B58:B72) -> 0 | C73: =SUMPRODUCT(B58:B72,C58:C72)/SUM(B58:B72) ->  | D73: =SUM(D58:D72) -> 0 | E73: =IFERROR(F73-D73,"") -> 0 | F73: =SUM(F58:F72) -> 0 | H73: Total | I73: =SUM(I58:I72) -> 0 | J73: =SUMPRODUCT(I58:I72,J58:J72)/SUM(I58:I72) ->  | K73: =SUM(K58:K72) -> 0 | L73: =IFERROR(M73-K73,"") -> 0 | M73: =SUM(M58:M72) -> 0 | O73: Total | P73: =SUM(P58:P72) -> 0 | Q73: =SUMPRODUCT(P58:P72,Q58:Q72)/SUM(P58:P72) ->  | R73: =SUM(R58:R72) -> 0 | S73: =IFERROR(T73-R73,"") -> 0 | T73: =SUM(T58:T72) -> 0 | V73: Total | W73: =SUM(W58:W72) -> 0 | X73: =SUMPRODUCT(W58:W72,X58:X72)/SUM(W58:W72) ->  | Y73: =SUM(Y58:Y72) -> 0 | Z73: =IFERROR(AA73-Y73,"") -> 0 | AA73: =SUM(AA58:AA72) -> 0
A75: Biogas Production - The estimated low and high production values use calibration factors from actual observations that represent the 25th and 75th percentile values of the ratio between measured and modeled data. These values are used to adjust the maximum potential biogas generation values to estimate the likely biogas generation potential values. | B75: Estimated Value (low) | C75: Estimated Value (high) | D75: Theoretical Maximum Potential | E75: Unit | F75: Average
A76: Annual Biogas Production | B76: =IFERROR((D76*VLOOKUP(ReactorType&"_"&ReactorTemp,'11-Calibration Factors'!$A$4:$C$9,2,FALSE))*VLOOKUP(E76,'23-Look up values'!$A$13:$B$14,2,FALSE)," ") -> 0 | C76: =IFERROR((D76*VLOOKUP(ReactorType&"_"&ReactorTemp,'11-Calibration Factors'!$A$4:$C$9,3,FALSE))*VLOOKUP(E76,'23-Look up values'!$A$13:$B$14,2,FALSE)," ") -> 0 | D76: =IFERROR(T73*365*VLOOKUP(E76,'23-Look up values'!$A$13:$B$14,2,FALSE)," ") -> 0 | E76: m3/year | F76: =AVERAGE(B76:C76) -> 0
A77: Annual Biogas Production | B77: =B76/365 -> 0 | C77: =C76/365 -> 0 | D77: 0 | E77: m3/day | F77: =AVERAGE(B77:C77) -> 0 | G77: =F77=F53 -> TRUE
A78: Annual Methane Production | B78: =IFERROR($D$78*VLOOKUP(ReactorType&"_"&ReactorTemp,'11-Calibration Factors'!$A$4:$C$9,2,FALSE)," ") -> 0 | C78: =IFERROR($D$78*VLOOKUP(ReactorType&"_"&ReactorTemp,'11-Calibration Factors'!$A$4:$C$9,3,FALSE)," ") -> 0 | D78: =IFERROR(R73*365*VLOOKUP(E78,'23-Look up values'!$A$13:$B$14,2,FALSE)," ") -> 0 | E78: m3/year | F78: =AVERAGE(B78:C78) -> 0
A79: Annual Methane Production | B79: =B78/365 -> 0 | C79: =C78/365 -> 0 | D79: =D78/365 -> 0 | E79: m3/day | F79: =AVERAGE(B79:C79) -> 0 | G79: =Estimated_Avg_Daily_Methane_Production=D53 -> TRUE

Sheet 7-Digestate Production
A1: Digestate Production Summary Information
A6: Total Digestate Production | B6: =SUM(F50:G50) -> 0 | C6: kg/day
A8: ="Total Digestate Production ("&C6&")" -> Total Digestate Production (kg/day)
A33: ="Total Digestate Production ("&C6&")" -> Total Digestate Production (kg/day)
A34: Waste Type | B34: Non biodegradable solids | C34: Remaining Volatile Solids | D34: Moisture | E34: Digester Solids | F34: Dry Sludge | G34: Liquid Effluent
A35: =IF('3-Digester Inputs'!B17=0,"",'3-Digester Inputs'!B17) ->  | B35: =IFERROR('3-Digester Inputs'!BE17*'3-Digester Inputs'!I17/VLOOKUP($C$6,'23-Look up values'!$A$4:$B$5,2,FALSE),"") ->  | C35: =IFERROR(C72/VLOOKUP($C$6,'23-Look up values'!$A$4:$B$5,2,FALSE),"") ->  | D35: =IFERROR(D72/VLOOKUP($C$6,'23-Look up values'!$A$4:$B$5,2,FALSE),"") ->  | E35: =IFERROR(C35+B35+D35,"") ->  | F35: =IFERROR(IF('3-Digester Inputs'!$C$11="Yes",E35*solid_capture_efficenicy_of_dewatering_equipment,0),"") -> 0 | G35: =IFERROR(E35-F35,"") -> 
A36: =IF('3-Digester Inputs'!B18=0,"",'3-Digester Inputs'!B18) ->  | B36: =IFERROR('3-Digester Inputs'!BE18*'3-Digester Inputs'!I18/VLOOKUP($C$6,'23-Look up values'!$A$4:$B$5,2,FALSE),"") ->  | C36: =IFERROR(C73/VLOOKUP($C$6,'23-Look up values'!$A$4:$B$5,2,FALSE),"") ->  | D36: =IFERROR(D73/VLOOKUP($C$6,'23-Look up values'!$A$4:$B$5,2,FALSE),"") ->  | E36: =IFERROR(C36+B36+D36,"") ->  | F36: =IFERROR(IF('3-Digester Inputs'!$C$11="Yes",E36*solid_capture_efficenicy_of_dewatering_equipment,0),"") -> 0 | G36: =IFERROR(E36-F36,"") -> 
A37: =IF('3-Digester Inputs'!B19=0,"",'3-Digester Inputs'!B19) ->  | B37: =IFERROR('3-Digester Inputs'!BE19*'3-Digester Inputs'!I19/VLOOKUP($C$6,'23-Look up values'!$A$4:$B$5,2,FALSE),"") ->  | C37: =IFERROR(C74/VLOOKUP($C$6,'23-Look up values'!$A$4:$B$5,2,FALSE),"") ->  | D37: =IFERROR(D74/VLOOKUP($C$6,'23-Look up values'!$A$4:$B$5,2,FALSE),"") ->  | F37: =IFERROR(IF('3-Digester Inputs'!$C$11="Yes",E37*solid_capture_efficenicy_of_dewatering_equipment,0),"") -> 0
A38: =IF('3-Digester Inputs'!B20=0,"",'3-Digester Inputs'!B20) ->  | B38: =IFERROR('3-Digester Inputs'!BE20*'3-Digester Inputs'!I20/VLOOKUP($C$6,'23-Look up values'!$A$4:$B$5,2,FALSE),"") ->  | C38: =IFERROR(C75/VLOOKUP($C$6,'23-Look up values'!$A$4:$B$5,2,FALSE),"") ->  | D38: =IFERROR(D75/VLOOKUP($C$6,'23-Look up values'!$A$4:$B$5,2,FALSE),"") ->  | F38: =IFERROR(IF('3-Digester Inputs'!$C$11="Yes",E38*solid_capture_efficenicy_of_dewatering_equipment,0),"") -> 0
A39: =IF('3-Digester Inputs'!B21=0,"",'3-Digester Inputs'!B21) ->  | B39: =IFERROR('3-Digester Inputs'!BE21*'3-Digester Inputs'!I21/VLOOKUP($C$6,'23-Look up values'!$A$4:$B$5,2,FALSE),"") ->  | C39: =IFERROR(C76/VLOOKUP($C$6,'23-Look up values'!$A$4:$B$5,2,FALSE),"") ->  | D39: =IFERROR(D76/VLOOKUP($C$6,'23-Look up values'!$A$4:$B$5,2,FALSE),"") ->  | F39: =IFERROR(IF('3-Digester Inputs'!$C$11="Yes",E39*solid_capture_efficenicy_of_dewatering_equipment,0),"") -> 0
A40: =IF('3-Digester Inputs'!B22=0,"",'3-Digester Inputs'!B22) ->  | B40: =IFERROR('3-Digester Inputs'!BE22*'3-Digester Inputs'!I22/VLOOKUP($C$6,'23-Look up values'!$A$4:$B$5,2,FALSE),"") ->  | C40: =IFERROR(C77/VLOOKUP($C$6,'23-Look up values'!$A$4:$B$5,2,FALSE),"") ->  | D40: =IFERROR(D77/VLOOKUP($C$6,'23-Look up values'!$A$4:$B$5,2,FALSE),"") ->  | F40: =IFERROR(IF('3-Digester Inputs'!$C$11="Yes",E40*solid_capture_efficenicy_of_dewatering_equipment,0),"") -> 0
A41: =IF('3-Digester Inputs'!B23=0,"",'3-Digester Inputs'!B23) ->  | B41: =IFERROR('3-Digester Inputs'!BE23*'3-Digester Inputs'!I23/VLOOKUP($C$6,'23-Look up values'!$A$4:$B$5,2,FALSE),"") ->  | C41: =IFERROR(C78/VLOOKUP($C$6,'23-Look up values'!$A$4:$B$5,2,FALSE),"") ->  | D41: =IFERROR(D78/VLOOKUP($C$6,'23-Look up values'!$A$4:$B$5,2,FALSE),"") ->  | F41: =IFERROR(IF('3-Digester Inputs'!$C$11="Yes",E41*solid_capture_efficenicy_of_dewatering_equipment,0),"") -> 0
A42: =IF('3-Digester Inputs'!B24=0,"",'3-Digester Inputs'!B24) ->  | B42: =IFERROR('3-Digester Inputs'!BE24*'3-Digester Inputs'!I24/VLOOKUP($C$6,'23-Look up values'!$A$4:$B$5,2,FALSE),"") ->  | C42: =IFERROR(C79/VLOOKUP($C$6,'23-Look up values'!$A$4:$B$5,2,FALSE),"") ->  | D42: =IFERROR(D79/VLOOKUP($C$6,'23-Look up values'!$A$4:$B$5,2,FALSE),"") ->  | F42: =IFERROR(IF('3-Digester Inputs'!$C$11="Yes",E42*solid_capture_efficenicy_of_dewatering_equipment,0),"") -> 0
A43: =IF('3-Digester Inputs'!B25=0,"",'3-Digester Inputs'!B25) ->  | B43: =IFERROR('3-Digester Inputs'!BE25*'3-Digester Inputs'!I25/VLOOKUP($C$6,'23-Look up values'!$A$4:$B$5,2,FALSE),"") ->  | C43: =IFERROR(C80/VLOOKUP($C$6,'23-Look up values'!$A$4:$B$5,2,FALSE),"") ->  | D43: =IFERROR(D80/VLOOKUP($C$6,'23-Look up values'!$A$4:$B$5,2,FALSE),"") ->  | F43: =IFERROR(IF('3-Digester Inputs'!$C$11="Yes",E43*solid_capture_efficenicy_of_dewatering_equipment,0),"") -> 0
A44: =IF('3-Digester Inputs'!B26=0,"",'3-Digester Inputs'!B26) ->  | B44: =IFERROR('3-Digester Inputs'!BE26*'3-Digester Inputs'!I26/VLOOKUP($C$6,'23-Look up values'!$A$4:$B$5,2,FALSE),"") ->  | C44: =IFERROR(C81/VLOOKUP($C$6,'23-Look up values'!$A$4:$B$5,2,FALSE),"") ->  | D44: =IFERROR(D81/VLOOKUP($C$6,'23-Look up values'!$A$4:$B$5,2,FALSE),"") ->  | F44: =IFERROR(IF('3-Digester Inputs'!$C$11="Yes",E44*solid_capture_efficenicy_of_dewatering_equipment,0),"") -> 0
A45: =IF('3-Digester Inputs'!B27=0,"",'3-Digester Inputs'!B27) ->  | B45: =IFERROR('3-Digester Inputs'!BE27*'3-Digester Inputs'!I27/VLOOKUP($C$6,'23-Look up values'!$A$4:$B$5,2,FALSE),"") ->  | C45: =IFERROR(C82/VLOOKUP($C$6,'23-Look up values'!$A$4:$B$5,2,FALSE),"") ->  | D45: =IFERROR(D82/VLOOKUP($C$6,'23-Look up values'!$A$4:$B$5,2,FALSE),"") ->  | F45: =IFERROR(IF('3-Digester Inputs'!$C$11="Yes",E45*solid_capture_efficenicy_of_dewatering_equipment,0),"") -> 0
A46: =IF('3-Digester Inputs'!B28=0,"",'3-Digester Inputs'!B28) ->  | B46: =IFERROR('3-Digester Inputs'!BE28*'3-Digester Inputs'!I28/VLOOKUP($C$6,'23-Look up values'!$A$4:$B$5,2,FALSE),"") ->  | C46: =IFERROR(C83/VLOOKUP($C$6,'23-Look up values'!$A$4:$B$5,2,FALSE),"") ->  | D46: =IFERROR(D83/VLOOKUP($C$6,'23-Look up values'!$A$4:$B$5,2,FALSE),"") ->  | F46: =IFERROR(IF('3-Digester Inputs'!$C$11="Yes",E46*solid_capture_efficenicy_of_dewatering_equipment,0),"") -> 0
A47: =IF('3-Digester Inputs'!B29=0,"",'3-Digester Inputs'!B29) ->  | B47: =IFERROR('3-Digester Inputs'!BE29*'3-Digester Inputs'!I29/VLOOKUP($C$6,'23-Look up values'!$A$4:$B$5,2,FALSE),"") ->  | C47: =IFERROR(C84/VLOOKUP($C$6,'23-Look up values'!$A$4:$B$5,2,FALSE),"") ->  | D47: =IFERROR(D84/VLOOKUP($C$6,'23-Look up values'!$A$4:$B$5,2,FALSE),"") ->  | F47: =IFERROR(IF('3-Digester Inputs'!$C$11="Yes",E47*solid_capture_efficenicy_of_dewatering_equipment,0),"") -> 0
A48: =IF('3-Digester Inputs'!B30=0,"",'3-Digester Inputs'!B30) ->  | B48: =IFERROR('3-Digester Inputs'!BE30*'3-Digester Inputs'!I30/VLOOKUP($C$6,'23-Look up values'!$A$4:$B$5,2,FALSE),"") ->  | C48: =IFERROR(C85/VLOOKUP($C$6,'23-Look up values'!$A$4:$B$5,2,FALSE),"") ->  | D48: =IFERROR(D85/VLOOKUP($C$6,'23-Look up values'!$A$4:$B$5,2,FALSE),"") ->  | F48: =IFERROR(IF('3-Digester Inputs'!$C$11="Yes",E48*solid_capture_efficenicy_of_dewatering_equipment,0),"") -> 0
A49: =IF('3-Digester Inputs'!B31=0,"",'3-Digester Inputs'!B31) ->  | B49: =IFERROR('3-Digester Inputs'!BE31*'3-Digester Inputs'!I31/VLOOKUP($C$6,'23-Look up values'!$A$4:$B$5,2,FALSE),"") ->  | C49: =IFERROR(C86/VLOOKUP($C$6,'23-Look up values'!$A$4:$B$5,2,FALSE),"") ->  | D49: =IFERROR(D86/VLOOKUP($C$6,'23-Look up values'!$A$4:$B$5,2,FALSE),"") ->  | F49: =IFERROR(IF('3-Digester Inputs'!$C$11="Yes",E49*solid_capture_efficenicy_of_dewatering_equipment,0),"") -> 0
A50: Total | B50: =SUM(B35:B49) -> 0 | C50: 0 | D50: =SUM(D35:D49) -> 0 | E50: =SUM(E35:E49) -> 0 | F50: =SUM(F35:F48) -> 0 | G50: =SUM(G35:G48) -> 0
A70: Digestate Production (kg / day)
A71: Waste Type | B71: Non biodegradable solids | C71: Remaining Volatile Solids | D71: Moisture | E71: Digester Solids | F71: Dry Sludge | G71: Liquid Effluent
A72: =IF('3-Digester Inputs'!B17=0,"",'3-Digester Inputs'!B17) ->  | B72: =IFERROR('3-Digester Inputs'!BE17*'3-Digester Inputs'!I17,"") ->  | C72: =IFERROR('6-Biogas Production'!W58-'6-Biogas Production'!AA58*Assumed_Biogas_Density,"") ->  | D72: =IFERROR(('3-Digester Inputs'!F17*'3-Digester Inputs'!C17)/VLOOKUP('3-Digester Inputs'!D17,'23-Look up values'!A$4:B$9,2,FALSE),"") ->  | E72: =IFERROR(C72+B72+D72,"") ->  | F72: =IFERROR(IF('3-Digester Inputs'!$C$11="Yes",E72*solid_capture_efficenicy_of_dewatering_equipment,0),"") -> 0 | G72: =IFERROR(E72-F72,"") -> 
A73: =IF('3-Digester Inputs'!B18=0,"",'3-Digester Inputs'!B18) ->  | B73: =IFERROR('3-Digester Inputs'!BE18*'3-Digester Inputs'!I18,"") ->  | C73: =IFERROR('6-Biogas Production'!W59-'6-Biogas Production'!AA59*Assumed_Biogas_Density,"") ->  | D73: =IFERROR(('3-Digester Inputs'!F18*'3-Digester Inputs'!C18)/VLOOKUP('3-Digester Inputs'!D18,'23-Look up values'!A$4:B$9,2,FALSE),"") ->  | E73: =IFERROR(C73+B73+D73,"") ->  | F73: =IFERROR(IF('3-Digester Inputs'!$C$11="Yes",E73*solid_capture_efficenicy_of_dewatering_equipment,0),"") -> 0 | G73: =IFERROR(E73-F73,"") -> 
A74: =IF('3-Digester Inputs'!B19=0,"",'3-Digester Inputs'!B19) ->  | B74: =IFERROR('3-Digester Inputs'!BE19*'3-Digester Inputs'!I19,"") ->  | C74: =IFERROR('6-Biogas Production'!W60-'6-Biogas Production'!AA60*Assumed_Biogas_Density,"") ->  | D74: =IFERROR(('3-Digester Inputs'!F19*'3-Digester Inputs'!C19)/VLOOKUP('3-Digester Inputs'!D19,'23-Look up values'!A$4:B$9,2,FALSE),"") ->  | F74: =IFERROR(IF('3-Digester Inputs'!$C$11="Yes",E74*solid_capture_efficenicy_of_dewatering_equipment,0),"") -> 0
A75: =IF('3-Digester Inputs'!B20=0,"",'3-Digester Inputs'!B20) ->  | B75: =IFERROR('3-Digester Inputs'!BE20*'3-Digester Inputs'!I20,"") ->  | C75: =IFERROR('6-Biogas Production'!W61-'6-Biogas Production'!AA61*Assumed_Biogas_Density,"") ->  | D75: =IFERROR(('3-Digester Inputs'!F20*'3-Digester Inputs'!C20)/VLOOKUP('3-Digester Inputs'!D20,'23-Look up values'!A$4:B$9,2,FALSE),"") ->  | F75: =IFERROR(IF('3-Digester Inputs'!$C$11="Yes",E75*solid_capture_efficenicy_of_dewatering_equipment,0),"") -> 0
A76: =IF('3-Digester Inputs'!B21=0,"",'3-Digester Inputs'!B21) ->  | B76: =IFERROR('3-Digester Inputs'!BE21*'3-Digester Inputs'!I21,"") ->  | C76: =IFERROR('6-Biogas Production'!W62-'6-Biogas Production'!AA62*Assumed_Biogas_Density,"") ->  | D76: =IFERROR(('3-Digester Inputs'!F21*'3-Digester Inputs'!C21)/VLOOKUP('3-Digester Inputs'!D21,'23-Look up values'!A$4:B$9,2,FALSE),"") ->  | F76: =IFERROR(IF('3-Digester Inputs'!$C$11="Yes",E76*solid_capture_efficenicy_of_dewatering_equipment,0),"") -> 0
A77: =IF('3-Digester Inputs'!B22=0,"",'3-Digester Inputs'!B22) ->  | B77: =IFERROR('3-Digester Inputs'!BE22*'3-Digester Inputs'!I22,"") ->  | C77: =IFERROR('6-Biogas Production'!W63-'6-Biogas Production'!AA63*Assumed_Biogas_Density,"") ->  | D77: =IFERROR(('3-Digester Inputs'!F22*'3-Digester Inputs'!C22)/VLOOKUP('3-Digester Inputs'!D22,'23-Look up values'!A$4:B$9,2,FALSE),"") ->  | F77: =IFERROR(IF('3-Digester Inputs'!$C$11="Yes",E77*solid_capture_efficenicy_of_dewatering_equipment,0),"") -> 0
A78: =IF('3-Digester Inputs'!B23=0,"",'3-Digester Inputs'!B23) ->  | B78: =IFERROR('3-Digester Inputs'!BE23*'3-Digester Inputs'!I23,"") ->  | C78: =IFERROR('6-Biogas Production'!W64-'6-Biogas Production'!AA64*Assumed_Biogas_Density,"") ->  | D78: =IFERROR(('3-Digester Inputs'!F23*'3-Digester Inputs'!C23)/VLOOKUP('3-Digester Inputs'!D23,'23-Look up values'!A$4:B$9,2,FALSE),"") ->  | F78: =IFERROR(IF('3-Digester Inputs'!$C$11="Yes",E78*solid_capture_efficenicy_of_dewatering_equipment,0),"") -> 0
A79: =IF('3-Digester Inputs'!B24=0,"",'3-Digester Inputs'!B24) ->  | B79: =IFERROR('3-Digester Inputs'!BE24*'3-Digester Inputs'!I24,"") ->  | C79: =IFERROR('6-Biogas Production'!W65-'6-Biogas Production'!AA65*Assumed_Biogas_Density,"") ->  | D79: =IFERROR(('3-Digester Inputs'!F24*'3-Digester Inputs'!C24)/VLOOKUP('3-Digester Inputs'!D24,'23-Look up values'!A$4:B$9,2,FALSE),"") ->  | F79: =IFERROR(IF('3-Digester Inputs'!$C$11="Yes",E79*solid_capture_efficenicy_of_dewatering_equipment,0),"") -> 0
A80: =IF('3-Digester Inputs'!B25=0,"",'3-Digester Inputs'!B25) ->  | B80: =IFERROR('3-Digester Inputs'!BE25*'3-Digester Inputs'!I25,"") ->  | C80: =IFERROR('6-Biogas Production'!W66-'6-Biogas Production'!AA66*Assumed_Biogas_Density,"") ->  | D80: =IFERROR(('3-Digester Inputs'!F25*'3-Digester Inputs'!C25)/VLOOKUP('3-Digester Inputs'!D25,'23-Look up values'!A$4:B$9,2,FALSE),"") ->  | F80: =IFERROR(IF('3-Digester Inputs'!$C$11="Yes",E80*solid_capture_efficenicy_of_dewatering_equipment,0),"") -> 0
A81: =IF('3-Digester Inputs'!B26=0,"",'3-Digester Inputs'!B26) ->  | B81: =IFERROR('3-Digester Inputs'!BE26*'3-Digester Inputs'!I26,"") ->  | C81: =IFERROR('6-Biogas Production'!W67-'6-Biogas Production'!AA67*Assumed_Biogas_Density,"") ->  | D81: =IFERROR(('3-Digester Inputs'!F26*'3-Digester Inputs'!C26)/VLOOKUP('3-Digester Inputs'!D26,'23-Look up values'!A$4:B$9,2,FALSE),"") ->  | F81: =IFERROR(IF('3-Digester Inputs'!$C$11="Yes",E81*solid_capture_efficenicy_of_dewatering_equipment,0),"") -> 0
A82: =IF('3-Digester Inputs'!B27=0,"",'3-Digester Inputs'!B27) ->  | B82: =IFERROR('3-Digester Inputs'!BE27*'3-Digester Inputs'!I27,"") ->  | C82: =IFERROR('6-Biogas Production'!W68-'6-Biogas Production'!AA68*Assumed_Biogas_Density,"") ->  | D82: =IFERROR(('3-Digester Inputs'!F27*'3-Digester Inputs'!C27)/VLOOKUP('3-Digester Inputs'!D27,'23-Look up values'!A$4:B$9,2,FALSE),"") ->  | F82: =IFERROR(IF('3-Digester Inputs'!$C$11="Yes",E82*solid_capture_efficenicy_of_dewatering_equipment,0),"") -> 0
A83: =IF('3-Digester Inputs'!B28=0,"",'3-Digester Inputs'!B28) ->  | B83: =IFERROR('3-Digester Inputs'!BE28*'3-Digester Inputs'!I28,"") ->  | C83: =IFERROR('6-Biogas Production'!W69-'6-Biogas Production'!AA69*Assumed_Biogas_Density,"") ->  | D83: =IFERROR(('3-Digester Inputs'!F28*'3-Digester Inputs'!C28)/VLOOKUP('3-Digester Inputs'!D28,'23-Look up values'!A$4:B$9,2,FALSE),"") ->  | F83: =IFERROR(IF('3-Digester Inputs'!$C$11="Yes",E83*solid_capture_efficenicy_of_dewatering_equipment,0),"") -> 0
A84: =IF('3-Digester Inputs'!B29=0,"",'3-Digester Inputs'!B29) ->  | B84: =IFERROR('3-Digester Inputs'!BE29*'3-Digester Inputs'!I29,"") ->  | C84: =IFERROR('6-Biogas Production'!W70-'6-Biogas Production'!AA70*Assumed_Biogas_Density,"") ->  | D84: =IFERROR(('3-Digester Inputs'!F29*'3-Digester Inputs'!C29)/VLOOKUP('3-Digester Inputs'!D29,'23-Look up values'!A$4:B$9,2,FALSE),"") ->  | F84: =IFERROR(IF('3-Digester Inputs'!$C$11="Yes",E84*solid_capture_efficenicy_of_dewatering_equipment,0),"") -> 0
A85: =IF('3-Digester Inputs'!B30=0,"",'3-Digester Inputs'!B30) ->  | B85: =IFERROR('3-Digester Inputs'!BE30*'3-Digester Inputs'!I30,"") ->  | C85: =IFERROR('6-Biogas Production'!W71-'6-Biogas Production'!AA71*Assumed_Biogas_Density,"") ->  | D85: =IFERROR(('3-Digester Inputs'!F30*'3-Digester Inputs'!C30)/VLOOKUP('3-Digester Inputs'!D30,'23-Look up values'!A$4:B$9,2,FALSE),"") ->  | F85: =IFERROR(IF('3-Digester Inputs'!$C$11="Yes",E85*solid_capture_efficenicy_of_dewatering_equipment,0),"") -> 0
A86: =IF('3-Digester Inputs'!B31=0,"",'3-Digester Inputs'!B31) ->  | B86: =IFERROR('3-Digester Inputs'!BE31*'3-Digester Inputs'!I31,"") ->  | C86: =IFERROR('6-Biogas Production'!W72-'6-Biogas Production'!AA72*Assumed_Biogas_Density,"") ->  | D86: =IFERROR(('3-Digester Inputs'!F31*'3-Digester Inputs'!C31)/VLOOKUP('3-Digester Inputs'!D31,'23-Look up values'!A$4:B$9,2,FALSE),"") ->  | F86: =IFERROR(IF('3-Digester Inputs'!$C$11="Yes",E86*solid_capture_efficenicy_of_dewatering_equipment,0),"") -> 0
A87: Total | B87: =SUM(B72:B86) -> 0 | C87: =SUM(C72:C86) -> 0 | D87: =SUM(D72:D86) -> 0 | E87: =SUM(E72:E86) -> 0 | F87: =SUM(F72:F85) -> 0 | G87: =SUM(G72:G85) -> 0

Sheet 8-Emission Reductions
A1: Annual Project Net Emissions
A8: Annual Baseline Emissions (MtCO2e) | B8: =IFERROR(SUM(E28:E29),"-") -> 0
A9: Annual Project Emissions (MtCO2e) | B9: =IFERROR(SUM(E31:E34),"-") -> 0
A10: Annual Projected Net Emissions Reductions (MtCO2e) | B10: =IFERROR(B8-B9,"-") -> 0
A12: Annual Project Net Emissions (Methane only) | B12: Methane | C12: Methane
A13: Emissions Category | B13: kg CH4 per year | C13: metric tons CH4 per year
A14: Baseline Emissions
A15: Gross Methane Emissions from Manure | B15: =ManureMethane -> 0 | C15: =B15/1000 -> 0
A16: Gross Methane Emissions from Co-Digested Waste | B16: =OtherWasteMethane -> 0 | C16: =B16/1000 -> 0
A17: Project Emissions
A18: Methane Leakage | B18: =ProjectMethaneLeakage -> 0 | C18: 0
A19: Flare-Related Emissions | B19: =IFERROR(FlareRelatedEmissions,"-") -> 0 | C19: =IFERROR(B19/1000,"-") -> 0
A20: Methane Utilization | B20: =Methane_Utilization_Related_Emissions ->  | C20: =IFERROR(B20/1000,"-") -> -
A21: Electricity Generation (Biogas Consumption only) | B21: =CH4_Emissions_from_Consumption/1000 -> 0 | C21: 0
A22: Temporary Storage | B22: =TempStorage -> 0 | C22: 0
A23: Annual Projected Net Methane Emissions Reduction | B23: =IFERROR(SUM(B15:B16)-(B18+B19+B20+B21+B22),"-") -> - | C23: =IFERROR(SUM(C15:C16)-(C18+C19+C20+C21+C22),"-") -> -
A25: Annual Project Net Emissions (MtCO2e per year)
A26: Emissions Category | B26: Methane | C26: Carbon Dioxide | D26: Black Carbon | E26: All GHG Pollutants
A27: Baseline Emissions
A28: Gross Methane Emissions from Manure | B28: =B15*Methane_fossil_GWP/1000 -> 0 | E28: =SUM(B28:D28) -> 0
A29: Gross Methane Emissions from Co-Digested Waste | B29: =B16*Methane_fossil_GWP/1000 -> 0 | E29: =SUM(B29:D29) -> 0
A30: Project Emissions
A31: Methane Leakage | B31: =IFERROR(B18*Methane_fossil_GWP/1000,"-") -> 0 | E31: 0
A32: Flare-Related Emissions | B32: =IFERROR(B19*Methane_fossil_GWP/1000, "-") -> 0 | E32: =SUM(B32:D32) -> 0
A33: Methane Utilization | B33: =IFERROR(B20*Methane_fossil_GWP/1000,"-") -> - | E33: =SUM(B33:D33) -> 0
A34: Electricity Use (including Biogas Consumption) | B34: =IFERROR(B21*Methane_fossil_GWP/1000,"-") -> 0 | C34: =IFERROR(SUM('21-Electricity Use'!$B$15:$B$16)/1000,"-") -> 0 | E34: 0
A35: Temporary Storage | B35: =IFERROR(B22*Methane_fossil_GWP/1000,"-") -> 0 | E35: =SUM(B35:D35) -> 0
A36: Annual Projected Net Emissions Reduction | B36: =IFERROR(SUM(B28:B29)-(B31+B32+B33+B34+B35),"-") -> - | C36: =IFERROR(SUM(C28:C29)-(C31+C32+C33+C34+C35),"-") -> 0 | D36: =SUM(D28:D29)-(D31+D32+D33+D34+D35) -> 0 | E36: =SUM(E28:E29)-(E31+E32+E33+E34+E35) -> 0
A38: SLCP Global Warming Potentials
A39: SLCP | C39: Notes | D39: Information Source
A40: Black Carbon | B40: 900 | C40: Based on total climate forcing (all effects). This GWP is cited in the IPCC AR5 (Myhre et al., 2013). | D40: Myhre et al., 2013; Bond et al., 2013
A41: Methane (bio) | B41: 28 | C41: The IPCC AR5 report (Forster et al., 2007) does not differentiate between biogenic and fossil methane. | D41: Forster et al., 2007
A42: Methane (fossil) | B42: 28 | C42: The IPCC AR5 report (Forster et al., 2007) does not differentiate between biogenic and fossil methane. | D42: Forster et al., 2007
B46: 900
B47: 28
B48: 28
C58: =N58 -> 0
C60: =N60 -> 0
C61: =N61 -> 0
C62: =N62 -> 0
C63: =N63 -> 0
C65: =1.18 -> 1.18

Sheet 9-Feedstock Characteristics
A1: Waste Characteristics
A2: =1 -> 1 | B2: =A2+1 -> 2 | C2: =B2+1 -> 3 | D2: 4 | E2: 5 | F2: =E2+1 -> 6 | G2: =F2+1 -> 7 | H2: =G2+1 -> 8 | I2: =H2+1 -> 9 | J2: =I2+1 -> 10 | K2: =J2+1 -> 11 | L2: =K2+1 -> 12 | M2: =L2+1 -> 13 | N2: =M2+1 -> 14 | O2: =N2+1 -> 15 | P2: =O2+1 -> 16 | Q2: =P2+1 -> 17 | R2: =Q2+1 -> 18 | V2: =R2+1 -> 19 | W2: =V2+1 -> 20
A8: Unit | B8: % w.b. | C8: % w.b. | D8: lb./d/1000 lb. | E8: lb./d/1000 lb. | F8: % of TS | G8: % w.b. | H8: % w.b. | I8: lb./d/1000 lb. | J8: lb./d/1000 lb. | K8: lb./d/1000 lb. | L8: % w.b. | M8: % of TS | N8: % of TS | O8: % of TS | Q8: m3 / Mg of VS | R8: kg/m3 | T8: Category
A9: Waste Item | B9: Moisture | C9: Total Solids | D9: Total Solids (TS) | E9: Volatile Solids | F9: Volatile Solids | G9: Volatile Solids | H9: Fixed Solids (Ash) | I9: Fixed Solids | J9: BOD | K9: N | L9: N | M9: Sugars & Starches | N9: Fats | O9: Proteins | Q9: Methane Yield | R9: Bulk Density | S9: Specific Gravity | T9: Manure? | U9: Type | V9: Notes | W9: Source:
B10: Livestock Excreted Feedstocks
A11: Lactating Cow | B11: 0.87 | C11: =15/119 -> 0.1260504202 | D11: 15 | E11: 12 | F11: =G11/C11 -> 0.8 | G11: =12/119 -> 0.1008403361 | H11: =C11-G11 -> 0.02521008403 | I11: =D11-E11 -> 3 | J11: 2.1 | K11: 0.76 | L11: =(K11/D11)*((1-B11)/1) -> 0.006586666667 | M11: =1-SUM(N11:O11)-H11 -> 0.870089916 | N11: 0.0194 | O11: 0.0853 | Q11: =0.148*1000 -> 148 | R11: =CONVERT(119,"lbm","kg")/CONVERT(2.1,"ft^3","m^3") -> 907.7129245 | S11: =R11/DensityofWater -> 0.9077129245 | T11: Y | U11: Manure | V11: Methane Yields from Ward et al. All other waste characteristics derived from USDA 2008. Protein and Fat percent taken from Table 1 in Fen et al. 2017. It was assumed remaining material Volatile Solid Material is sugars and starches | W11: USDA 2008; Ward et. al 2008; Fen et al. 2017
A12: Calf | B12: 0.83 | C12: =9.2/83 -> 0.1108433735 | D12: 9.2 | E12: 7.7 | F12: =G12/C12 -> 0.8369565217 | G12: =7.7/83 -> 0.09277108434 | H12: =C12-G12 -> 0.01807228916 | I12: =D12-E12 -> 1.5 | K12: 0.42 | L12: =(K12/D12)*((1-B12)/1) -> 0.007760869565 | M12: =1-SUM(N12:O12)-H12 -> 0.8772277108 | N12: 0.0194 | O12: 0.0853 | Q12: =0.148*1000 -> 148 | R12: =CONVERT(83,"lbm","kg")/CONVERT(21.3,"ft^3","m^3") -> 62.41936432 | S12: 0.06241936432 | T12: Y | U12: Manure | W12: USDA 2008; Ward et. al 2008; Fen et al. 2017
A13: Heifer | B13: 0.83 | C13: =8.5/56 -> 0.1517857143 | D13: 8.5 | E13: 7.3 | F13: 0.8588235294 | G13: =7.3/56 -> 0.1303571429 | H13: 0.02142857143 | I13: 1.2 | J13: 1.2 | K13: 0.27 | L13: 0.0054 | M13: 0.8738714286 | N13: 0.0194 | O13: 0.0853 | Q13: 148 | R13: =CONVERT(56,"lbm","kg")/CONVERT(0.9,"ft^3","m^3") -> 996.7043877 | S13: 0.9967043877 | T13: Y | U13: Manure | W13: USDA 2008; Ward et. al 2008; Fen et al. 2017
A14: Dry Dairy Cow | B14: 0.87 | C14: =6.6/51 -> 0.1294117647 | D14: 6.6 | E14: 5.6 | F14: 0.8484848485 | G14: =5.6/51 -> 0.1098039216 | H14: 0.01960784314 | I14: 1 | J14: 0.84 | K14: 0.3 | L14: 0.005909090909 | M14: 0.8756921569 | N14: 0.0194 | O14: 0.0853 | Q14: 148 | R14: =CONVERT(51,"lbm","kg")/CONVERT(0.84,"ft^3","m^3") -> 972.549562 | S14: 0.972549562 | T14: Y | U14: Manure | W14: USDA 2008; Ward et. al 2008; Fen et al. 2017
A15: Cattle with Primarily Grain/Grass Diet | B15: 0.88 | C15: =1-B15 -> 0.12 | D15: 13 | E15: 11 | F15: =E15/D15 -> 0.8461538462 | G15: =F15*C15 -> 0.1015384615 | H15: 0.01846153846 | I15: 2 | J15: 2.5 | K15: 0.35 | L15: 0.003230769231 | M15: 0.8768384615 | N15: 0.0194 | O15: 0.0853 | Q15: =0.328*1000 -> 328 | R15: =CONVERT(104,"lbm","kg")/CONVERT(1.7,"ft^3","m^3") -> 979.9530535 | S15: 0.9799530535 | T15: Y | U15: Manure | W15: USDA 2008; Ward et. al 2008; Fen et al. 2017
A16: Calf In Shelter (200 -350 kg.) | B16: 0.88 | C16: 0.12 | D16: 9.2 | E16: 7.7 | F16: 0.8369565217 | G16: 0.1004347826 | H16: =C16-G16 -> 0.01956521739 | I16: 1.5 | J16: 1.7 | K16: 0.45 | L16: 0.005869565217 | M16: 0.8757347826 | N16: 0.0194 | O16: 0.0853 | Q16: =0.328*1000 -> 328 | R16: =CONVERT(77,"lbm","kg")/CONVERT(1.2,"ft^3","m^3") -> 1027.8514 | S16: 1.0278514 | T16: Y | U16: Manure | W16: USDA 2008; Ward et. al 2008; Fen et al. 2017
A17: Cattle With Corn Supplement to Diet | B17: 0.92 | C17: 0.08 | D17: 5.2 | E17: 4.3 | F17: 0.8269230769 | G17: 0.06615384615 | H17: 0.01384615385 | I17: 0.9 | J17: 1 | K17: 0.36 | L17: 0.005538461538 | M17: 0.8814538462 | N17: 0.0194 | O17: 0.0853 | Q17: 328 | R17: =CONVERT(9800,"lbm","kg")/CONVERT(160,"ft^3","m^3") -> 981.1308817 | S17: 0.9811308817 | T17: Y | U17: Manure | W17: USDA 2008; Ward et. al 2008; Fen et al. 2017
A18: Cattle With Other Diet Supplements | B18: 0.92 | C18: 0.08 | D18: 5.2 | E18: 4.3 | F18: 0.8269230769 | G18: 0.06615384615 | H18: 0.01384615385 | I18: 0.9 | J18: 1 | K18: 0.36 | L18: 0.005538461538 | M18: 0.8814538462 | N18: 0.0194 | O18: 0.0853 | Q18: =0.275*1000 -> 275 | R18: =CONVERT(9800,"lbm","kg")/CONVERT(160,"ft^3","m^3") -> 981.1308817 | S18: 0.9811308817 | T18: Y | U18: Manure | W18: USDA 2008; Ward et. al 2008; Fen et al. 2017
A19: Swine - Gestating (190 kg.) | B19: 0.9 | C19: 0.1 | D19: 2.5 | E19: 2.3 | F19: 0.92 | G19: 0.092 | H19: 0.008 | I19: 0.2 | J19: 0.84 | K19: 0.16 | L19: 0.0064 | M19: 0.876 | N19: 0.0221 | O19: 0.0939 | Q19: =0.275*1000 -> 275 | R19: =CONVERT(11,"lbm","kg")/CONVERT(0.18,"ft^3","m^3") -> 978.9060951 | S19: 0.9789060951 | T19: Y | U19: Manure | W19: USDA 2008; Ward et. al 2008; Fen et al. 2017
A20: Swine - Lactating (190 kg.) | B20: 0.9 | C20: 0.1 | D20: 5.9 | E20: 5.4 | F20: 0.9152542373 | G20: 0.09152542373 | H20: 0.008474576271 | I20: 0.5 | J20: 2 | K20: 0.45 | L20: =(K20/D20)*((1-B20)/1) -> 0.007627118644 | M20: 0.8755254237 | N20: 0.0221 | O20: 0.0939 | Q20: =0.356*1000 -> 356 | R20: =CONVERT(25,"lbm","kg")/CONVERT(0.41,"ft^3","m^3") -> 976.7355716 | S20: 0.9767355716 | T20: Y | U20: Manure | W20: USDA 2008; Ward et. al 2008; Fen et al. 2017
A21: Boar (200 kg.) | B21: 0.9 | C21: 0.1 | D21: 1.9 | E21: 1.7 | F21: 0.8947368421 | G21: 0.08947368421 | H21: 0.01052631579 | I21: 0.2 | J21: 0.66 | K21: 0.14 | L21: 0.007368421053 | M21: 0.8734736842 | N21: 0.0221 | O21: 0.0939 | Q21: 356 | R21: =CONVERT(8.4,"lbm","kg")/CONVERT(0.13,"ft^3","m^3") -> 1035.039172 | S21: 1.035039172 | T21: Y | U21: Manure | W21: USDA 2008; Ward et. al 2008; Fen et al. 2017
A22: Piglets | B22: 0.9 | C22: 0.1 | D22: 10 | E22: 8.8 | F22: =E22/D22 -> 0.88 | G22: 0.088 | H22: 0.012 | I22: 1.2 | J22: 3.4 | K22: 0.92 | L22: 0.0092 | M22: 0.872 | N22: 0.0221 | O22: 0.0939 | Q22: 356 | R22: =CONVERT(87,"lbm","kg")/CONVERT(1.4,"ft^3","m^3") -> 995.4330811 | S22: 0.9954330811 | T22: Y | U22: Manure | W22: USDA 2008; Ward et. al 2008; Fen et al. 2017
A23: Adolescents Pigs | B23: 0.9 | C23: 0.1 | D23: 6.5 | E23: 5.4 | F23: 0.8307692308 | G23: 0.08307692308 | H23: 0.01692307692 | I23: 1.1 | J23: 2.1 | K23: 0.54 | L23: 0.008307692308 | M23: 0.8670769231 | N23: 0.0221 | O23: 0.0939 | Q23: =0.356*1000 -> 356 | R23: =CONVERT(119,"lbm","kg")/CONVERT(2.1,"ft^3","m^3") -> 907.7129245 | S23: 0.9077129245 | T23: Y | U23: Manure | W23: USDA 2008; Ward et. al 2008; Fen et al. 2017
A24: Poultry Chicken | B24: 0.75 | C24: 0.25 | D24: 15 | E24: 11 | F24: 0.7333333333 | G24: 0.1833333333 | H24: 0.06666666667 | I24: 4 | J24: 3.3 | K24: 1.1 | L24: 0.01833333333 | M24: 0.7744333333 | N24: 0.0279 | O24: 0.131 | Q24: =460*0.6 -> 276 | R24: 907.7129245 | S24: 0.9077129245 | T24: Y | U24: Manure | V24: Calculated methane yields from biogas yields and assumption that biogas is 60% CH4 (IAEA 2008). All other waste characteristics derived from USDA 2008. In cases where information for veal was missing assumptions for calf were used. Protein, Sugar, Starch, and Fat content derived from Fen et al. 2017. It was assumed Duck and Turkey manure protein and fat content were similar to chicken. | W24: USDA 2008; IAEA 2008; Fen et al. 2017
A25: Broiler Chicken | B25: 0.74 | C25: 0.26 | D25: 22 | E25: 17 | F25: 0.7727272727 | G25: =F25*C25 -> 0.2009090909 | H25: 0.05909090909 | I25: 5 | J25: 5.3 | K25: 0.96 | L25: 0.01134545455 | M25: 0.7820090909 | N25: 0.0279 | O25: 0.131 | Q25: =460*0.6 -> 276 | R25: 907.7129245 | S25: 0.9077129245 | T25: Y | U25: Manure | W25: USDA 2008; IAEA 2008; Fen et al. 2017
A26: Turkey Male | B26: 0.74 | C26: 0.26 | D26: 8.8 | E26: 7.1 | F26: 0.8068181818 | G26: 0.2097727273 | H26: 0.05022727273 | I26: 1.7 | J26: 2.3 | K26: 0.53 | L26: 0.01565909091 | M26: =1-SUM(N26:O26)-H26 -> 0.7908727273 | N26: 0.0279 | O26: 0.131 | Q26: =460*0.6 -> 276 | R26: 907.7129245 | S26: 0.9077129245 | T26: Y | U26: Manure | W26: USDA 2008; IAEA 2008; Fen et al. 2017
A27: Turkey Female | B27: 0.74 | C27: 0.26 | D27: 12 | E27: 9.8 | F27: 0.8166666667 | G27: 0.2123333333 | H27: 0.04766666667 | I27: 2.2 | J27: 3 | K27: 0.72 | L27: 0.0156 | M27: =1-SUM(N27:O27)-H27 -> 0.7934333333 | N27: 0.0279 | O27: 0.131 | Q27: =460*0.6 -> 276 | R27: 907.7129245 | S27: 0.9077129245 | T27: Y | U27: Manure | W27: USDA 2008; IAEA 2008; Fen et al. 2017
A28: Duck | B28: 0.74 | C28: 0.26 | D28: 27 | E28: 16 | F28: 0.5925925926 | G28: 0.1540740741 | H28: 0.1059259259 | I28: 11 | J28: 4.5 | K28: 1 | L28: 0.00962962963 | M28: 0.7351740741 | N28: 0.0279 | O28: 0.131 | Q28: =460*0.6 -> 276 | R28: 907.7129245 | S28: 0.9077129245 | T28: Y | U28: Manure | W28: USDA 2008; IAEA 2008; Fen et al. 2017
A29: Lamb/Sheep/Goat | B29: 0.75 | C29: 0.25 | D29: 25 | E29: 8.3 | F29: 0.332 | G29: 0.083 | H29: 0.167 | I29: 16.7 | J29: 1 | K29: 0.45 | L29: =(K29/D29)*((1-B29)/1) -> 0.0045 | M29: =1-N29-O29-H29 -> 0.6527 | N29: 0.0333 | O29: 0.147 | Q29: =200*0.6 -> 120 | R29: 907.7129245 | S29: 0.9077129245 | T29: Y | U29: Manure | W29: USDA 2008; IAEA 2008; Fen et al. 2017
A30: Veal | B30: 0.98 | C30: 0.02 | D30: 1.5 | E30: 0.85 | F30: 0.5666666667 | G30: 0.01133333333 | H30: 0.008666666667 | I30: 0.65 | J30: 0.37 | K30: 0.2 | L30: 0.002666666667 | M30: =1-SUM(N30:O30)-H30 -> 0.8866333333 | N30: 0.0194 | O30: 0.0853 | Q30: =Q12 -> 148 | R30: 907.7129245 | S30: 0.9077129245 | T30: Y | U30: Manure | W30: USDA 2008; IAEA 2008
A31: Horse | B31: 0.85 | C31: 0.15 | D31: 7.8 | E31: 6.2 | F31: 0.7948717949 | G31: =F31*C31 -> 0.1192307692 | H31: 0.03076923077 | I31: 1.6 | J31: 1 | K31: 0.31 | L31: 0.005961538462 | M31: =1-H31-N31-O31 -> 0.8582307692 | N31: 0.0824 | O31: 0.0286 | Q31: =250*0.6 -> 150 | R31: 907.7129245 | S31: 0.9077129245 | T31: Y | U31: Manure | W31: USDA 2008; IAEA 2008; Fen et al. 2017; Mönch-Tegeder et al. 2013
B32: Fruit And Vegetable Feedstocks
A33: Alfalfa | B33: 0.58 | C33: =1-B33 -> 0.42 | F33: =G33/C33 -> 0.91 | G33: =91%*C33 -> 0.3822 | H33: =9%*C33 -> 0.0378 | L33: 0.0225 | M33: =1-N33-O33-H33 -> 0.9154 | N33: 0.0069 | O33: 0.0399 | Q33: 300 | R33: 230 | S33: =R33/DensityofWater -> 0.23 | T33: N | U33: Food Waste | W33: Salman et al. 2011; Oklahoma Cooperative Extension Service BAE-1762; FAO 2012
A34: Bananas | B34: 0.84 | C34: 0.16 | F34: 0.875 | G34: 0.14 | H34: 0.02 | L34: 0.0053 | M34: =1-N34-O34-H34 -> 0.9658 | N34: 0.0033 | O34: 0.0109 | Q34: =0.277*1000 -> 277 | R34: =(225)*(1/1000)*(4226.75) -> 951.01875 | S34: 0.95101875 | T34: N | U34: Food Waste | V34: Methane yield for just peel; Density for 1 cup mashed banana | W34: USDA 2008; USDA 2016
A35: Broccoli | B35: =1-C35 -> 0.9104 | C35: 0.0896 | F35: 0.9040178571 | G35: 0.081 | H35: =C35-G35 -> 0.0086 | L35: 0.006230769231 | M35: 0.9595 | N35: 0.0037 | O35: 0.0282 | Q35: 246.87 | R35: 513 | S35: 0.513 | T35: N | U35: Food Waste | W35: USDA 2008; Yan et al. 2017; USDA 2016
A36: Cabbage | B36: 0.9 | C36: 0.096 | F36: 0.8958333333 | G36: 0.086 | H36: 0.01 | L36: 0.0014 | M36: 0.9762 | N36: 0.001 | O36: 0.0128 | Q36: =0.277*1000 -> 277 | R36: =70*(1/1000)*(4226.75) -> 295.8725 | S36: 0.2958725 | T36: N | U36: Food Waste | V36: Density of shredded cabbage | W36: USDA 2008; Yan et al. 2017; USDA 2016
A37: Chinese Cabbage (Pak-Choi) | B37: =1-C37 -> 0.9658 | C37: 0.0342 | F37: =G37/C37 -> 0.8362573099 | G37: 0.0286 | H37: =C37-G37 -> 0.0056 | L37: 0.002365413534 | M37: 0.9774 | N37: 0.002 | O37: 0.015 | Q37: 204 | R37: 43 | S37: 0.043 | T37: N | U37: Food Waste | W37: USDA 2008; Yan et al. 2017; USDA 2016
A38: Carrot Root | B38: 0.87 | C38: 0.13 | F38: =G38/C38 -> 0.8461538462 | G38: 0.11 | H38: 0.02 | L38: 0.0025 | M38: 0.9683 | N38: 0.0024 | O38: 0.0093 | Q38: =0.309*1000 -> 309 | R38: 540 | S38: 0.54 | T38: N | U38: Food Waste | W38: USDA 2008; Rittenschober et al. 2012; USDA 2016
A39: Cauliflower | B39: =1-C39 -> 0.9431 | C39: 0.0569 | F39: =G39/C39 -> 0.9015817223 | G39: 0.0513 | H39: =C39-G39 -> 0.0056 | L39: 0.004143171806 | M39: 0.973 | N39: 0.0022 | O39: 0.0192 | Q39: 250 | R39: =107*(1/1000)*(4226.75) -> 452.26225 | S39: 0.45226225 | T39: N | U39: Food Waste | V39: Density for 1 cup raw Cauliflower, chopped in 1/2" pieces | W39: FAO 2017; Yan et al. 2017; USDA 2016
A40: Sweet Corn | B40: 0.8 | C40: 0.2 | F40: 0.95 | G40: 0.19 | H40: 0.01 | L40: 0.007 | M40: 0.9438 | N40: 0.0135 | O40: 0.0327 | Q40: 375 | R40: 610 | S40: 0.61 | T40: N | U40: Food Waste | W40: USDA 2008; Salter 2007; USDA 2016
A41: Kale | B41: 0.88 | C41: 0.12 | F41: 0.8333333333 | G41: 0.1 | H41: 0.02 | L41: 0.0022 | M41: 0.9279 | N41: 0.0093 | O41: 0.0428 | Q41: =(240+334)/2 -> 287 | R41: =130*(1/1000)*(4226.75) -> 549.4775 | S41: 0.5494775 | T41: N | U41: Food Waste | V41: Density for 1 cup Kale, cooked, boiled, and drained | W41: USDA 2008; USDA 2016; IEA Bioenergy 2010
A42: Lettuce | B42: 0.95 | C42: 0.054 | F42: 0.8333333333 | G42: 0.045 | H42: 0.009 | L42: 0.0005 | M42: 0.9759 | N42: 0.0015 | O42: 0.0136 | Q42: =(199.07+244.41)/2 -> 221.74 | R42: =36*(1/1000)*(4226.75) -> 152.163 | S42: 0.152163 | T42: N | U42: Food Waste | V42: Density for shredded lettuce | W42: USDA 2008; Yan et al. 2017; USDA 2016
A43: Onions | B43: 0.086 | C43: 0.91 | F43: 0.9340659341 | G43: 0.85 | H43: 0.06 | L43: 0.014 | M43: 0.928 | N43: 0.001 | O43: 0.011 | Q43: =0.4*1000 -> 400 | R43: 220 | S43: 0.22 | T43: N | U43: Food Waste | W43: USDA 2008; USDA 2016
A44: Orange Flesh | B44: 0.87 | C44: 0.13 | F44: 0.9230769231 | G44: 0.12 | H44: 0.01 | L44: 0.0026 | M44: 0.9794 | N44: 0.0012 | O44: 0.0094 | Q44: 73.5 | R44: =6*(1/1000)*67628 -> 405.768 | S44: 0.405768 | T44: N | U44: Food Waste | V44: Density for orange peel. Raw | W44: USDA 2008; USDA 2016; Wikandari et al. 2015
A45: Orange Pulp | B45: 0.84 | C45: 0.16 | F45: 0.9375 | G45: 0.15 | H45: 0.01 | L45: 0.0024 | M45: 0.9794 | N45: 0.0012 | O45: 0.0094 | Q45: 73.5 | R45: =185*(1/1000)*(4226.75) -> 781.94875 | S45: 0.78194875 | T45: N | U45: Food Waste | V45: Density cup of orange sections without membranes | W45: USDA 2008; USDA 2016; Wikandari et al. 2015
A46: Potato, Top, Mature | B46: 0.13 | C46: 0.87 | F46: 0.8275862069 | G46: 0.72 | H46: 0.15 | L46: 0.012 | M46: 0.8286 | N46: 0.0009 | O46: 0.0205 | Q46: 267 | R46: 590 | S46: 0.59 | T46: N | U46: Food Waste | W46: USDA 2008; USDA 2016
A47: Potato Peel | B47: =1-C47 -> 0.909 | C47: 0.091 | F47: =G47/C47 -> 0.96 | G47: =((1-B47)/1)*0.96 -> 0.08736 | H47: =C47-G47 -> 0.00364 | L47: 0.016 | M47: 0.97496 | N47: 0.0009 | O47: 0.0205 | Q47: 270 | R47: 360 | S47: 0.36 | T47: N | U47: Food Waste | W47: USDA 2008; Hamilton; Salter 2007
A48: Pumpkins | B48: 0.91 | C48: 0.087 | F48: =G48/C48 -> 0.908045977 | G48: 0.079 | H48: 0.008 | L48: 0.0012 | M48: 0.981 | N48: 0.001 | O48: 0.01 | Q48: 422 | R48: =116*(1/1000)*(4226.75) -> 490.303 | S48: 0.490303 | T48: N | U48: Food Waste | V48: Methane yield is laboratory results for pumpkin flesh mixed with cow manure. | W48: USDA 2008; USDA 2016; Dubrovskis 2017
A49: Spinach | B49: 0.93 | C49: 0.07 | F49: 0.7514285714 | G49: 0.0526 | H49: =C49-G49 -> 0.0174 | L49: 0.0007 | M49: 0.9501 | N49: 0.0039 | O49: 0.0286 | Q49: 157.9 | R49: 80 | S49: 0.08 | T49: N | U49: Food Waste | V49: Methane yield for whole spinach | W49: USDA 2008; FAO 2012; Yan et al. 2017; USDA 2016
A50: Tomatoes | B50: 0.94 | C50: 0.058 | F50: 0.8965517241 | G50: 0.052 | H50: 0.006 | L50: 0.0015 | M50: 0.9832 | N50: 0.002 | O50: 0.0088 | Q50: =0.298*1000 -> 298 | R50: =180*(1/1000)*(4226.75) -> 760.815 | S50: 0.760815 | T50: N | U50: Food Waste | V50: Density for cup chopped or sliced | W50: USDA 2008; USDA 2016
A51: Tomatoes (Solid Waste) | B51: 0.89 | C51: 0.11 | F51: 0.9090909091 | G51: 0.1 | H51: 0.01 | L51: 0.0022 | M51: 0.9708 | N51: 0.0028 | O51: 0.0164 | Q51: 298 | R51: 761 | S51: 0.761 | T51: N | U51: Food Waste | W51: USDA 2008; USDA 2016
A52: Maize (Early Harvest Or Milk Ripeness) | B52: =1-C52 -> 0.6314 | C52: =3686%/100 -> 0.3686 | F52: 0.8545849159 | G52: =C52-H52 -> 0.315 | H52: 0.0536 | L52: 0.007 | M52: =1-N52-O52-H52 -> 0.7953 | N52: 0.047 | O52: 0.1041 | Q52: =CONVERT(250.26,"mL","m^3")*10^6 -> 250.26 | R52: 610 | S52: 0.61 | T52: N | U52: Food Waste | V52: Protein, Fat, Sugar and Starch content taken from Gao et al. 2012. | W52: Gao et al. 2012; USDA 2008
A53: Maize (Middle Harvest Or Wax Ripeness) | B53: =1-C53 -> 0.3642 | C53: =6358%/100 -> 0.6358 | F53: 0.91569676 | G53: =C53-H53 -> 0.5822 | H53: 0.0536 | L53: 0.007 | M53: =1-N53-O53-H53 -> 0.7953 | N53: 0.047 | O53: 0.1041 | Q53: 303.32 | R53: 610 | S53: 0.61 | T53: N | U53: Food Waste | W53: Gao et al. 2012; USDA 2008
A54: Rice Straw | B54: =1-C54 -> 0.122 | C54: 0.878 | F54: 0.796 | G54: =C54*79.6% -> 0.698888 | H54: =C54-G54 -> 0.179112 | L54: =C54*0.0088 -> 0.0077264 | M54: 0.437 | N54: 0 | O54: 0 | Q54: 483 | R54: =(50+120)/2 -> 85 | S54: 0.085 | T54: N | U54: Food Waste | V54: Density average of range in Liu et al. 2011. Rice waste characteristics taken from Contreras et al. 2012. Methane yield average of estimates from first-order method. A value for protein and fat content of rice husk, straw and residue, could not be identified so these values were assumed to be zero | W54: Liu et al. 2011; Contreras et al. 2012
A55: Rice Husk | B55: =1-C55 -> 0.108 | C55: 0.892 | F55: 0.7657892377 | G55: =C54*77.8% -> 0.683084 | H55: =C55-G55 -> 0.208916 | L55: =C55*0.0038 -> 0.0033896 | M55: 0.668 | N55: 0 | O55: 0 | Q55: 58 | R55: =(50+120)/2 -> 85 | S55: 0.085 | T55: N | U55: Food Waste
A56: Rice Residue (Dried) | B56: 0.107 | C56: 0.893 | F56: 0.775 | G56: =77.5%*C56 -> 0.692075 | H56: 0.200925 | L56: =C55*0.0112 -> 0.0099904 | M56: 0.447 | N56: 0 | O56: 0 | Q56: 326 | R56: 85 | S56: 0.085 | T56: N | U56: Food Waste
A57: Wheat Straw | B57: 0.1 | C57: 0.9 | F57: 0.9917777778 | G57: 0.8926 | H57: =C57-G57 -> 0.0074 | L57: 0.002 | M57: 0.8082 | N57: 0 | O57: 0.0341 | Q57: 208 | R57: 770 | S57: 0.77 | T57: N | U57: Food Waste | V57: Read from graph for Wheat | W57: IRENA 2016; Salter 2007; Xi et al. 2015
A58: Maize Cob | B58: =1-C58 -> 0.1562 | C58: 0.8438 | F58: 0.9125385162 | G58: 0.77 | H58: =C58-G58 -> 0.0738 | L58: 0.007 | M58: =1-N58-O58-H58 -> 0.8462 | N58: 0.032 | O58: 0.048 | Q58: =22.32*0.6 -> 13.392 | R58: 282.38 | S58: 0.28238 | T58: N | U58: Food Waste | V58: "The average bulk density was 282.38, 81.61 and 127.32 kg m−3 for the corn cobs, leaves and stalks, respectively." (Zhang et al. 2012) | W58: Yavini et al. 2014; Salter 2007; Leke et al. 2013
A59: Coffee Grounds | B59: =1-C59 -> 0.6777 | C59: 0.3223 | F59: =G59/C59 -> 0.9897610922 | G59: 0.319 | H59: =C59-G59 -> 0.0033 | L59: 0.0192 | M59: =C59-H59-N59-O59 -> 0.0523 | N59: 0.1377 | O59: 0.129 | Q59: 298 | R59: 320 | S59: 0.32 | T59: N | U59: Food Waste | W59: Vitez et al. 2016
A60: Tea Leaves | B60: =1-C60 -> 0.0575 | C60: 0.9425 | F60: 0.965 | G60: =F60*C60 -> 0.9095125 | H60: =C60-G60 -> 0.0329875 | L60: 0.014 | M60: =1-N60-O60-H60 -> 0.6900125 | N60: 0.038 | O60: 0.239 | Q60: 180.1 | R60: 480 | S60: 0.48 | T60: N | U60: Food Waste | W60: Zheng et al. 2013; Goel et al. 2001
B61: Dairy Feedstocks
A62: Dairy Wastewater | B62: 0.98 | C62: 0.024 | F62: =G62/C62 -> 0.625 | G62: 0.015 | H62: 0.0091 | L62: 0.00077 | M62: =1-N62-O62-H62 -> 0.1532 | N62: 0.1477 | O62: 0.69 | Q62: 550 | R62: 560 | S62: =R62/DensityofWater -> 0.56 | T62: N | U62: Food Waste | V62: The waste characteristics are taken from USDA 2008. The density is taken from Rittenschober 2012, and the methane yield from Mes et al. 2003. | W62: USDA 2008; Mes et al. 2003; Rittenschober 2012
A63: Whey - Sweet Cheese | B63: 0.93 | C63: 0.069 | F63: =G63/C63 -> 0.9275362319 | G63: 0.064 | H63: 0.0055 | L63: 0.075 | M63: =1-N63-O63-H63 -> 0.1568 | N63: 0.1477 | O63: 0.69 | Q63: 550 | R63: 560 | S63: =R63/DensityofWater -> 0.56 | T63: N | U63: Food Waste | W63: USDA 2008; Mes et al. 2003; Antonopoulou et al. 2008; Rittenschober 2012
A64: Whey - Acid Cheese | B64: 0.93 | C64: 0.066 | F64: =G64/C64 -> 0.9090909091 | G64: 0.06 | H64: 0.006 | L64: 0.075 | M64: =1-N64-O64-H64 -> 0.1563 | N64: 0.1477 | O64: 0.69 | Q64: 550 | R64: 560 | S64: =R64/DensityofWater -> 0.56 | T64: N | U64: Food Waste | W64: USDA 2008; Mes et al. 2003; Antonopoulou et al. 2008; Rittenschober 2012
B65: Garden Feedstocks
A66: Water Hyacinths | B66: 0.866 | C66: =1-B66 -> 0.134 | F66: 0.902 | G66: =F66*C66 -> 0.120868 | H66: =C66-G66 -> 0.013132 | L66: 0.0197 | M66: 0.78 | N66: 0.004 | Q66: 576 | R66: 85 | S66: =R66/DensityofWater -> 0.085 | T66: N | U66: Yard Waste | W66: Salman et al. 2011; Barua et al. 2016; Tiwari 2005
A67: Leaves | B67: 0.382 | C67: =1-B67 -> 0.618 | F67: 0.902 | G67: =F67*C67 -> 0.557436 | H67: =C67-G67 -> 0.060564 | L67: 0.009 | M67: =1-N67-O67-H67 -> 0.804436 | N67: 0.0485 | O67: 0.0865 | Q67: 30.6 | R67: =((200+260)/2)*0.593276421 -> 136.4535768 | S67: =R67/DensityofWater -> 0.1364535768 | T67: N | U67: Yard Waste | V67: Wood and tree branch density can range from 400 - 1000 kg/m3. The methane yield and density of leaves and grasses may also vary depending on the waste’s characteristics. The user is encourages to enter more specific information more reflective of their respective waste stream for this waste category. | W67: Levis et al. 2013; Cornell Waste Management 1990; Carolinas Composting Council; Zheng et al. 2013
A68: Grass | B68: 0.82 | C68: =1-B68 -> 0.18 | F68: 0.864 | G68: =F68*C68 -> 0.15552 | H68: =C68-G68 -> 0.02448 | L68: 0.009 | M68: =1-N68-O68-H68 -> 0.87952 | N68: 0.0205 | O68: 0.0755 | Q68: 136 | R68: =((350+500)/2)*0.593276421 -> 252.1424789 | S68: =R68/DensityofWater -> 0.2521424789 | T68: N | U68: Yard Waste | W68: Levis et al. 2013; Cornell Waste Management 1990; Carolinas Composting Council; Zheng et al. 2013
A69: Branches | B69: 0.159 | C69: =1-B69 -> 0.841 | F69: 0.966 | G69: =F69*C69 -> 0.812406 | H69: =C69-G69 -> 0.028594 | L69: 0.008 | M69: =1-N69-O69-H69 -> 0.9290726667 | N69: 0.022 | O69: 0.02033333333 | Q69: 62.6 | R69: 750 | S69: =R69/DensityofWater -> 0.75 | T69: N | U69: Yard Waste | W69: Levis et al. 2013; Cornell Waste Management 1990; Carolinas Composting Council; Zheng et al. 2013
A70: Wood | B70: 0.16 | C70: =1-B70 -> 0.84 | F70: 0.964 | G70: =F70*C70 -> 0.80976 | H70: =C70-G70 -> 0.03024 | L70: 0.008 | M70: 0.9274266667 | N70: 0.022 | O70: 0.02033333333 | Q70: 11.6 | R70: 750 | S70: =R70/DensityofWater -> 0.75 | T70: N | U70: Yard Waste | W70: Levis et al. 2013; Cornell Waste Management 1990; Carolinas Composting Council; Zheng et al. 2013
B71: Other Organic Municipal Feedstocks
A72: Textiles | B72: 0.06 | C72: =1-B72 -> 0.94 | F72: 0.966 | G72: =F72*C72 -> 0.90804 | H72: =C72-G72 -> 0.03196 | L72: 0.0095 | M72: =1-H72 -> 0.96804 | N72: 0.004 | O72: 0.006 | Q72: 46.4 | R72: 1314 | S72: =R72/DensityofWater -> 1.314 | T72: N | U72: Yard Waste | V72: Density is the bulk density of wool fiber. | W72: Levis et al. 2013; Priadi et al. 2014; Merrick 1998; WRAP 2009
A73: Newsprint | B73: 0.13 | C73: 0.87 | F73: 0.927 | G73: 0.80649 | H73: 0.06351 | L73: 0.0095 | M73: =1-H73 -> 0.93649 | N73: 0.008 | O73: 0.007 | Q73: 74.3 | R73: 305 | S73: 0.305 | T73: N | U73: Mixed Paper | W73: Levis et al. 2013; Priadi et al. 2014; Zheng et al. 2013; WRAP 2009
A74: Corrugated Cardboard | B74: 0.17 | C74: 0.83 | F74: 0.89 | G74: 0.7387 | H74: 0.0913 | L74: 0.0095 | M74: =1-H74 -> 0.9087 | N74: 0.004 | O74: 0.006 | Q74: 152.3 | R74: 431 | S74: 0.431 | T74: N | U74: Corrugated Cardboard | W74: Levis et al. 2013; Priadi et al. 2014; Zheng et al. 2013; WRAP 2009
A75: Office Paper | B75: 0.09 | C75: 0.91 | F75: 0.878 | G75: 0.79898 | H75: 0.11102 | L75: 0.0095 | M75: =1-H75 -> 0.88898 | N75: 0.004 | O75: 0.006 | Q75: 217.3 | R75: 431 | S75: 0.431 | T75: N | U75: Mixed Paper | W75: Levis et al. 2013; Priadi et al. 2014; Zheng et al. 2013; WRAP 2009
A76: Magazines | B76: 0.06 | C76: 0.94 | F76: 0.767 | G76: 0.72098 | H76: 0.21902 | L76: 0.0095 | M76: 0.78098 | N76: 0.004 | O76: 0.006 | Q76: 84.4 | R76: 305 | S76: 0.305 | T76: N | U76: Mixed Paper | W76: Levis et al. 2013; Priadi et al. 2014; Zheng et al. 2013; WRAP 2009
A77: Junk Mail & Paper | B77: 0.09 | C77: 0.91 | F77: 0.751 | G77: 0.68341 | H77: 0.22659 | L77: 0.0095 | M77: 0.77341 | N77: 0.004 | O77: 0.006 | Q77: 84.4 | R77: 431 | S77: 0.431 | T77: N | U77: Mixed Paper | W77: Levis et al. 2013; Priadi et al. 2014; Zheng et al. 2013; WRAP 2009
A78: Folding Cartons | B78: 0.22 | C78: 0.78 | F78: 0.888 | G78: 0.69264 | H78: 0.08736 | L78: 0.0095 | M78: 0.91264 | N78: 0.004 | O78: 0.006 | Q78: 152.3 | R78: 366 | S78: 0.366 | T78: N | U78: Mixed Paper | W78: Levis et al. 2013; Priadi et al. 2014; Zheng et al. 2013; WRAP 2009
A79: Paper Bags And Sacks | B79: 0.22 | C79: 0.78 | F79: 0.888 | G79: 0.69264 | H79: 0.08736 | L79: 0.0095 | M79: 0.91264 | N79: 0.004 | O79: 0.006 | Q79: 152.3 | R79: 900 | S79: 0.9 | T79: N | U79: Mixed Paper | W79: Levis et al. 2013; Priadi et al. 2014; Zheng et al. 2013; WRAP 2009
A80: Paper Non‐Recyclable | B80: 0.25 | C80: 0.75 | F80: 0.915 | G80: 0.68625 | H80: 0.06375 | L80: 0.0095 | M80: 0.93625 | N80: 0.004 | O80: 0.006 | Q80: 132.1 | R80: 900 | S80: 0.9 | T80: N | U80: Mixed Paper | W80: Levis et al. 2013; Priadi et al. 2014; Zheng et al. 2013; WRAP 2009
A81: Human Waste | B81: 0.89 | C81: 0.11 | F81: =0.019/0.033 -> 0.5757575758 | G81: =F81*C81 -> 0.06333333333 | H81: 0.04666666667 | L81: 0.002 | M81: 0.25 | N81: 0.25 | O81: 0.15 | Q81: 195 | R81: =CONVERT(30/0.55,"lbm","kg")*(1/0.0283168) -> 873.7358035 | S81: 0.8737358035 | T81: N | U81: Sewage Sludge | V81: These characteristics are mostly derived from USDA 2008. However, the USDA did not provide methane yields. Methane yields for primary sludge from general wastewater treatment facilities and converted from their original values into cubic meters per dry Mg from Bachmann 2015. They original range in Bachmann 2015 suggested methane yields range from 315 – 400 cubic meters per Mg of TS. Using USDA information, these values were converted into the values presented on the left. The presented value is an average of the range 315 - 400 cubic meters per Mg range. | W81: USDA 2008; Bachmann 2015; Rose et al. 2015; WRAP 2009
A82: Graywater | B82: 0.9992 | C82: 0.0008 | F82: =G82/C82 -> 0.3 | G82: 0.00024 | H82: =C82-G82 -> 0.00056 | L82: 1e-05 | M82: 0.25 | N82: 0.02 | O82: 0.02 | Q82: 89.375 | R82: =CONVERT(1625/27,"lbm","kg")*(1/0.0283168) -> 964.0757708 | S82: 0.9640757708 | T82: N | U82: Sewage Sludge | W82: USDA 2008; Bachmann 2015; WRAP 2009
A83: Septage Tank Wastewater | B83: 0.9975 | C83: 0.0025 | F83: =G83/C83 -> 0.56 | G83: 0.0014 | H83: =C83-G83 -> 0.0011 | L83: 1e-05 | M83: 0.25 | N83: 0.02 | O83: 0.02 | Q83: 200.2 | R83: =CONVERT(2200/35,"lbm","kg")*(1/0.0283168) -> 1006.876497 | S83: 1.006876497 | T83: N | U83: Sewage Sludge | W83: USDA 2008; Bachmann 2015; Rose et al. 2015; WRAP 2009
A84: Composite Wastewater | B84: 0.9965 | C84: 0.0035 | F84: =G84/C84 -> 0.5714285714 | G84: 0.002 | H84: =C84-G84 -> 0.0015 | L84: 1e-05 | M84: 0.25 | N84: 0.02 | O84: 0.02 | Q84: 204.2857143 | R84: =CONVERT(2200/38,"lbm","kg")*(1/0.0283168) -> 927.3862476 | S84: 0.9273862476 | T84: N | U84: Sewage Sludge | W84: USDA 2008; Bachmann 2015; WRAP 2009
A85: Raw Sewage Sludge | B85: =1-C85 -> 0.96 | C85: 0.04 | F85: =G85/C85 -> 0.75 | G85: 0.03 | H85: 0.01 | L85: 0.0032 | M85: 0.25 | N85: 0.02 | O85: 0.02 | Q85: 315 | R85: =CONVERT(2200/35,"lbm","kg")*(1/0.0283168) -> 1006.876497 | S85: 1.006876497 | T85: N | U85: Sewage Sludge | W85: USDA 2008; Bachmann 2015; WRAP 2009
A86: Diverted Municipal Waste (Food Only) | B86: =1-C86 -> 0.7626 | C86: 0.2374 | F86: =G86/C86 -> 0.9144903117 | G86: 0.2171 | H86: =C86-G86 -> 0.0203 | L86: =0.0344*C86 -> 0.00816656 | M86: =453/1000*G86 -> 0.0983463 | N86: =151/1000*G86 -> 0.0327821 | O86: =235/1000*G86 -> 0.0510185 | Q86: 445 | R86: 500 | S86: 0.5 | T86: N | U86: Food Waste | V86: Bulk densities taken from WRAP 2009 | W86: Zhang et al. 2012; Zhang et al. 2015; WRAP 2009
A87: Diverted Municipal Waste (All Organics) | B87: =1-C87 -> 0.4717 | C87: 0.5283 | F87: 0.6350558395 | G87: 0.3355 | H87: =C87-G87 -> 0.1928 | L87: =0.0132*C87 -> 0.00697356 | M87: =340/1000*G87 -> 0.11407 | N87: =68.6/1000*G87 -> 0.0230153 | O87: =130/1000*G87 -> 0.043615 | Q87: 344 | R87: 500 | S87: 0.5 | T87: N | U87: Food Waste | W87: Zhang et al. 2012; Zhang et al. 2015; WRAP 2009
B88: Kitchen Feedstocks And Food Scraps
A89: Mixed Vegetable Waste Only | B89: 0.77 | C89: =1-B89 -> 0.23 | F89: 0.964 | G89: =F89*C89 -> 0.22172 | H89: =C89-G89 -> 0.00828 | L89: 0.005 | M89: 0.59 | N89: 0.19 | O89: 0.181 | Q89: 361 | R89: 500 | S89: =R89/DensityofWater -> 0.5 | T89: N | U89: Food Waste | V89: Levis et al did not provide batch densities or nitrogen contents. Li et al values were used to determine bulk density and nitrogen content. These assumptions are based on a generic kitchen waste stream in China. Protein, Fat, and Sugar content taken from Browne and Murphy 2013. | W89: Levis et al. 2013; Li et al. 2009; Browne and Murphy 2013
A90: Mixed Food Waste With Non‐Veg. | B90: 0.57 | C90: =1-B90 -> 0.43 | F90: 0.942 | G90: =F90*C90 -> 0.40506 | H90: =C90-G90 -> 0.02494 | L90: 0.005 | M90: 0.59 | N90: 0.19 | O90: 0.181 | Q90: 361 | R90: 500 | S90: 0.5 | T90: N | U90: Food Waste | W90: Levis et al. 2013; Li et al. 2009; Browne and Murphy 2013
A91: Bread Feedstocks | B91: =1-C91 -> 0.326 | C91: 0.674 | F91: =G91/C91 -> 0.971810089 | G91: 0.655 | H91: =C91-G91 -> 0.019 | L91: =0.37*B91 -> 0.12062 | M91: =1-SUM(N91:O91)-H91 -> 0.84 | N91: =2% -> 0.02 | O91: =12.1% -> 0.121 | Q91: 306 | R91: 200 | S91: 0.2 | T91: N | U91: Food Waste | V91: The waste density is estimated by the experiment design. Samples 200 grams in mass were stored in 1 Liter containers. Nitrogen content came from Mathias et al. 2011. The "Hot trub" was used as Brewery Grains Waste and "Brewer's spent grain" as the Bread Wastes nitrogen content. | W91: Kafle et al. 2013; Mathias et al. 2011
A92: Brewery Grain Feedstocks | B92: =1-C92 -> 0.758 | C92: 0.242 | F92: =G92/C92 -> 0.9504132231 | G92: 0.23 | H92: =C92-G92 -> 0.012 | L92: =0.14*B92 -> 0.10612 | M92: =1-SUM(N92:O92)-H92 -> 0.64 | N92: =8.7% -> 0.087 | O92: =26.1% -> 0.261 | Q92: 316 | R92: 200 | S92: 0.2 | T92: N | U92: Food Waste | W92: Kafle et al. 2013; Mathias et al. 2011
A93: Mixed Cafeteria Or Canteen Waste | B93: =1-C93 -> 0.71 | C93: 0.29 | F93: 0.953 | G93: =F93*C93 -> 0.27637 | H93: =C93-G93 -> 0.01363 | L93: 0.0353 | M93: 0.59 | N93: 0.19 | O93: 0.181 | Q93: 498 | R93: =R89 -> 500 | S93: 0.5 | T93: N | U93: Food Waste | W93: Browne and Murphy 2013; Li et al. 2009
A94: Cooked Meat | B94: 0.47 | C94: 0.53 | F94: =G94/C94 -> 0.97 | G94: 0.5141 | H94: 0.0159 | L94: 0.105 | M94: =1-N94-O94-H94 -> 0.5341 | N94: 0.17 | O94: 0.28 | Q94: 482 | R94: 1040 | S94: 1.04 | T94: N | U94: Food Waste | V94: Density values taken from Rittenschober et al. 2012. Cooked meat is the value for "Beef and noodles in gravy." Protein, Fat and Sugar content taken from USDA 2016. Values are for ground beef and boiled wild rice. | W94: Rittenschober et al. 2012; Cho et al. 1995; USDA 2016
A95: Boiled Rice | B95: 0.65 | C95: 0.35 | F95: =G95/C95 -> 0.99 | G95: 0.3465 | H95: 0.0035 | L95: 0.016 | M95: =B95-N95-O95-H95 -> 0.5725 | N95: 0.034 | O95: 0.04 | Q95: 294 | R95: 700 | S95: 0.7 | T95: N | U95: Food Waste | W95: Rittenschober et al. 2012; Cho et al. 1995; USDA 2016
A96: Slaughterhouse Waste (Raw waste) | B96: =1-C96 -> 0.542 | C96: 0.458 | F96: 0.376 | G96: =F96*C96 -> 0.172208 | H96: =C96-G96 -> 0.285792 | L96: =22.3/1000 -> 0.0223 | M96: =0.108*G96 -> 0.018598464 | N96: =0.523*G96 -> 0.090064784 | O96: =0.37*G96 -> 0.06371696 | Q96: 125 | R96: 1100 | S96: 1.1 | T96: N | U96: Food Waste | V96: measurements were derived from swine slaughterhouse waste | W96: Hejnfelt et al. 2009
A97: Slaughterhouse Waste (Animal Hair) | B97: =1-C97 -> 0.603 | C97: 0.397 | F97: 0.358 | G97: =F97*C97 -> 0.142126 | H97: =C97-G97 -> 0.254874 | L97: =47.4/1000 -> 0.0474 | M97: =0.062*G97 -> 0.008811812 | N97: =0.111*G97 -> 0.015775986 | O97: =0.822*G97 -> 0.116827572 | Q97: 266 | R97: =0.560646*1000 -> 560.646 | S97: 0.560646 | T97: N | U97: Sewage Sludge | V97: some values read from Figure 1 | W97: Hejnfelt et al. 2009; Hapman 2019
A98: Slaughterhouse Waste (Blood) | B98: =1-C98 -> 0.821 | C98: 0.179 | F98: 0.168 | G98: =F98*C98 -> 0.030072 | H98: =C98-G98 -> 0.148928 | L98: =25.4/1000 -> 0.0254 | M98: =0.053*G98 -> 0.001593816 | N98: =0.003*G98 -> 9.0216e-05 | O98: =0.944*G98 -> 0.028387968 | Q98: 250 | R98: 1000 | S98: 1 | T98: N | U98: Food Waste | V98: some values read from Figure 1 | W98: Hejnfelt et al. 2009
A99: Slaughterhouse Waste (Carcass/Paunch) | B99: =1-C99 -> 0.778 | C99: 0.222 | F99: 0.927 | G99: =F99*C99 -> 0.205794 | H99: =C99-G99 -> 0.016206 | L99: =0.02*C99 -> 0.00444 | M99: =0.784*C99 -> 0.174048 | N99: =0.005*C99 -> 0.00111 | O99: =0.134*C99 -> 0.029748 | Q99: 228.8 | R99: 999.5521 | S99: 0.9995521 | T99: N | U99: Food Waste | W99: Ware et al. 2016; Hapman 2019
B100: Seafood Waste Silages
A101: Pacific Saury Fish Waste Silage | B101: =1-C101 -> 0.686 | C101: 0.314 | F101: =G101/C101 -> 0.88 | G101: =C101*0.88 -> 0.27632 | H101: =C101-G101 -> 0.03768 | L101: 0.26 | M101: =1-SUM(N101:O101)-H101 -> 0.19532 | N101: =36.4% -> 0.364 | O101: =40.3% -> 0.403 | Q101: 435 | R101: 200 | S101: =R101/DensityofWater -> 0.2 | T101: N | U101: Food Waste | V101: Fish silage are defined as a liquid product made from whole fish or parts of fish that are liquefied. Often this waste is generated from fish canning operations. The waste density is estimated by the experiment design. Samples 200 grams in mass were stored in 1 Liter containers. | W101: Kafle et al. 2013; Ramirez et al. 2013
A102: Cuttle Fish Waste Silage | B102: =1-C102 -> 0.615 | C102: 0.385 | F102: =G102/C102 -> 0.94 | G102: =C102*0.94 -> 0.3619 | H102: =C102-G102 -> 0.0231 | L102: 0.26 | M102: =1-SUM(N102:O102)-H102 -> 0.1069 | N102: =46.7% -> 0.467 | O102: =40.3% -> 0.403 | Q102: 543 | R102: 200 | S102: =R102/DensityofWater -> 0.2 | T102: N | U102: Food Waste | W102: Kafle et al. 2013; Ramirez et al. 2013
A103: Mackerel Fish Waste Silage | B103: =1-C103 -> 0.644 | C103: 0.356 | F103: 0.8601123596 | G103: 0.3062 | H103: 0.0498 | L103: 0.26 | M103: 0.0412 | N103: =49.5% -> 0.495 | O103: =41.4% -> 0.414 | Q103: 526 | R103: 200 | S103: =R103/DensityofWater -> 0.2 | T103: N | U103: Food Waste | W103: Kafle et al. 2013; Ramirez et al. 2013
B104: Energy And Cash Crops
A105: Agave (Agave sisalana) | B105: 0.6929 | C105: =1-B105 -> 0.3071 | F105: =67.7% -> 0.677 | G105: =F105*C105 -> 0.2079067 | H105: =C105-G105 -> 0.0991933 | L105: 0.02 | M105: 0.99 | N105: 0.005 | O105: 0.005 | Q105: 301 | R105: =0.52/(1.04* 0.079 *0.018) -> 351.6174402 | S105: =R105/DensityofWater -> 0.3516174402 | T105: N | U105: Yard Waste | V105: Values used are for sisal leaf decortications waste (fresh). This type of agave is traditonally used for making textiles. | W105: Maik et al. 2016; Muthangya et al. 2013
A106: Sugarcane Pretreated (Bagasse) | B106: =1-C106 -> 0.2036 | C106: 0.7964 | F106: =G106/C106 -> 0.9898292315 | G106: 0.7883 | H106: =C106-G106 -> 0.0081 | L106: 0.0074 | M106: =1-N106-O106-H106 -> 0.9229 | N106: 0.035 | O106: 0.034 | Q106: 420 | R106: 400.5 | S106: 0.4005 | T106: N | U106: Yard Waste | W106: Sumardiono et al. 2017; Inyang 2010
A107: Sugarcane Untreated (Bagasse) | B107: =1-C107 -> 0.2036 | C107: 0.7964 | F107: =G107/C107 -> 0.9898292315 | G107: 0.7883 | H107: =C107-G107 -> 0.0081 | L107: 0.0074 | M107: =1-N107-O107-H107 -> 0.9229 | N107: 0.035 | O107: 0.034 | Q107: 84.75 | R107: 400.5 | S107: 0.4005 | T107: N | U107: Yard Waste | W107: Sumardiono et al. 2017; Inyang 2010
A108: Sugar Beet Tops | B108: =1-C108 -> 0.884 | C108: 0.116 | F108: 0.85 | G108: 0.099 | H108: =C108-G108 -> 0.017 | L108: =0.022*C108 -> 0.002552 | M108: =0.07*0.304 -> 0.02128 | N108: =0.015*0.304% -> 4.56e-05 | O108: =0.087*0.304 -> 0.026448 | Q108: 340 | R108: 380 | S108: 0.38 | T108: N | U108: Yard Waste | W108: Lehtomäki et al. 2008; Kythreotou et al. 2014; Hapman 2019
A109: Rapeseed Meal | B109: =1-C109 -> 0.088 | C109: 0.912 | F109: 0.868 | G109: =F109*C109 -> 0.791616 | H109: =C109-G109 -> 0.120384 | L109: 0.009 | M109: 0.634 | N109: 0 | O109: 0 | Q109: 420 | R109: 704 | S109: 0.704 | T109: N | U109: Yard Waste | V109: A value for protein and fat content of Rapeseed could not be identified so these values were assumed to be zero. A source for nitrogen content could not be identified so the value was assumed to be 0.9%, the same as the general grass default. | W109: Antonopoulou et al. 2010; Petersson et al. 2007
A110: Sunflower Meal | B110: =1-C110 -> 0.079 | C110: 0.921 | F110: 0.892 | G110: =F110*C110 -> 0.821532 | H110: =C110-G110 -> 0.099468 | L110: 0.009 | M110: =1-N110-O110-H110 -> 0.178132 | N110: 0.5146 | O110: 0.2078 | Q110: 481 | R110: 289 | S110: 0.289 | T110: N | U110: Yard Waste | W110: Antonopoulou et al. 2010; USDA 2016
A111: Palms (Empty Fruit) | B111: 0.068 | C111: 0.932 | F111: =G111/C111 -> 0.8082618026 | G111: 0.7533 | H111: =C111-G111 -> 0.1787 | L111: 0.0107 | M111: =1-N111-O111-H111 -> 0.774 | N111: 0.0473 | O111: 0 | Q111: 112 | R111: 707.55 | S111: 0.70755 | T111: N | U111: Yard Waste | V111: Empty fruit density is taken from Alucilja et al. 2013. Due to lack of available substitutes, this bulk density is assumed for pressed fibers and decanter cake as well. | W111: Chaikitkaew et al. 2015; Alucilja et al. 2013
A112: Palms (Pressed Fibers) | B112: 0.061 | C112: 0.939 | F112: =G112/C112 -> 0.8711395101 | G112: 0.818 | H112: =C112-G112 -> 0.121 | L112: 0.0149 | M112: =1-N112-O112-H112 -> 0.7971 | N112: 0.0819 | O112: 0 | Q112: 108 | R112: 707.55 | S112: 0.70755 | T112: N | U112: Yard Waste | W112: Chaikitkaew et al. 2015; Alucilja et al. 2013
A113: Palms (Decanter Cake) | B113: 0.0581 | C113: 0.9419 | F113: =G113/C113 -> 0.8138868245 | G113: 0.7666 | H113: 0.1753 | L113: 0.033 | M113: 0.709 | N113: 0.1157 | O113: 0 | Q113: 100 | R113: 707.55 | S113: 0.70755 | T113: N | U113: Yard Waste | W113: Chaikitkaew et al. 2015; Alucilja et al. 2013
A114: Pressmud | B114: =1-C114 -> 0.9091 | C114: =0.0909 -> 0.0909 | F114: 0.8084 | G114: =F114*C114 -> 0.07348356 | H114: 0.01741644 | L114: =0.017*((100-B114)/100) -> 0.016845453 | M114: 0.057 | N114: 0 | O114: 0.155 | Q114: 225 | R114: 30 | S114: 0.03 | T114: N | U114: Yard Waste | W114: Agrawal et al. 2009; Sundaranayagi et al. 2017
A115: De-oiled Cake | B115: 0.083 | C115: 0.91875 | F115: 0.8473836898 | G115: 0.7773 | H115: 0.14145 | L115: 0.038375 | M115: 0.85855 | N115: 0.0068 | O115: 0.01558 | Q115: 91.22480829 | R115: 517.5 | S115: 1.0024 | T115: N | U115: Yard Waste | W115: Suresh et al. 2017; Jimoh et al. 2018
B116: Other Inputs
A117: Added Water | B117: 1 | C117: 0 | F117: 0 | G117: 0 | H117: 0 | L117: 0 | M117: 0 | N117: 0 | O117: 0 | Q117: 0 | R117: 1000 | S117: =R117/DensityofWater -> 1 | T117: N | U117: Sewage Sludge
A118: CHOOSE AT LEAST ONE

Sheet 10-Feedstock Toxicity Info
A1: Waste Toxicity Characteristics
A2: The table below lists waste category and the anaerobic digestion inhibitors commonly associated with that type of waste. Sources for this table include Chen et al. 2007, Lefebvre et al. 2007, and Arinbaatar et al. 2014. Some information was also sourced from the sources listed on the Default Waste Assumptions tab for individual waste types.
T3: Light Metals
A4: Inhibitor Category | B4: Ammonia | C4: Sulfides | D4: Light Metals | I4: Heavy Metals | J4: Organic Contaminants
A5: Inhibitor Name or Example | B5: Ammonia Ions, free Ammonia | C5: Sulfides | D5: Aluminum | E5: Calcium | F5: Magnesium | G5: Potassium | H5: Sodium | I5: e.g. Fe, Co, Cu, Zn, Pb, etc. | J5: e.g. Chlorophenols, Halogenated, Alophatics, N-substituted aromatics, LCFAs, and Lignins
B6: Livestock Excreted Feedstocks
A7: Lactating Cow (100 Lb./Day) | B7: ✔ | J7: ✔ | T7: =COUNTA(D7:H7) -> 0
A8: Calf | B8: ✔ | J8: ✔ | T8: 0
A9: Heifer | B9: ✔ | J9: ✔ | T9: 0
A10: Dry Dairy Cow | B10: ✔ | J10: ✔ | T10: 0
A11: Beef Cattle In Confinement | B11: ✔ | J11: ✔ | T11: 0
A12: Calf In Confinement (450 -750 Lbs.) | B12: ✔ | J12: ✔ | T12: 0
A13: Finishing Cattle With Corn Supplement | B13: ✔ | J13: ✔ | T13: 0
A14: Finishing Cattle Without Corn Supplement | B14: ✔ | J14: ✔ | T14: 0
A15: Swine - Gestating (423 Lb.) | B15: ✔ | C15: ✔ | J15: ✔ | T15: 0
A16: Swine - Lactating (423 Lb.) | B16: ✔ | C16: ✔ | J16: ✔ | T16: 0
A17: Boar (440 Lb.) | B17: ✔ | C17: ✔ | J17: ✔ | T17: 0
A18: Piglets | B18: ✔ | C18: ✔ | J18: ✔ | T18: 0
A19: Adolescents Pigs | B19: ✔ | C19: ✔ | J19: ✔ | T19: 0
A20: Poultry Chicken | B20: ✔ | J20: ✔ | T20: 0
A21: Broiler Chicken | B21: ✔ | J21: ✔ | T21: 0
A22: Turkey Male | B22: ✔ | J22: ✔ | T22: 0
A23: Turkey Female | B23: ✔ | J23: ✔ | T23: 0
A24: Duck | B24: ✔ | J24: ✔ | T24: 0
A25: Lamb/Sheep/Goat | B25: ✔ | J25: ✔ | T25: 0
A26: Veal | B26: ✔ | J26: ✔ | T26: 0
A27: Horse | B27: ✔ | J27: ✔ | T27: 0
B28: Fruit And Vegetable Feedstocks | T28: 0
A29: Alfalfa | T29: 0
A30: Bananas | T30: 0
A31: Broccoli | T31: 0
A32: Cabbage | T32: 0
A33: Chinese Cabbage (Pak-Choi) | T33: 0
A34: Carrot Root | T34: 0
A35: Cauliflower | T35: 0
A36: Sweet Corn | T36: 0
A37: Kale | T37: 0
A38: Lettuce | T38: 0
A39: Onions | T39: =COUNTA(D39:H39) -> 0
A40: Orange Flesh | T40: 0
A41: Orange Pulp | T41: 0
A42: Potato, Top, Mature | T42: 0
A43: Potato Peel | T43: 0
A44: Pumpkins | T44: 0
A45: Spinach | T45: 0
A46: Tomatoes | T46: 0
A47: Tomatoes (Solid Waste) | T47: 0
A48: Maize (Early Harvest Or Milk Ripeness) | J48: ✔ | T48: 0
A49: Maize (Middle Harvest Or Wax Ripeness) | J49: ✔ | T49: 0
A50: Rice Straw | J50: ✔ | T50: 0
A51: Rice Husk | J51: ✔ | T51: 0
A52: Rice Residue (Dried) | J52: ✔ | T52: 0
A53: Wheat Straw | T53: 0
A54: Maize Cob | T54: 0
A55: Coffee Grounds | T55: 0
A56: Tea Leaves | T56: 0
B57: Dairy Feedstocks | T57: 0
A58: Dairy Wastewater | H58: ✔ | T58: =COUNTA(D58:H58) -> 1
A59: Whey - Sweet Cheese | H59: ✔ | T59: 1
A60: Whey - Acid Cheese | H60: ✔ | T60: 1
B61: Garden Feedstocks | T61: 0
A62: Water Hyacinths | T62: 0
A63: Leaves | T63: 0
A64: Grass | T64: 0
A65: Branches | J65: ✔ | T65: 0
A66: Wood | J66: ✔ | T66: 0
B67: Other Organic Municipal Feedstocks | T67: 0
A68: Textiles | I68: ✔ | J68: ✔ | T68: 0
A69: Newsprint | C69: ✔ | J69: ✔ | T69: 0
A70: Corrugated Cardboard | C70: ✔ | J70: ✔ | T70: 0
A71: Office Paper | C71: ✔ | J71: ✔ | T71: =COUNTA(D71:H71) -> 0
A72: Magazines | C72: ✔ | J72: ✔ | T72: 0
A73: Junk Mail & Paper | C73: ✔ | J73: ✔ | T73: 0
A74: Folding Cartons | C74: ✔ | J74: ✔ | T74: 0
A75: Paper Bags And Sacks | C75: ✔ | J75: ✔ | T75: 0
A76: Paper Non‐Recyclable | C76: ✔ | J76: ✔ | T76: 0
A77: Human Waste | B77: ✔ | C77: ✔ | T77: 0
A78: Graywater | B78: ✔ | C78: ✔ | H78: ✔ | I78: ✔ | T78: 1
A79: Septage Tank Wastewater | B79: ✔ | C79: ✔ | H79: ✔ | I79: ✔ | J79: ✔ | T79: 1
A80: Composite Wastewater | B80: ✔ | C80: ✔ | H80: ✔ | I80: ✔ | J80: ✔ | T80: 1
A81: Raw Sewage Sludge | B81: ✔ | C81: ✔ | H81: ✔ | I81: ✔ | J81: ✔ | T81: 1
A82: Diverted Municipal Waste (Food Only) | H82: ✔ | T82: 1
A83: Diverted Municipal Waste (All Organics) | B83: ✔ | C83: ✔ | H83: ✔ | I83: ✔ | J83: ✔ | T83: 1
B84: Kitchen Feedstocks And Food Scraps | T84: 0
A85: Mixed Vegetable Waste Only | H85: ✔ | T85: 1
A86: Mixed Food Waste With Non‐Veg. | H86: ✔ | J86: ✔ | T86: 1
A87: Bread Feedstocks | H87: ✔ | T87: 1
A88: Brewery Grain Feedstocks | C88: ✔ | H88: ✔ | T88: 1
A89: Mixed Cafeteria Or Canteen Waste | H89: ✔ | T89: 1
A90: Cooked Meat | B90: ✔ | H90: ✔ | J90: ✔ | T90: 1
A91: Boiled Rice | H91: ✔ | T91: 1
A92: Slaughterhouse Waste (Raw waste) | B92: ✔ | J92: ✔
A93: Slaughterhouse Waste (Animal Hair) | B93: ✔ | J93: ✔
A94: Slaughterhouse Waste (Blood) | B94: ✔ | J94: ✔
A95: Slaughterhouse Waste (Carcass/Paunch) | B95: ✔ | J95: ✔
B96: Seafood Waste Silages | T96: 0
A97: Pacific Saury Fish Waste Silage | H97: ✔ | J97: ✔ | T97: 1
A98: Cuttle Fish Waste Silage | H98: ✔ | J98: ✔ | T98: 1
A99: Mackerel Fish Waste Silage | H99: ✔ | J99: ✔ | T99: 1
B100: Energy And Cash Crops | T100: 0
A101: Agave (Agave sisalana) | J101: ✔ | T101: 0
A102: Tequila Vinasses | C102: ✔ | H102: ✔ | J102: ✔ | T102: 1
A103: Sugarcane Pretreated (Bagasse) | J103: ✔ | T103: 0
A104: Sugarcane Untreated (Bagasse) | J104: ✔ | T104: 0
A105: Rapeseed Meal | T105: 0
A106: Sunflower Meal | T106: 0
A107: Palms (Empty Fruit) | T107: =COUNTA(D107:H107) -> 0
A108: Palms (Pressed Fibers) | T108: 0
A109: Palms (Decanter Cake) | T109: 0
A110: Pressmud
A111: De-oiled Cake | B111: ✔ | C111: ✔
B112: Other Inputs | T112: 0
A113: Added Water | T113: 0
T114: 0

Sheet 11-Calibration Factors
A1: Calibration Factors
A3: System Type | B3: Calibration Factor - low | C3: Calibration Factor - high
A4: Wet_Mesophilic | B4: 0.4008493115 | C4: 0.7304181797
A5: Wet_Thermophilic | B5: 0.5747126437 | C5: 0.5747126437
A6: Wet_Unheated/Ambient | B6: 0.01176193837 | C6: 0.01176193837
A7: Dry_Mesophilic | B7: 0.4008493115 | C7: 0.7304181797
A8: Dry_Thermophilic | B8: 0.5747126437 | C8: 0.5747126437
A9: Dry_Unheated/Ambient | B9: 0.01176193837 | C9: 0.01176193837
A12: Mesophilic_Wet
A13: Thermophilic_Wet
A14: Unheated/Ambient_Wet
A15: Mesophilic_Dry
A16: Thermophilic_Dry
A17: Unheated/Ambient_Dry

Sheet 12-OrganEcs Input Sheet
A1: OrganEcs Input Sheet
A2: Instructions: The OrganEcs is a tool for estimating the costs associated with an organic waste management project. It provides planning-level assistance to local governments, waste professionals, policymakers, facility operators, and project developers to help them make financial decisions about their potential organic waste management projects.This sheet allows you the ability to directly copy the results from AD Screening Tool to OrganEcs - Anaerobic Digestion Version 3.1. You may manually enter the results generated in the yellow/blue cells into the “Waste Inputs” tab in OrganEcs. More information about OrganEcs can be accessed at https://www.globalmethane.org/resources/details.aspx?resourceid=5175
B8: Yard Waste | C8: Food Waste | D8: Manure | E8: Sewage Sludge | F8: Mixed Paper | G8: Corrugated Cardboard
A9: Tonnes Per Year | B9: =SUMIFS('3-Digester Inputs'!$BE$17:$BE$31,'3-Digester Inputs'!$S$17:$S$31,'12-OrganEcs Input Sheet'!B8)*365/1000 -> 0 | C9: =SUMIFS('3-Digester Inputs'!$BE$17:$BE$31,'3-Digester Inputs'!$S$17:$S$31,'12-OrganEcs Input Sheet'!C8)*365/1000 -> 0 | D9: =SUMIFS('3-Digester Inputs'!$BE$17:$BE$31,'3-Digester Inputs'!$S$17:$S$31,'12-OrganEcs Input Sheet'!D8)*365/1000 -> 0 | E9: =SUMIFS('3-Digester Inputs'!$BE$17:$BE$31,'3-Digester Inputs'!$S$17:$S$31,'12-OrganEcs Input Sheet'!E8)*365/1000 -> 0 | F9: =SUMIFS('3-Digester Inputs'!$BE$17:$BE$31,'3-Digester Inputs'!$S$17:$S$31,'12-OrganEcs Input Sheet'!F8)*365/1000 -> 0 | G9: =SUMIFS('3-Digester Inputs'!$BE$17:$BE$31,'3-Digester Inputs'!$S$17:$S$31,'12-OrganEcs Input Sheet'!G8)*365/1000 -> 0
A10: Carbon (% dry weight) | B10: =IFERROR(B11*B12,"") ->  | C10: =IFERROR(C11*C12,"") -> 
A11: Nitrogen (% dry weight) | B11: =IFERROR(SUMPRODUCT('3-Digester Inputs'!T17:T31,'3-Digester Inputs'!Z17:Z31)/SUM('3-Digester Inputs'!T17:T31),"") ->  | C11: =IFERROR(SUMPRODUCT('3-Digester Inputs'!U17:U31,'3-Digester Inputs'!AA17:AA31)/SUM('3-Digester Inputs'!U17:U31),"") ->  | D11: =IFERROR(SUMPRODUCT('3-Digester Inputs'!V17:V31,'3-Digester Inputs'!AB17:AB31)/SUM('3-Digester Inputs'!V17:V31),"") ->  | E11: =IFERROR(SUMPRODUCT('3-Digester Inputs'!W17:W31,'3-Digester Inputs'!AC17:AC31)/SUM('3-Digester Inputs'!W17:W31),"") ->  | F11: =IFERROR(SUMPRODUCT('3-Digester Inputs'!X17:X31,'3-Digester Inputs'!AD17:AD31)/SUM('3-Digester Inputs'!X17:X31),"") ->  | G11: =IFERROR(SUMPRODUCT('3-Digester Inputs'!Y17:Y31,'3-Digester Inputs'!AE17:AE31)/SUM('3-Digester Inputs'!Y17:Y31),"") -> 
A12: C:N Ratio (parts carbon to 1 part nitrogen) | B12: =IFERROR(SUMPRODUCT('3-Digester Inputs'!AF17:AF31,'3-Digester Inputs'!T17:T31)/SUM('3-Digester Inputs'!T17:T31),"") ->  | C12: =IFERROR(SUMPRODUCT('3-Digester Inputs'!AG17:AG31,'3-Digester Inputs'!U17:U31)/SUM('3-Digester Inputs'!U17:U31),"") ->  | D12: =IFERROR(SUMPRODUCT('3-Digester Inputs'!AH17:AH31,'3-Digester Inputs'!V17:V31)/SUM('3-Digester Inputs'!V17:V31),"") ->  | E12: =IFERROR(SUMPRODUCT('3-Digester Inputs'!AI17:AI31,'3-Digester Inputs'!W17:W31)/SUM('3-Digester Inputs'!W17:W31),"") ->  | F12: =IFERROR(SUMPRODUCT('3-Digester Inputs'!AJ17:AJ31,'3-Digester Inputs'!X17:X31)/SUM('3-Digester Inputs'!X17:X31),"") ->  | G12: =IFERROR(SUMPRODUCT('3-Digester Inputs'!AK17:AK31,'3-Digester Inputs'!Y17:Y31)/SUM('3-Digester Inputs'!Y17:Y31),"") -> 
A13: Moisture % | B13: =IFERROR(SUMPRODUCT('3-Digester Inputs'!AL17:AL31,'3-Digester Inputs'!T17:T31)/SUM('3-Digester Inputs'!T17:T31),"") ->  | C13: =IFERROR(SUMPRODUCT('3-Digester Inputs'!AM17:AM31,'3-Digester Inputs'!U17:U31)/SUM('3-Digester Inputs'!U17:U31),"") ->  | D13: =IFERROR(SUMPRODUCT('3-Digester Inputs'!AN17:AN31,'3-Digester Inputs'!V17:V31)/SUM('3-Digester Inputs'!V17:V31),"") ->  | E13: =IFERROR(SUMPRODUCT('3-Digester Inputs'!AO17:AO31,'3-Digester Inputs'!W17:W31)/SUM('3-Digester Inputs'!W17:W31),"") ->  | F13: =IFERROR(SUMPRODUCT('3-Digester Inputs'!AP17:AP31,'3-Digester Inputs'!X17:X31)/SUM('3-Digester Inputs'!X17:X31),"") ->  | G13: =IFERROR(SUMPRODUCT('3-Digester Inputs'!AQ17:AQ31,'3-Digester Inputs'!Y17:Y31)/SUM('3-Digester Inputs'!Y17:Y31),"") -> 
A14: Volatile Solids | B14: =IFERROR(SUMPRODUCT('3-Digester Inputs'!AR17:AR31,'3-Digester Inputs'!T17:T31)/SUM('3-Digester Inputs'!T17:T31),"") ->  | C14: =IFERROR(SUMPRODUCT('3-Digester Inputs'!AS17:AS31,'3-Digester Inputs'!U17:U31)/SUM('3-Digester Inputs'!U17:U31),"") ->  | D14: =IFERROR(SUMPRODUCT('3-Digester Inputs'!AT17:AT31,'3-Digester Inputs'!V17:V31)/SUM('3-Digester Inputs'!V17:V31),"") ->  | E14: =IFERROR(SUMPRODUCT('3-Digester Inputs'!AU17:AU31,'3-Digester Inputs'!W17:W31)/SUM('3-Digester Inputs'!W17:W31),"") ->  | F14: =IFERROR(SUMPRODUCT('3-Digester Inputs'!AV17:AV31,'3-Digester Inputs'!X17:X31)/SUM('3-Digester Inputs'!X17:X31),"") ->  | G14: =IFERROR(SUMPRODUCT('3-Digester Inputs'!AW17:AW31,'3-Digester Inputs'!Y17:Y31)/SUM('3-Digester Inputs'!Y17:Y31),"") -> 
A15: Tonnes Carbon | B15: =IFERROR(B10*B9,"") ->  | C15: =IFERROR(C10*C9,"") -> 
A16: Tonnes Nitrogen | B16: =IFERROR(B9*B11,"") ->  | C16: =IFERROR(C9*C11,"") -> 
A17: Tonnes of Moisture | B17: =IFERROR(B13*B9,"") ->  | C17: =IFERROR(C13*C9,"") -> 
A18: Tonnes of Volatile Solids | B18: =IFERROR(B9*B14,"") ->  | C18: =IFERROR(C9*C14,"") -> 
A19: Methane Yield (m3 CH4/dry metric tonne) | B19: =IFERROR(SUMPRODUCT('3-Digester Inputs'!T17:T31,'3-Digester Inputs'!AX17:AX31)/SUM('3-Digester Inputs'!T17:T31)*1000,"") ->  | C19: =IFERROR(SUMPRODUCT('3-Digester Inputs'!U17:U31,'3-Digester Inputs'!AY17:AY31)/SUM('3-Digester Inputs'!U17:U31)*1000,"") ->  | D19: =IFERROR(SUMPRODUCT('3-Digester Inputs'!V17:V31,'3-Digester Inputs'!AZ17:AZ31)/SUM('3-Digester Inputs'!V17:V31)*1000,"") ->  | E19: =IFERROR(SUMPRODUCT('3-Digester Inputs'!W17:W31,'3-Digester Inputs'!BA17:BA31)/SUM('3-Digester Inputs'!W17:W31)*1000,"") ->  | F19: =IFERROR(SUMPRODUCT('3-Digester Inputs'!X17:X31,'3-Digester Inputs'!BB17:BB31)/SUM('3-Digester Inputs'!X17:X31)*1000,"") ->  | G19: =IFERROR(SUMPRODUCT('3-Digester Inputs'!Y17:Y31,'3-Digester Inputs'!BC17:BC31)/SUM('3-Digester Inputs'!Y17:Y31)*1000,"") -> 

Sheet 13-MCF
A1: Methane Conversion Factors (MCF)
B6: MCF Values By Temperature for Manure Management Systems
C7: Temperature (°C)
C8: Cool | H8: Temperate | S8: Warm
B9: System | C9: 10 | D9: 11 | E9: 12 | F9: 13 | G9: 14 | H9: 15 | I9: 16 | J9: 17 | K9: 18 | L9: 19 | M9: 20 | N9: 21 | O9: 22 | P9: 23 | Q9: 24 | R9: 25 | S9: 26 | T9: 27 | U9: 28
B10: Aerobic Treatment | C10: 0 | D10: 0 | E10: 0 | F10: 0 | G10: 0 | H10: 0 | I10: 0 | J10: 0 | K10: 0 | L10: 0 | M10: 0 | N10: 0 | O10: 0 | P10: 0 | Q10: 0 | R10: 0 | S10: 0 | T10: 0 | U10: 0
B11: Alternative Anaerobic Digester | C11: 1 | D11: 1 | E11: 1 | F11: 1 | G11: 1 | H11: 1 | I11: 1 | J11: 1 | K11: 1 | L11: 1 | M11: 1 | N11: 1 | O11: 1 | P11: 1 | Q11: 1 | R11: 1 | S11: 1 | T11: 1 | U11: 1
B12: Cattle and Swine deep bedding <1 mo. | C12: 0.03 | D12: 0.03 | E12: 0.03 | F12: 0.03 | G12: 0.03 | H12: 0.03 | I12: 0.03 | J12: 0.03 | K12: 0.03 | L12: 0.03 | M12: 0.03 | N12: 0.03 | O12: 0.03 | P12: 0.03 | Q12: 0.03 | R12: 0.03 | S12: 0.3 | T12: 0.3 | U12: 0.3 | Y12: Dry lot
B13: Cattle and Swine deep bedding >1 mo. | C13: 0.17 | D13: 0.19 | E13: 0.2 | F13: 0.22 | G13: 0.25 | H13: 0.27 | I13: 0.29 | J13: 0.32 | K13: 0.35 | L13: 0.39 | M13: 0.42 | N13: 0.46 | O13: 0.5 | P13: 0.55 | Q13: 0.6 | R13: 0.65 | S13: 0.71 | T13: 0.78 | U13: 0.9 | Y13: Liquid Slurry w/ natural crust cover
B14: Composting in Vessel | C14: 0.005 | D14: 0.005 | E14: 0.005 | F14: 0.005 | G14: 0.005 | H14: 0.005 | I14: 0.005 | J14: 0.005 | K14: 0.005 | L14: 0.005 | M14: 0.005 | N14: 0.005 | O14: 0.005 | P14: 0.005 | Q14: 0.005 | R14: 0.005 | S14: 0.005 | T14: 0.005 | U14: 0.005 | Y14: Liquid Slurry w/o natural crust cover
B15: Composting Intensive windrow | C15: 0.005 | D15: 0.005 | E15: 0.005 | F15: 0.005 | G15: 0.005 | H15: 0.01 | I15: 0.01 | J15: 0.01 | K15: 0.01 | L15: 0.01 | M15: 0.01 | N15: 0.01 | O15: 0.01 | P15: 0.01 | Q15: 0.01 | R15: 0.01 | S15: 0.015 | T15: 0.015 | U15: 0.015 | Y15: Pit storage below animal confinements <1 mo.
B16: Composting Passive window | C16: 0.005 | D16: 0.005 | E16: 0.005 | F16: 0.005 | G16: 0.005 | H16: 0.01 | I16: 0.01 | J16: 0.01 | K16: 0.01 | L16: 0.01 | M16: 0.01 | N16: 0.01 | O16: 0.01 | P16: 0.01 | Q16: 0.01 | R16: 0.01 | S16: 0.015 | T16: 0.015 | U16: 0.015 | Y16: Pit storage below animal confinements >1 mo.
B17: Composting Static Pile | C17: 0.005 | D17: 0.005 | E17: 0.005 | F17: 0.005 | G17: 0.005 | H17: 0.005 | I17: 0.005 | J17: 0.005 | K17: 0.005 | L17: 0.005 | M17: 0.005 | N17: 0.005 | O17: 0.005 | P17: 0.005 | Q17: 0.005 | R17: 0.005 | S17: 0.005 | T17: 0.005 | U17: 0.005 | Y17: Solid Storage
B18: Daily Spread | C18: 0.001 | D18: 0.001 | E18: 0.001 | F18: 0.001 | G18: 0.001 | H18: 0.02 | I18: 0.02 | J18: 0.02 | K18: 0.02 | L18: 0.02 | M18: 0.02 | N18: 0.02 | O18: 0.02 | P18: 0.02 | Q18: 0.02 | R18: 0.02 | S18: 0.01 | T18: 0.01 | U18: 0.01 | Y18: Uncovered anaerobic lagoon
B19: Dry lot | C19: 0.01 | D19: 0.01 | E19: 0.01 | F19: 0.01 | G19: 0.01 | H19: 0.02 | I19: 0.02 | J19: 0.02 | K19: 0.02 | L19: 0.02 | M19: 0.02 | N19: 0.02 | O19: 0.02 | P19: 0.02 | Q19: 0.02 | R19: 0.02 | S19: 0.02 | T19: 0.02 | U19: 0.02
B20: Landfill | C20: 1 | D20: 1 | E20: 1 | F20: 1 | G20: 1 | H20: 1 | I20: 1 | J20: 1 | K20: 1 | L20: 1 | M20: 1 | N20: 1 | O20: 1 | P20: 1 | Q20: 1 | R20: 1 | S20: 1 | T20: 1 | U20: 1
B21: Landfill (semi-aerobic) | C21: 0.5 | D21: 0.5 | E21: 0.5 | F21: 0.5 | G21: 0.5 | H21: 0.5 | I21: 0.5 | J21: 0.5 | K21: 0.5 | L21: 0.5 | M21: 0.5 | N21: 0.5 | O21: 0.5 | P21: 0.5 | Q21: 0.5 | R21: 0.5 | S21: 0.5 | T21: 0.5 | U21: 0.5
B22: Liquid Slurry w/ natural crust cover | C22: 0.17 | D22: 0.19 | E22: 0.2 | F22: 0.22 | G22: 0.25 | H22: 0.27 | I22: 0.29 | J22: 0.32 | K22: 0.35 | L22: 0.39 | M22: 0.42 | N22: 0.46 | O22: 0.5 | P22: 0.55 | Q22: 0.6 | R22: 0.65 | S22: 0.71 | T22: 0.78 | U22: 0.8
B23: Liquid Slurry w/o natural crust cover | C23: 0.1 | D23: 0.11 | E23: 0.13 | F23: 0.14 | G23: 0.15 | H23: 0.17 | I23: 0.18 | J23: 0.2 | K23: 0.22 | L23: 0.24 | M23: 0.26 | N23: 0.29 | O23: 0.31 | P23: 0.34 | Q23: 0.37 | R23: 0.41 | S23: 0.44 | T23: 0.48 | U23: 0.5
B24: Open Burning or Burned for Fuel | C24: 0.1 | D24: 0.1 | E24: 0.1 | F24: 0.1 | G24: 0.1 | H24: 0.1 | I24: 0.1 | J24: 0.1 | K24: 0.1 | L24: 0.1 | M24: 0.1 | N24: 0.1 | O24: 0.1 | P24: 0.1 | Q24: 0.1 | R24: 0.1 | S24: 0.1 | T24: 0.1 | U24: 0.1
B25: Pasture/Range/Paddock | C25: 0.01 | D25: 0.01 | E25: 0.01 | F25: 0.01 | G25: 0.01 | H25: 0.02 | I25: 0.02 | J25: 0.02 | K25: 0.02 | L25: 0.02 | M25: 0.02 | N25: 0.02 | O25: 0.02 | P25: 0.02 | Q25: 0.02 | R25: 0.02 | S25: 0.02 | T25: 0.02 | U25: 0.02
B26: Pit storage below animal confinements <1 mo. | C26: 0.03 | D26: 0.03 | E26: 0.03 | F26: 0.03 | G26: 0.03 | H26: 0.03 | I26: 0.03 | J26: 0.03 | K26: 0.03 | L26: 0.03 | M26: 0.03 | N26: 0.03 | O26: 0.03 | P26: 0.03 | Q26: 0.03 | R26: 0.03 | S26: 0.03 | T26: 0.03 | U26: 0.03
B27: Pit storage below animal confinements >1 mo. | C27: 0.19 | D27: 0.19 | E27: 0.2 | F27: 0.22 | G27: 0.25 | H27: 0.27 | I27: 0.29 | J27: 0.32 | K27: 0.35 | L27: 0.39 | M27: 0.42 | N27: 0.46 | O27: 0.5 | P27: 0.55 | Q27: 0.6 | R27: 0.65 | S27: 0.71 | T27: 0.78 | U27: 0.8
B28: Solid Storage | C28: 0.02 | D28: 0.02 | E28: 0.02 | F28: 0.02 | G28: 0.02 | H28: 0.04 | I28: 0.04 | J28: 0.04 | K28: 0.04 | L28: 0.04 | M28: 0.04 | N28: 0.04 | O28: 0.04 | P28: 0.04 | Q28: 0.04 | R28: 0.04 | S28: 0.05 | T28: 0.05 | U28: 0.05
B29: Uncategoizable Dumpsite | C29: 0.6 | D29: 0.6 | E29: 0.6 | F29: 0.6 | G29: 0.6 | H29: 0.6 | I29: 0.6 | J29: 0.6 | K29: 0.6 | L29: 0.6 | M29: 0.6 | N29: 0.6 | O29: 0.6 | P29: 0.6 | Q29: 0.6 | R29: 0.6 | S29: 0.6 | T29: 0.6 | U29: 0.6
B30: Uncovered anaerobic lagoon | C30: 0.66 | D30: 0.68 | E30: 0.7 | F30: 0.71 | G30: 0.73 | H30: 0.74 | I30: 0.75 | J30: 0.76 | K30: 0.77 | L30: 0.77 | M30: 0.78 | N30: 0.78 | O30: 0.78 | P30: 0.79 | Q30: 0.79 | R30: 0.79 | S30: 0.79 | T30: 0.8 | U30: 0.8
B31: Unmanaged Dumpsite ( <5 m deep) | C31: 0.4 | D31: 0.4 | E31: 0.4 | F31: 0.4 | G31: 0.4 | H31: 0.4 | I31: 0.4 | J31: 0.4 | K31: 0.4 | L31: 0.4 | M31: 0.4 | N31: 0.4 | O31: 0.4 | P31: 0.4 | Q31: 0.4 | R31: 0.4 | S31: 0.4 | T31: 0.4 | U31: 0.4
B32: Unmanaged Dumpsite ( >5 m deep) and /or high water table | C32: 0.8 | D32: 0.8 | E32: 0.8 | F32: 0.8 | G32: 0.8 | H32: 0.8 | I32: 0.8 | J32: 0.8 | K32: 0.8 | L32: 0.8 | M32: 0.8 | N32: 0.8 | O32: 0.8 | P32: 0.8 | Q32: 0.8 | R32: 0.8 | S32: 0.8 | T32: 0.8 | U32: 0.8
B33: Sources:
B34: (1) California Air Resources Board. “Compliance Offset Protocol Livestock Projects Capturing and Destroying Methane FromManure Management Systems,” November 14, 2014. https://www.arb.ca.gov/regact/2014/capandtrade14/ctlivestockprotocol.pdf.
B35: (2) Pipatti, Ritta, et al. “Chapter 3: Solid Waste Disposal.” In 2006 IPCC Guidelines for National Greenhouse Gas Inventories, 2006. https://www.ipcc-nggip.iges.or.jp/public/2006gl/pdf/5_Volume5/V5_3_Ch3_SWDS.pdf.

Sheet 14-References
B1: References and Background Information
B3: Agrawal, Karan, B. R. Barbe, and Shareena Khan. 2009. “Biogas from Pressmud.” IOSR Journal of Mechanical and Civil Engineering, 37–41.
B4: Alucilja, Renel M., Pepito M. Bato, Delfin S. Suministrado, and Engelbert K. Peralta. “Determination of Some Physical and Mechanical Properties of Oil Palm Fruit.” USM R&D Journal 21, no. 2 (December 31, 2013): 61–70.
B5: Antonopoulou, Georgia, Katerina Stamatelatou, Nikolaos Venetsaneas, Michael Kornaros, and Gerasimos Lyberatos. “Biohydrogen and Methane Production from Cheese Whey in a Two-Stage Anaerobic Process.” Industrial & Engineering Chemistry Research 47, no. 15 (August 1, 2008): 5227–33. https://doi.org/10.1021/ie071622x.
B6: Antonopoulou, G, Katerina Stamatelatou, and Gerasimos Lyberatos. Exploitation of Rapeseed and Sunflower Residues for Methane Generation through Anaerobic Digestion: The Effect of Pretreatment. Vol. 20, 2010. https://doi.org/10.3303/CET1020043.
B7: Ariunbaatar, Javkhlan, Antonio Panico, Giovanni Esposito, Francesco Pirozzi, and Piet N. L. Lens. “Pretreatment Methods to Enhance Anaerobic Digestion of Organic Solid Waste.” Applied Energy 123 (June 15, 2014): 143–56. https://doi.org/10.1016/j.apenergy.2014.02.035.
B8: Bachmann, Nathalie. “Sustainable Biogas Production in Municipal Wastewater Treatment Plants.” IEA Bioenergy, n.d. https://ec.europa.eu/jrc/en/publication/sustainable-biogas-production-municipal-wastewater-treatment-plants.
B9: Barua, Visva, and Ajay Kalamdhad. “Water Hyacinth to Biogas: A Review.” Pollution Research 35 (May 15, 2016): 491–501.
B10: BP. "Statistical Review of World Energy," June 2018. https://www.bp.com/en/global/corporate/energy-economics/statistical-review-of-world-energy.html
B11: Browne, James D., and Jerry D. Murphy. “Assessment of the Resource Associated with Biomethane from Food Waste.” Applied Energy 104, no. Supplement C (April 1, 2013): 170–77. https://doi.org/10.1016/j.apenergy.2012.11.017.
B12: Carolinas Composting Council, and Carolina Recycling Association. “Yes You Can! (Compost and Naturescape),” n.d. www.carolinascompostingcouncil.org.
B13: California Air Resources Board. “Compliance Offset Protocol Livestock Projects Capturing and Destroying Methane FromManure Management Systems,” November 14, 2014. https://www.arb.ca.gov/regact/2014/capandtrade14/ctlivestockprotocol.pdf.
B14: Chaikitkaew, Srisuda, Prawit Kongjan, and Sompong O-Thong. “Biogas Production from Biomass Residues of Palm Oil Mill by Solid State Anaerobic Digestion.” Energy Procedia, 2015 International Conference on Alternative Energy in Developing Countries and Emerging Economies, 79 (November 1, 2015): 838–44. https://doi.org/10.1016/j.egypro.2015.11.575.
B15: Chavez-Vazquez, Mariana, and David M. Bagley. 2002. “Evaluation Of The Performance Of Different Anaerobic Digestion Technologies For Solid Waste Treatment.” In . Niagara.
B16: Chen, Ye, Jay J. Cheng, and Kurt S. Creamer. “Inhibition of Anaerobic Digestion Process: A Review.” Bioresource Technology 99, no. 10 (July 1, 2008): 4044–64. https://doi.org/10.1016/j.biortech.2007.01.057.
B17: Contreras, L. M., H. Schelle, C. R. Sebrango, and I. Pereda. “Methane Potential and Biodegradability of Rice Straw, Rice Husk and Rice Residues from the Drying Process.” Water Science and Technology 65, no. 6 (February 1, 2012): 1142–49. https://doi.org/10.2166/wst.2012.951.
B18: Cornell Waste Management Institute. “Yard Waste Composting.” Cornell University, 1990.
B19: Dubrovskis, V., and I. Plume. “Biogas from Wastes of Pumpkin, Marrow and Apple.” Agronomy Research 15, no. 1 (2017): 69–78.
B20: Environmental Protection Agency (EPA)."eGRID Summary Tables 2022." 2024. https://www.epa.gov/system/files/documents/2024-01/egrid2022_summary_tables.pdf
B21: Food and Agriculture Orginization of the United Nations (FAO). “Table 32. Description of Major Feedstuffs Available in the Philippines.” Aquaculture Feed and Fertilizer Resource Atlas of the Philippines, 1997. http://www.fao.org/docrep/003/W6928E/w6928e17.htm.
B22: Fen, Chen, Yu Gao, Li Wei, Liu Fenwu, Zhang Wuping, Bu Yushan, and Li Xiaomei. “Maximal Methane Potential of Different Animal Manures Collected in Northwest Region of China.” International Journal of Agricultural and Biological Engineering 10, no. 1 (January 23, 2017): 202–8. https://doi.org/10.3965/ijabe.v10i1.2469.
B23: Gao, Ruifang, Xufeng Yuan, Wanbin Zhu, Xiaofen Wang, Shaojiang Chen, Xu Cheng, and Zongjun Cui. “Methane Yield through Anaerobic Digestion for Various Maize Varieties in China.” Bioresource Technology 118, no. Supplement C (August 1, 2012): 611–14. https://doi.org/10.1016/j.biortech.2012.05.051.
B24: Gautam, Dhan Prasad, Shafiqur Rahman, Md Saidul Borhan, and Chanda Engel. “The Effect of Feeding High Fat Diet to Beef Cattle on Manure Composition and Gaseous Emission from a Feedlot Pen Surface.” Journal of Animal Science and Technology 58 (June 10, 2016). https://doi.org/10.1186/s40781-016-0104-6.
B25: Goel, B, D. C Pant, and V. V. N Kishore. “Two-Phase Anaerobic Digestion of Spent Tea Leaves for Biogas and Manure Generation.” Bioresource Technology 80, no. 2 (November 1, 2001): 153–56. https://doi.org/10.1016/S0960-8524(01)00083-9.
B26: Hamilton, Douglas. “Methane Production Potential of Waste Materials.” Oklahoma State University, n.d. pods.dasnr.okstate.edu/docushare/dsweb/Get/Document-8544/BAE-1762web.pdf.
B27: Hapman. 2019. “Bulk Material Density Guide.” Hapman. 2019. https://www.hapman.com/education-support/bulk-material-density-guide/.
B28: Hejnfelt, Anette, and Irini Angelidaki. 2009. “Anaerobic Digestion of Slaughterhouse By-Products.” Biomass and Bioenergy 33 (8): 1046–54. https://doi.org/10.1016/j.biombioe.2009.03.004.
B29: International Energy Agency (IEA). "CO2 Emissions from Fuel Combustion (2018 Edition)." OECD/IEA, Paris, 2018. https://webstore.iea.org/co2-emissions-from-fuel-combustion-2018-highlights
B30: International Renewable Energy Agency (IRENA). “Measuring Small-Scale Biogas Capacity and Production.” Abu Dhabi: IRENA, 2016. http://www.irena.org/menu/index.aspx?mnu=Subcat&PriMenuID=36&CatID=141&SubcatID=3798.
B31: Inyang, Mandu, Bin Gao, Pratap Pullammanappallil, Wenchuan Ding, and Andrew R. Zimmerman. “Biochar from Anaerobically Digested Sugarcane Bagasse.” Bioresource Technology 101, no. 22 (November 1, 2010): 8868–72. https://doi.org/10.1016/j.biortech.2010.06.088.
B32: Intergovernmental Panel on Climate Change (IPCC). "2006 IPCC Guidelines for National Greenhouse Has Inventories, Volume 2: Energy, Chapter 2: Stationary Combustion." https://www.ipcc-nggip.iges.or.jp/public/2006gl/pdf/2_Volume2/V2_2_Ch2_Stationary_Combustion.pdf
B33: Jimoh, M. O., and J. O. Babatola. 2018. “Investigative Study on the Use of De-Oiled Palm Kernel Cake for Biogas Production.” Nigerian Journal of Technological Development 15 (3): 72. https://doi.org/10.4314/njtd.v15i3.1.
B34: Kafle, Gopi Krishna, Sang Hun Kim, and Kyung Ill Sung. “Ensiling of Fish Industry Waste for Biogas Production: A Lab Scale Evaluation of Biochemical Methane Potential (BMP) and Kinetics.” Bioresource Technology 127, no. Supplement C (January 1, 2013): 326–36. https://doi.org/10.1016/j.biortech.2012.09.032.
B35: Kryvoruchko, Vitaliy, Andrea Machmüller, Vitomir Bodiroza, Barbara Amon, and Thomas Amon. 2009. “Anaerobic Digestion of By-Products of Sugar Beet and Starch Potato Processing.” Biomass and Bioenergy 33 (4): 620–27. https://doi.org/10.1016/j.biombioe.2008.10.003.
B36: Lefebvre, O., S. Quentin, M. Torrijos, J. J. Godon, J. P. Delgenès, and R. Moletta. “Impact of Increasing NaCl Concentrations on the Performance and Community Composition of Two Anaerobic Reactors.” Applied Microbiology and Biotechnology 75, no. 1 (May 1, 2007): 61–69. https://doi.org/10.1007/s00253-006-0799-2.
B37: Lehtomäki, A., T. A. Viinikainen, and J. A. Rintala. 2008. “Screening Boreal Energy Crops and Crop Residues for Methane Biofuel Production.” Biomass and Bioenergy 32 (6): 541–50. https://doi.org/10.1016/j.biombioe.2007.11.013.
B38: Leke, Luter, Anne Ada Ogbanje, Dekaa Henry Terfa, and Tyoalumun Ikyaagba. “Production of Bio-Gas from Maize Cobs.” International Journal of Energy and Environment 4, no. 1 (2013): 153–60.
B39: Levis, James, and Morton Barlaz. “Anaerobic Digestion Process Model Documentation.” Raleigh, NC: North Carolina State University, 2013.
B40: Liu, Z., Xu, A., & Long, B. (2011). Energy from combustion of rice straw: status and challenges to China. Energy and Power Engineering, 3(03), 325.
B41: Mathias, Thiago Rocha dos Santos, Verônica Marinho Fontes Alexandre, Magali Christe Cammarota, Pedro Paulo Moretzsohn de Mello, and Eliana Flávia Camporese Sérvulo. “Characterization and Determination of Brewer’s Solid Wastes Composition.” Journal of the Institute of Brewing 121, no. 3 (July 1, 2015): 400–404. https://doi.org/10.1002/jib.229.
B42: Merrick, Norma C. “Measurement of Density and Medullation in Wool.” Thesis, Lincoln University, 1998. https://researcharchive.lincoln.ac.nz/handle/10182/3014.
B43: Mes, T.Z.D. de, A.J.M. Stams, J.H. Reith, and G. Zeeman. “Chapter 4. Methane Production by Anaerobic Digestion of Wastewater and Solid Wastes.” In Biomethane and Biohydrogen. Status and Perspectives of Biological Methane and Hydrogen Production. Netherlands Agency for Energy and the Environment, 2003.
B44: Mönch-Tegeder, Matthias, Andreas Lemmer, Hans Oechsner, and Thomas Jungbluth. “Investigation of the Methane Potential of Horse Manure.” Agricultural Engineering International: CIGR Journal 15, no. 2 (July 1, 2013): 161–72.
B45: Muthangya, M, S.O. Hashim, J.M Amana, A.M. Mshandete, and A.K. Kivasi. “Auditing and Characteristics of Sisal Processing Waste: A Bioresource for Value Addition.” ARPN Journal of Agricultural and Biological Science 8, no. 7 (July 2013): 518–24.
B46: Naik, R.K, R.C. Dash, D Behera, and A.K. Goel. “Studies On Physical Properties Of Sisal (Agave Sisalana) Plant Leaves.” International Journal of Agriculture Sciences 8, no. 48 (2016): 2004–7.
B47: Petersson, Anneli, Mette H. Thomsen, Henrik Hauggaard-Nielsen, and Anne-Belinda Thomsen. “Potential Bioethanol and Biogas Production Using Lignocellulosic Biomass from Winter Rye, Oilseed Rape and Faba Bean.” Biomass and Bioenergy 31, no. 11 (November 1, 2007): 812–19. https://doi.org/10.1016/j.biombioe.2007.06.001.
B48: Pipatti, Ritta, and et al. “Chapter 3: Solid Waste Disposal.” In 2006 IPCC Guidelines for National Greenhouse Gas Inventories, 2006. https://www.ipcc-nggip.iges.or.jp/public/2006gl/pdf/5_Volume5/V5_3_Ch3_SWDS.pdf.
B49: Priadi, Cindy, Dwica Wulandari, Iftita Rahmatika, and Setyo Sarwanto Moersidik. “Biogas Production in the Anaerobic Digestion of Paper Sludge.” APCBEE Procedia, 5th International Conference on Chemical, Biological and Environmental Engineering - ICBEE 2013 & 2nd International Conference on Civil Engineering - ICCEN 2013, 9, no. Supplement C (January 1, 2014): 65–69. https://doi.org/10.1016/j.apcbee.2014.01.012.
B50: Ramírez, José Carmen Ramírez, José Inés Ibarra, Francisco Arce Romero, Petra Rosas Ulloa, José Armando Ulloa, Keiko Shirai Matsumoto, Belinda Vallejo Cordoba, and Miguel Ángel Mazorra Manzano. “Preparation of Biological Fish Silage and Its Effect on the Performance and Meat Quality Characteristics of Quails (Coturnix Coturnix Japonica).” Brazilian Archives of Biology and Technology 56, no. 6 (December 2013): 1002–10. https://doi.org/10.1590/S1516-89132013000600016.
B51: Rittenschober, Doris, Barbara Stadlmayr, Ruth Charrondiere, Diedelinde Persijn, and Verena Nowak. 2012. “FAO/INFOODS Databases Density Database Version 2.0.” Food and Agriculture Organization of the United Nations.
B52: Sacher, Niels, Maria Isabel R. Dumlao, Robert Gensch, and Swiss Federal Institute of Aquatic Science and Technology. 2014. “Direct Use of Biogas.” Sustainable Sanitation and Water Management Toolbox. 2014. https://www.sswm.info/category/implementation-tools/reuse-and-recharge/hardware/energy-products-sludge/direct-use-biogas#reference_book7934.
B53: Salman, A. Kh., M. A. E. Al- Rajhi, A. I. El-Rayes, and A. F. Abd El-Mottaleb. “Rapid Composting Of Rice Straw With Some Agriculture Green Residues And Animal Waste Under Full Control Systems.” J.Soil Sci. and Agric. Eng 2, no. 12 (2011): 1229–42.
B54: Salter, Andrew. “Crops for Biogas Production; Yields, Suitability and Energy Balances.” presented at the 15th European Biomass Conference, Berlin, Germany, 2007.
B55: Sumardiono, Siswo, Aldi Budi Riyanta, Hashfi Hawali Abdul Matin, Tutuk Djoko Kusworo, and Bakti Jos. “Increasing Biogas Production from Sugar Cane Baggase by Anaerobic Co-Digestion with Animal Manure.” MATEC Web of Conferences 101 (2017): 02014. https://doi.org/10.1051/matecconf/201710102014.
B56: Sundaranayagi, S., A. Sirajunnisa, and V. Ramasamy. 2017. “Production Of Biogas By Anaerobic Digestion Of Press Mud Using Iron, Cobalt And Nickel.” Indian Journal of Scientific Research 14 (1): 374–77.
B57: Suresh, R, and S Vivekanandan. 2017. “Investigation On Edible De-Oiled And Non Edible De-Oiled Cakes In Anaerobic Co- Digestion For Biogas Production.” International Journal of Mechanical Engineering and Technology 8 (1): 7.
B58: Tiwari, Ghanshyam, Ajay Kumar Sharma, and Pratap Singh. “Short Communication: Volume-Weight Relationship of Water Hyacinth Plant (Eichhornia Crassipes) Under Axial Loading.” Annals of Arid Zone 44, no. 1 (2005): 101–3.
B59: United Nations Framework Convention on Climate Change/Clean Development Mechanism (UNFCCC CDM). "AMS-III.D. Small-scale Methodology: Methane recovery in animal manure management systems v21," September 2017. https://cdm.unfccc.int/filestorage/1/A/W/1AWXEKHVTYF423LCN56Z9GIMQOS8JR/EB96_repan09_AMS-III.Dv21.pdf?t=N1d8cG8wY3ZmfDDEJvUs6CfSuwO8P4-bPZ2h
B60: United States Dept. of Agriculture (USDA). “Chapter 4: Agricultural Waste Characteristics.” In Agricultural Waste Management Field Handbook. Washington D.C.: USDA, 2008.
B61: United States Dept. of Agriculture (USDA). “National Nutrient Database for Standard Reference Release 28.” United States Dept. of Agriculture, May 2016. https://www.ars.usda.gov/northeast-area/beltsville-md/beltsville-human-nutrition-research-center/nutrient-data-laboratory/.
B62: United States Environmental Protection Agency AgSTAR Program. "Protocol for Quantifying and Reporting the Performance of Anaerobic Digestion Systems for Livestock Manures, March 2011. https://www.epa.gov/sites/production/files/2014-12/documents/protocol.pdf
B63: Vitez, Tomas, Tomas Koutny, Martin Sotnar, and Jan Chovanec. “On The Spent Coffee Grounds Biogas Production.” ACTA UNIVERSITATIS AGRICULTURAE ET SILVICULTURAE MENDELIANAE BRUNENSIS 64 (November 4, 2016). https://doi.org/http://dx.doi.org/10.11118/actaun201664041279.
B64: Ward, Alastair J., Phil J. Hobbs, Peter J. Holliman, and David L. Jones. “Optimisation of the Anaerobic Digestion of Agricultural Resources.” Bioresource Technology 99, no. 17 (November 1, 2008): 7928–40. https://doi.org/10.1016/j.biortech.2008.02.044.
B65: Ware, Aidan, and Niamh Power. 2016. “Biogas from Cattle Slaughterhouse Waste: Energy Recovery towards an Energy Self-Sufficient Industry in Ireland.” Renewable Energy 97 (November): 541–49. https://doi.org/10.1016/j.renene.2016.05.068.
B66: Wikandari, Rachma, Huong Nguyen, Ria Millati, Claes Niklasson, and Mohammad J. Taherzadeh. “Improvement of Biogas Production from Orange Peel Waste by Leaching of Limonene.” BioMed Research International 2015 (2015). https://doi.org/http://dx.doi.org/10.1155/2015/494182.
B67: Wisconsin Department of Natural Resources Bureau of Science Services. “Advanced Anaerobic Digestion Study Guide.” Wisconsin Department of Natural Resources Bureau of Science Services, June 1992.
B68: The Waste and Resources Action Programme. “Summary Report – Material Bulk Densities,” 2009.
B69: Yan, Hu, Chen Zhao, Jiafu Zhang, Ruihong Zhang, Chunyu Xue, Guangqing Liu, and Chang Chen. “Study on Biomethane Production and Biodegradability of Different Leafy Vegetables in Anaerobic Digestion.” AMB Express 7 (January 25, 2017). https://doi.org/10.1186/s13568-017-0325-1.
B70: Yavini, Tsunatu, Kiman Silas, Mustapha Grema, and Jang Luria. “Kinetic Study of Agricultural Wastes Conversion to Biogas Using Cow Dung/Poultry Droppings as Inoculums.” IOSR Journal Of Environmental Science, Toxicology And Food Technology 8, no. 1 (February 2014): 46–51.
B71: Zhang, Yue, Charles J. Banks, and Sonia Heaven. “Anaerobic Digestion of Two Biodegradable Municipal Waste Streams.” Journal of Environmental Management 104, no. Supplement C (August 15, 2012): 166–74. https://doi.org/10.1016/j.jenvman.2012.03.043.
B72: Zhang, Hai-long, Xiang-ping Li, Jian-ying Qi, Yong-heng Chen, and Jian-de Fang. “Analysis of composition characteristics of municipal solid waste in south China.” Huan Jing Ke Xue Huanjing Kexue 36, no. 1 (January 2015): 325–32.
B73: Zheng, Wei, Khamphe Phoungthong, Fan Lü, Li-Ming Shao, and Pin-Jing He. “Evaluation of a Classification Method for Biodegradable Solid Wastes Using Anaerobic Degradation Parameters.” Waste Management 33, no. 12 (December 1, 2013): 2632–40. https://doi.org/10.1016/j.wasman.2013.08.015.

Sheet 15-Help
A1: Help

Sheet 16-Methodology
B1: Tool Concept Notes

Sheet 17-Manure Related Reductions
A1: Baseline Emissions from Manure
A3: Annual Manure Volatile Solids | F3: Annual Methane Emissions from Manure
A4: Waste Category | B4: Volatile Solids (% d.w.) | C4: Total Volatile Solids (Mg/year) | D4: Max. Methane Production (B0) m3 / Mg of VS | E4: Methane Conversion Factor (MCF) | F4: kg CH4 per year
A5: ='3-Digester Inputs'!B17 -> 0 | B5: =IFERROR(IF(VLOOKUP(A5,Waste_Item_Table,20,FALSE)="Y",('3-Digester Inputs'!H17*100)/(100-'3-Digester Inputs'!H17),""),"") ->  | C5: =IFERROR(IF(VLOOKUP(A5,Waste_Item_Table,20,FALSE)="Y",B5*'3-Digester Inputs'!BE17/1000*365,""),"") ->  | D5: =IFERROR(IF(VLOOKUP(A5,Waste_Item_Table,20,FALSE)="Y",VLOOKUP(A5,Waste_Item_Table,17),""),"") ->  | E5: =IF(B5<>"",IFERROR(VLOOKUP(PrimaryManureMang,'13-MCF'!$B$9:$U$32,MATCH(AvgTemp,'13-MCF'!$B$9:$U$9,0),FALSE),0),"") ->  | F5: =IF(LEN(B5)>0,VLOOKUP(A5,'6-Biogas Production'!$O$58:$T$72,4,FALSE)*E5*365*ConversionFactor,"") -> 
A6: ='3-Digester Inputs'!B18 -> 0 | B6: =IFERROR(IF(VLOOKUP(A6,Waste_Item_Table,20,FALSE)="Y",('3-Digester Inputs'!H18*100)/(100-'3-Digester Inputs'!H18),""),"") ->  | C6: =IFERROR(IF(VLOOKUP(A6,Waste_Item_Table,20,FALSE)="Y",B6*'3-Digester Inputs'!BE18/1000*365,""),"") ->  | D6: =IFERROR(IF(VLOOKUP(A6,Waste_Item_Table,20,FALSE)="Y",VLOOKUP(A6,Waste_Item_Table,17),""),"") ->  | E6: =IF(B6<>"",IFERROR(VLOOKUP(PrimaryManureMang,'13-MCF'!$B$9:$U$32,MATCH(AvgTemp,'13-MCF'!$B$9:$U$9,0),FALSE),0),"") ->  | F6: =IF(LEN(B6)>0,VLOOKUP(A6,'6-Biogas Production'!$O$58:$T$72,4,FALSE)*E6*365*ConversionFactor,"") -> 
A7: ='3-Digester Inputs'!B19 -> 0 | B7: =IFERROR(IF(VLOOKUP(A7,Waste_Item_Table,20,FALSE)="Y",('3-Digester Inputs'!H19*100)/(100-'3-Digester Inputs'!H19),""),"") ->  | C7: =IFERROR(IF(VLOOKUP(A7,Waste_Item_Table,20,FALSE)="Y",B7*'3-Digester Inputs'!BE19/1000*365,""),"") ->  | E7: =IF(B7<>"",IFERROR(VLOOKUP(PrimaryManureMang,'13-MCF'!$B$9:$U$32,MATCH(AvgTemp,'13-MCF'!$B$9:$U$9,0),FALSE),0),"") ->  | F7: =IF(LEN(B7)>0,VLOOKUP(A7,'6-Biogas Production'!$O$58:$T$72,4,FALSE)*E7*365*ConversionFactor,"") -> 
A8: ='3-Digester Inputs'!B20 -> 0 | B8: =IFERROR(IF(VLOOKUP(A8,Waste_Item_Table,20,FALSE)="Y",('3-Digester Inputs'!H20*100)/(100-'3-Digester Inputs'!H20),""),"") ->  | C8: =IFERROR(IF(VLOOKUP(A8,Waste_Item_Table,20,FALSE)="Y",B8*'3-Digester Inputs'!BE20/1000*365,""),"") ->  | E8: =IF(B8<>"",IFERROR(VLOOKUP(PrimaryManureMang,'13-MCF'!$B$9:$U$32,MATCH(AvgTemp,'13-MCF'!$B$9:$U$9,0),FALSE),0),"") ->  | F8: =IF(LEN(B8)>0,VLOOKUP(A8,'6-Biogas Production'!$O$58:$T$72,4,FALSE)*E8*365*ConversionFactor,"") -> 
A9: ='3-Digester Inputs'!B21 -> 0 | B9: =IFERROR(IF(VLOOKUP(A9,Waste_Item_Table,20,FALSE)="Y",('3-Digester Inputs'!H21*100)/(100-'3-Digester Inputs'!H21),""),"") ->  | C9: =IFERROR(IF(VLOOKUP(A9,Waste_Item_Table,20,FALSE)="Y",B9*'3-Digester Inputs'!BE21/1000*365,""),"") ->  | E9: =IF(B9<>"",IFERROR(VLOOKUP(PrimaryManureMang,'13-MCF'!$B$9:$U$32,MATCH(AvgTemp,'13-MCF'!$B$9:$U$9,0),FALSE),0),"") ->  | F9: =IF(LEN(B9)>0,VLOOKUP(A9,'6-Biogas Production'!$O$58:$T$72,4,FALSE)*E9*365*ConversionFactor,"") -> 
A10: ='3-Digester Inputs'!B22 -> 0 | B10: =IFERROR(IF(VLOOKUP(A10,Waste_Item_Table,20,FALSE)="Y",('3-Digester Inputs'!H22*100)/(100-'3-Digester Inputs'!H22),""),"") ->  | C10: =IFERROR(IF(VLOOKUP(A10,Waste_Item_Table,20,FALSE)="Y",B10*'3-Digester Inputs'!BE22/1000*365,""),"") ->  | E10: =IF(B10<>"",IFERROR(VLOOKUP(PrimaryManureMang,'13-MCF'!$B$9:$U$32,MATCH(AvgTemp,'13-MCF'!$B$9:$U$9,0),FALSE),0),"") ->  | F10: =IF(LEN(B10)>0,VLOOKUP(A10,'6-Biogas Production'!$O$58:$T$72,4,FALSE)*E10*365*ConversionFactor,"") -> 
A11: ='3-Digester Inputs'!B23 -> 0 | B11: =IFERROR(IF(VLOOKUP(A11,Waste_Item_Table,20,FALSE)="Y",('3-Digester Inputs'!H23*100)/(100-'3-Digester Inputs'!H23),""),"") ->  | C11: =IFERROR(IF(VLOOKUP(A11,Waste_Item_Table,20,FALSE)="Y",B11*'3-Digester Inputs'!BE23/1000*365,""),"") ->  | E11: =IF(B11<>"",IFERROR(VLOOKUP(PrimaryManureMang,'13-MCF'!$B$9:$U$32,MATCH(AvgTemp,'13-MCF'!$B$9:$U$9,0),FALSE),0),"") ->  | F11: =IF(LEN(B11)>0,VLOOKUP(A11,'6-Biogas Production'!$O$58:$T$72,4,FALSE)*E11*365*ConversionFactor,"") -> 
A12: ='3-Digester Inputs'!B24 -> 0 | B12: =IFERROR(IF(VLOOKUP(A12,Waste_Item_Table,20,FALSE)="Y",('3-Digester Inputs'!H24*100)/(100-'3-Digester Inputs'!H24),""),"") ->  | C12: =IFERROR(IF(VLOOKUP(A12,Waste_Item_Table,20,FALSE)="Y",B12*'3-Digester Inputs'!BE24/1000*365,""),"") ->  | E12: =IF(B12<>"",IFERROR(VLOOKUP(PrimaryManureMang,'13-MCF'!$B$9:$U$32,MATCH(AvgTemp,'13-MCF'!$B$9:$U$9,0),FALSE),0),"") ->  | F12: =IF(LEN(B12)>0,VLOOKUP(A12,'6-Biogas Production'!$O$58:$T$72,4,FALSE)*E12*365*ConversionFactor,"") -> 
A13: ='3-Digester Inputs'!B25 -> 0 | B13: =IFERROR(IF(VLOOKUP(A13,Waste_Item_Table,20,FALSE)="Y",('3-Digester Inputs'!H25*100)/(100-'3-Digester Inputs'!H25),""),"") ->  | C13: =IFERROR(IF(VLOOKUP(A13,Waste_Item_Table,20,FALSE)="Y",B13*'3-Digester Inputs'!BE25/1000*365,""),"") ->  | E13: =IF(B13<>"",IFERROR(VLOOKUP(PrimaryManureMang,'13-MCF'!$B$9:$U$32,MATCH(AvgTemp,'13-MCF'!$B$9:$U$9,0),FALSE),0),"") ->  | F13: =IF(LEN(B13)>0,VLOOKUP(A13,'6-Biogas Production'!$O$58:$T$72,4,FALSE)*E13*365*ConversionFactor,"") -> 
A14: ='3-Digester Inputs'!B26 -> 0 | B14: =IFERROR(IF(VLOOKUP(A14,Waste_Item_Table,20,FALSE)="Y",('3-Digester Inputs'!H26*100)/(100-'3-Digester Inputs'!H26),""),"") ->  | C14: =IFERROR(IF(VLOOKUP(A14,Waste_Item_Table,20,FALSE)="Y",B14*'3-Digester Inputs'!BE26/1000*365,""),"") ->  | E14: =IF(B14<>"",IFERROR(VLOOKUP(PrimaryManureMang,'13-MCF'!$B$9:$U$32,MATCH(AvgTemp,'13-MCF'!$B$9:$U$9,0),FALSE),0),"") ->  | F14: =IF(LEN(B14)>0,VLOOKUP(A14,'6-Biogas Production'!$O$58:$T$72,4,FALSE)*E14*365*ConversionFactor,"") -> 
A15: ='3-Digester Inputs'!B27 -> 0 | B15: =IFERROR(IF(VLOOKUP(A15,Waste_Item_Table,20,FALSE)="Y",('3-Digester Inputs'!H27*100)/(100-'3-Digester Inputs'!H27),""),"") ->  | C15: =IFERROR(IF(VLOOKUP(A15,Waste_Item_Table,20,FALSE)="Y",B15*'3-Digester Inputs'!BE27/1000*365,""),"") ->  | E15: =IF(B15<>"",IFERROR(VLOOKUP(PrimaryManureMang,'13-MCF'!$B$9:$U$32,MATCH(AvgTemp,'13-MCF'!$B$9:$U$9,0),FALSE),0),"") ->  | F15: =IF(LEN(B15)>0,VLOOKUP(A15,'6-Biogas Production'!$O$58:$T$72,4,FALSE)*E15*365*ConversionFactor,"") -> 
A16: ='3-Digester Inputs'!B28 -> 0 | B16: =IFERROR(IF(VLOOKUP(A16,Waste_Item_Table,20,FALSE)="Y",('3-Digester Inputs'!H28*100)/(100-'3-Digester Inputs'!H28),""),"") ->  | C16: =IFERROR(IF(VLOOKUP(A16,Waste_Item_Table,20,FALSE)="Y",B16*'3-Digester Inputs'!BE28/1000*365,""),"") ->  | E16: =IF(B16<>"",IFERROR(VLOOKUP(PrimaryManureMang,'13-MCF'!$B$9:$U$32,MATCH(AvgTemp,'13-MCF'!$B$9:$U$9,0),FALSE),0),"") ->  | F16: =IF(LEN(B16)>0,VLOOKUP(A16,'6-Biogas Production'!$O$58:$T$72,4,FALSE)*E16*365*ConversionFactor,"") -> 
A17: ='3-Digester Inputs'!B29 -> 0 | B17: =IFERROR(IF(VLOOKUP(A17,Waste_Item_Table,20,FALSE)="Y",('3-Digester Inputs'!H29*100)/(100-'3-Digester Inputs'!H29),""),"") ->  | C17: =IFERROR(IF(VLOOKUP(A17,Waste_Item_Table,20,FALSE)="Y",B17*'3-Digester Inputs'!BE29/1000*365,""),"") ->  | E17: =IF(B17<>"",IFERROR(VLOOKUP(PrimaryManureMang,'13-MCF'!$B$9:$U$32,MATCH(AvgTemp,'13-MCF'!$B$9:$U$9,0),FALSE),0),"") ->  | F17: =IF(LEN(B17)>0,VLOOKUP(A17,'6-Biogas Production'!$O$58:$T$72,4,FALSE)*E17*365*ConversionFactor,"") -> 
A18: ='3-Digester Inputs'!B30 -> 0 | B18: =IFERROR(IF(VLOOKUP(A18,Waste_Item_Table,20,FALSE)="Y",('3-Digester Inputs'!H30*100)/(100-'3-Digester Inputs'!H30),""),"") ->  | C18: =IFERROR(IF(VLOOKUP(A18,Waste_Item_Table,20,FALSE)="Y",B18*'3-Digester Inputs'!BE30/1000*365,""),"") ->  | E18: =IF(B18<>"",IFERROR(VLOOKUP(PrimaryManureMang,'13-MCF'!$B$9:$U$32,MATCH(AvgTemp,'13-MCF'!$B$9:$U$9,0),FALSE),0),"") ->  | F18: =IF(LEN(B18)>0,VLOOKUP(A18,'6-Biogas Production'!$O$58:$T$72,4,FALSE)*E18*365*ConversionFactor,"") -> 
A19: ='3-Digester Inputs'!B31 -> 0 | B19: =IFERROR(IF(VLOOKUP(A19,Waste_Item_Table,20,FALSE)="Y",('3-Digester Inputs'!H31*100)/(100-'3-Digester Inputs'!H31),""),"") ->  | C19: =IFERROR(IF(VLOOKUP(A19,Waste_Item_Table,20,FALSE)="Y",B19*'3-Digester Inputs'!BE31/1000*365,""),"") ->  | E19: =IF(B19<>"",IFERROR(VLOOKUP(PrimaryManureMang,'13-MCF'!$B$9:$U$32,MATCH(AvgTemp,'13-MCF'!$B$9:$U$9,0),FALSE),0),"") ->  | F19: =IF(LEN(B19)>0,VLOOKUP(A19,'6-Biogas Production'!$O$58:$T$72,4,FALSE)*E19*365*ConversionFactor,"") -> 
A20: Total | B20: na | D20: na | E20: na | F20: =SUM(F5:F19) -> 0

Sheet 18-Other Wastes Reductions
A1: Baseline Emissions from Co-Digested Waste
A3: Annual Manure Volatile Solids | F3: Annual Methane Emissions from Waste
A4: Waste Category | B4: Volatile Solids (% d.w.) | C4: Total Volatile Solids (Mg/year) | D4: Max. Methane Production (B0) m3 / Mg of VS | E4: Methane Conversion Factor | F4: kg CH4 per year
A5: =IFERROR('3-Digester Inputs'!B17,"-") -> 0 | B5: =IFERROR(IF(VLOOKUP(A5,Waste_Item_Table,20,FALSE)="N",('3-Digester Inputs'!H17*100)/(100-'3-Digester Inputs'!H17),""),"") ->  | C5: =IFERROR(IF(VLOOKUP(A5,Waste_Item_Table,20,FALSE)="N",B5*'3-Digester Inputs'!BE17/1000*365,""),"") ->  | D5: =IFERROR(IF(VLOOKUP(A5,Waste_Item_Table,20,FALSE)="N",VLOOKUP(A5,Waste_Item_Table,17,FALSE),""),"") ->  | E5: =IF(B5<>"",IFERROR(VLOOKUP(PrimaryOtherWasteMng,'13-MCF'!$B$9:$U$32,MATCH(AvgTemp,'13-MCF'!$B$9:$U$9,0),FALSE),0),"") ->  | F5: =IF(LEN(B5)>0,VLOOKUP(A5,'6-Biogas Production'!$O$58:$T$72,4,FALSE)*365*E5*ConversionFactor,"") -> 
A6: =IFERROR('3-Digester Inputs'!B18,"-") -> 0 | B6: =IFERROR(IF(VLOOKUP(A6,Waste_Item_Table,20,FALSE)="N",('3-Digester Inputs'!H18*100)/(100-'3-Digester Inputs'!H18),""),"") ->  | C6: =IFERROR(IF(VLOOKUP(A6,Waste_Item_Table,20,FALSE)="N",B6*'3-Digester Inputs'!BE18/1000*365,""),"") ->  | E6: =IF(B6<>"",IFERROR(VLOOKUP(PrimaryOtherWasteMng,'13-MCF'!$B$9:$U$32,MATCH(AvgTemp,'13-MCF'!$B$9:$U$9,0),FALSE),0),"") ->  | F6: =IF(LEN(B6)>0,VLOOKUP(A6,'6-Biogas Production'!$O$58:$T$72,4,FALSE)*365*E6*ConversionFactor,"") -> 
A7: =IFERROR('3-Digester Inputs'!B19,"-") -> 0 | B7: =IFERROR(IF(VLOOKUP(A7,Waste_Item_Table,20,FALSE)="N",('3-Digester Inputs'!H19*100)/(100-'3-Digester Inputs'!H19),""),"") ->  | C7: =IFERROR(IF(VLOOKUP(A7,Waste_Item_Table,20,FALSE)="N",B7*'3-Digester Inputs'!BE19/1000*365,""),"") ->  | E7: =IF(B7<>"",IFERROR(VLOOKUP(PrimaryOtherWasteMng,'13-MCF'!$B$9:$U$32,MATCH(AvgTemp,'13-MCF'!$B$9:$U$9,0),FALSE),0),"") ->  | F7: =IF(LEN(B7)>0,VLOOKUP(A7,'6-Biogas Production'!$O$58:$T$72,4,FALSE)*365*E7*ConversionFactor,"") -> 
A8: =IFERROR('3-Digester Inputs'!B20,"-") -> 0 | B8: =IFERROR(IF(VLOOKUP(A8,Waste_Item_Table,20,FALSE)="N",('3-Digester Inputs'!H20*100)/(100-'3-Digester Inputs'!H20),""),"") ->  | C8: =IFERROR(IF(VLOOKUP(A8,Waste_Item_Table,20,FALSE)="N",B8*'3-Digester Inputs'!BE20/1000*365,""),"") ->  | E8: =IF(B8<>"",IFERROR(VLOOKUP(PrimaryOtherWasteMng,'13-MCF'!$B$9:$U$32,MATCH(AvgTemp,'13-MCF'!$B$9:$U$9,0),FALSE),0),"") ->  | F8: =IF(LEN(B8)>0,VLOOKUP(A8,'6-Biogas Production'!$O$58:$T$72,4,FALSE)*365*E8*ConversionFactor,"") -> 
A9: =IFERROR('3-Digester Inputs'!B21,"-") -> 0 | B9: =IFERROR(IF(VLOOKUP(A9,Waste_Item_Table,20,FALSE)="N",('3-Digester Inputs'!H21*100)/(100-'3-Digester Inputs'!H21),""),"") ->  | C9: =IFERROR(IF(VLOOKUP(A9,Waste_Item_Table,20,FALSE)="N",B9*'3-Digester Inputs'!BE21/1000*365,""),"") ->  | E9: =IF(B9<>"",IFERROR(VLOOKUP(PrimaryOtherWasteMng,'13-MCF'!$B$9:$U$32,MATCH(AvgTemp,'13-MCF'!$B$9:$U$9,0),FALSE),0),"") ->  | F9: =IF(LEN(B9)>0,VLOOKUP(A9,'6-Biogas Production'!$O$58:$T$72,4,FALSE)*365*E9*ConversionFactor,"") -> 
A10: =IFERROR('3-Digester Inputs'!B22,"-") -> 0 | B10: =IFERROR(IF(VLOOKUP(A10,Waste_Item_Table,20,FALSE)="N",('3-Digester Inputs'!H22*100)/(100-'3-Digester Inputs'!H22),""),"") ->  | C10: =IFERROR(IF(VLOOKUP(A10,Waste_Item_Table,20,FALSE)="N",B10*'3-Digester Inputs'!BE22/1000*365,""),"") ->  | E10: =IF(B10<>"",IFERROR(VLOOKUP(PrimaryOtherWasteMng,'13-MCF'!$B$9:$U$32,MATCH(AvgTemp,'13-MCF'!$B$9:$U$9,0),FALSE),0),"") ->  | F10: =IF(LEN(B10)>0,VLOOKUP(A10,'6-Biogas Production'!$O$58:$T$72,4,FALSE)*365*E10*ConversionFactor,"") -> 
A11: =IFERROR('3-Digester Inputs'!B23,"-") -> 0 | B11: =IFERROR(IF(VLOOKUP(A11,Waste_Item_Table,20,FALSE)="N",('3-Digester Inputs'!H23*100)/(100-'3-Digester Inputs'!H23),""),"") ->  | C11: =IFERROR(IF(VLOOKUP(A11,Waste_Item_Table,20,FALSE)="N",B11*'3-Digester Inputs'!BE23/1000*365,""),"") ->  | E11: =IF(B11<>"",IFERROR(VLOOKUP(PrimaryOtherWasteMng,'13-MCF'!$B$9:$U$32,MATCH(AvgTemp,'13-MCF'!$B$9:$U$9,0),FALSE),0),"") ->  | F11: =IF(LEN(B11)>0,VLOOKUP(A11,'6-Biogas Production'!$O$58:$T$72,4,FALSE)*365*E11*ConversionFactor,"") -> 
A12: =IFERROR('3-Digester Inputs'!B24,"-") -> 0 | B12: =IFERROR(IF(VLOOKUP(A12,Waste_Item_Table,20,FALSE)="N",('3-Digester Inputs'!H24*100)/(100-'3-Digester Inputs'!H24),""),"") ->  | C12: =IFERROR(IF(VLOOKUP(A12,Waste_Item_Table,20,FALSE)="N",B12*'3-Digester Inputs'!BE24/1000*365,""),"") ->  | E12: =IF(B12<>"",IFERROR(VLOOKUP(PrimaryOtherWasteMng,'13-MCF'!$B$9:$U$32,MATCH(AvgTemp,'13-MCF'!$B$9:$U$9,0),FALSE),0),"") ->  | F12: =IF(LEN(B12)>0,VLOOKUP(A12,'6-Biogas Production'!$O$58:$T$72,4,FALSE)*365*E12*ConversionFactor,"") -> 
A13: =IFERROR('3-Digester Inputs'!B25,"-") -> 0 | B13: =IFERROR(IF(VLOOKUP(A13,Waste_Item_Table,20,FALSE)="N",('3-Digester Inputs'!H25*100)/(100-'3-Digester Inputs'!H25),""),"") ->  | C13: =IFERROR(IF(VLOOKUP(A13,Waste_Item_Table,20,FALSE)="N",B13*'3-Digester Inputs'!BE25/1000*365,""),"") ->  | E13: =IF(B13<>"",IFERROR(VLOOKUP(PrimaryOtherWasteMng,'13-MCF'!$B$9:$U$32,MATCH(AvgTemp,'13-MCF'!$B$9:$U$9,0),FALSE),0),"") ->  | F13: =IF(LEN(B13)>0,VLOOKUP(A13,'6-Biogas Production'!$O$58:$T$72,4,FALSE)*365*E13*ConversionFactor,"") -> 
A14: =IFERROR('3-Digester Inputs'!B26,"-") -> 0 | B14: =IFERROR(IF(VLOOKUP(A14,Waste_Item_Table,20,FALSE)="N",('3-Digester Inputs'!H26*100)/(100-'3-Digester Inputs'!H26),""),"") ->  | C14: =IFERROR(IF(VLOOKUP(A14,Waste_Item_Table,20,FALSE)="N",B14*'3-Digester Inputs'!BE26/1000*365,""),"") ->  | E14: =IF(B14<>"",IFERROR(VLOOKUP(PrimaryOtherWasteMng,'13-MCF'!$B$9:$U$32,MATCH(AvgTemp,'13-MCF'!$B$9:$U$9,0),FALSE),0),"") ->  | F14: =IF(LEN(B14)>0,VLOOKUP(A14,'6-Biogas Production'!$O$58:$T$72,4,FALSE)*365*E14*ConversionFactor,"") -> 
A15: =IFERROR('3-Digester Inputs'!B27,"-") -> 0 | B15: =IFERROR(IF(VLOOKUP(A15,Waste_Item_Table,20,FALSE)="N",('3-Digester Inputs'!H27*100)/(100-'3-Digester Inputs'!H27),""),"") ->  | C15: =IFERROR(IF(VLOOKUP(A15,Waste_Item_Table,20,FALSE)="N",B15*'3-Digester Inputs'!BE27/1000*365,""),"") ->  | E15: =IF(B15<>"",IFERROR(VLOOKUP(PrimaryOtherWasteMng,'13-MCF'!$B$9:$U$32,MATCH(AvgTemp,'13-MCF'!$B$9:$U$9,0),FALSE),0),"") ->  | F15: =IF(LEN(B15)>0,VLOOKUP(A15,'6-Biogas Production'!$O$58:$T$72,4,FALSE)*365*E15*ConversionFactor,"") -> 
A16: =IFERROR('3-Digester Inputs'!B28,"-") -> 0 | B16: =IFERROR(IF(VLOOKUP(A16,Waste_Item_Table,20,FALSE)="N",('3-Digester Inputs'!H28*100)/(100-'3-Digester Inputs'!H28),""),"") ->  | C16: =IFERROR(IF(VLOOKUP(A16,Waste_Item_Table,20,FALSE)="N",B16*'3-Digester Inputs'!BE28/1000*365,""),"") ->  | E16: =IF(B16<>"",IFERROR(VLOOKUP(PrimaryOtherWasteMng,'13-MCF'!$B$9:$U$32,MATCH(AvgTemp,'13-MCF'!$B$9:$U$9,0),FALSE),0),"") ->  | F16: =IF(LEN(B16)>0,VLOOKUP(A16,'6-Biogas Production'!$O$58:$T$72,4,FALSE)*365*E16*ConversionFactor,"") -> 
A17: =IFERROR('3-Digester Inputs'!B29,"-") -> 0 | B17: =IFERROR(IF(VLOOKUP(A17,Waste_Item_Table,20,FALSE)="N",('3-Digester Inputs'!H29*100)/(100-'3-Digester Inputs'!H29),""),"") ->  | C17: =IFERROR(IF(VLOOKUP(A17,Waste_Item_Table,20,FALSE)="N",B17*'3-Digester Inputs'!BE29/1000*365,""),"") ->  | E17: =IF(B17<>"",IFERROR(VLOOKUP(PrimaryOtherWasteMng,'13-MCF'!$B$9:$U$32,MATCH(AvgTemp,'13-MCF'!$B$9:$U$9,0),FALSE),0),"") ->  | F17: =IF(LEN(B17)>0,VLOOKUP(A17,'6-Biogas Production'!$O$58:$T$72,4,FALSE)*365*E17*ConversionFactor,"") -> 
A18: =IFERROR('3-Digester Inputs'!B30,"-") -> 0 | B18: =IFERROR(IF(VLOOKUP(A18,Waste_Item_Table,20,FALSE)="N",('3-Digester Inputs'!H30*100)/(100-'3-Digester Inputs'!H30),""),"") ->  | C18: =IFERROR(IF(VLOOKUP(A18,Waste_Item_Table,20,FALSE)="N",B18*'3-Digester Inputs'!BE30/1000*365,""),"") ->  | E18: =IF(B18<>"",IFERROR(VLOOKUP(PrimaryOtherWasteMng,'13-MCF'!$B$9:$U$32,MATCH(AvgTemp,'13-MCF'!$B$9:$U$9,0),FALSE),0),"") ->  | F18: =IF(LEN(B18)>0,VLOOKUP(A18,'6-Biogas Production'!$O$58:$T$72,4,FALSE)*365*E18*ConversionFactor,"") -> 
A19: =IFERROR('3-Digester Inputs'!B31,"-") -> 0 | B19: =IFERROR(IF(VLOOKUP(A19,Waste_Item_Table,20,FALSE)="N",('3-Digester Inputs'!H31*100)/(100-'3-Digester Inputs'!H31),""),"") ->  | C19: =IFERROR(IF(VLOOKUP(A19,Waste_Item_Table,20,FALSE)="N",B19*'3-Digester Inputs'!BE31/1000*365,""),"") ->  | E19: =IF(B19<>"",IFERROR(VLOOKUP(PrimaryOtherWasteMng,'13-MCF'!$B$9:$U$32,MATCH(AvgTemp,'13-MCF'!$B$9:$U$9,0),FALSE),0),"") ->  | F19: =IF(LEN(B19)>0,VLOOKUP(A19,'6-Biogas Production'!$O$58:$T$72,4,FALSE)*365*E19*ConversionFactor,"") -> 
A20: Total | B20: na | C20: =SUM(C5:C19) -> 0 | D20: na | E20: na | F20: =SUM(F5:F19) -> 0

Sheet 19-Storage
A1: Temporary Storage Emissions from all Wastes
A3: Annual Manure Volatile Solids | F3: Annual Methane Emissions from Storage
A4: Waste Category | B4: Volatile Solids (% d.w.) | C4: Total Volatile Solids (Mg/day) | D4: Max. Methane Production (B0) m3 / Mg of VS | E4: Methane Conversion Factor | F4: kg CH4 per year
A5: =IFERROR('3-Digester Inputs'!B17,"-") -> 0 | B5: =IFERROR(('3-Digester Inputs'!H17*100)/(100-'3-Digester Inputs'!H17),"") ->  | C5: =IFERROR(B5*'3-Digester Inputs'!BE17/1000,"") ->  | D5: =IFERROR(VLOOKUP(A5,Waste_Item_Table,17),"") ->  | E5: =IF(B5<>"",IFERROR(VLOOKUP(StorageMng,'13-MCF'!$B$9:$U$32,MATCH(AvgTemp,'13-MCF'!$B$9:$U$9,0),FALSE),0),"") ->  | F5: =IF(LEN(B5)>0,VLOOKUP(A5,'6-Biogas Production'!$O$58:$T$72,4,FALSE)*E5*ConversionFactor*Average_Days_Waste_Stored,"") -> 
A6: =IFERROR('3-Digester Inputs'!B18,"-") -> 0 | B6: =IFERROR(('3-Digester Inputs'!H18*100)/(100-'3-Digester Inputs'!H18),"") ->  | C6: =IFERROR(B6*'3-Digester Inputs'!BE18/1000,"") ->  | E6: =IF(B6<>"",IFERROR(VLOOKUP(StorageMng,'13-MCF'!$B$9:$U$32,MATCH(AvgTemp,'13-MCF'!$B$9:$U$9,0),FALSE),0),"") ->  | F6: =IF(LEN(B6)>0,VLOOKUP(A6,'6-Biogas Production'!$O$58:$T$72,4,FALSE)*E6*ConversionFactor*Average_Days_Waste_Stored,"") -> 
A7: =IFERROR('3-Digester Inputs'!B19,"-") -> 0 | B7: =IFERROR(('3-Digester Inputs'!H19*100)/(100-'3-Digester Inputs'!H19),"") ->  | C7: =IFERROR(B7*'3-Digester Inputs'!BE19/1000,"") ->  | E7: =IF(B7<>"",IFERROR(VLOOKUP(StorageMng,'13-MCF'!$B$9:$U$32,MATCH(AvgTemp,'13-MCF'!$B$9:$U$9,0),FALSE),0),"") ->  | F7: =IF(LEN(B7)>0,VLOOKUP(A7,'6-Biogas Production'!$O$58:$T$72,4,FALSE)*E7*ConversionFactor*Average_Days_Waste_Stored,"") -> 
A8: =IFERROR('3-Digester Inputs'!B20,"-") -> 0 | B8: =IFERROR(('3-Digester Inputs'!H20*100)/(100-'3-Digester Inputs'!H20),"") ->  | C8: =IFERROR(B8*'3-Digester Inputs'!BE20/1000,"") ->  | E8: =IF(B8<>"",IFERROR(VLOOKUP(StorageMng,'13-MCF'!$B$9:$U$32,MATCH(AvgTemp,'13-MCF'!$B$9:$U$9,0),FALSE),0),"") ->  | F8: =IF(LEN(B8)>0,VLOOKUP(A8,'6-Biogas Production'!$O$58:$T$72,4,FALSE)*E8*ConversionFactor*Average_Days_Waste_Stored,"") -> 
A9: =IFERROR('3-Digester Inputs'!B21,"-") -> 0 | B9: =IFERROR(('3-Digester Inputs'!H21*100)/(100-'3-Digester Inputs'!H21),"") ->  | C9: =IFERROR(B9*'3-Digester Inputs'!BE21/1000,"") ->  | E9: =IF(B9<>"",IFERROR(VLOOKUP(StorageMng,'13-MCF'!$B$9:$U$32,MATCH(AvgTemp,'13-MCF'!$B$9:$U$9,0),FALSE),0),"") ->  | F9: =IF(LEN(B9)>0,VLOOKUP(A9,'6-Biogas Production'!$O$58:$T$72,4,FALSE)*E9*ConversionFactor*Average_Days_Waste_Stored,"") -> 
A10: =IFERROR('3-Digester Inputs'!B22,"-") -> 0 | B10: =IFERROR(('3-Digester Inputs'!H22*100)/(100-'3-Digester Inputs'!H22),"") ->  | C10: =IFERROR(B10*'3-Digester Inputs'!BE22/1000,"") ->  | E10: =IF(B10<>"",IFERROR(VLOOKUP(StorageMng,'13-MCF'!$B$9:$U$32,MATCH(AvgTemp,'13-MCF'!$B$9:$U$9,0),FALSE),0),"") ->  | F10: =IF(LEN(B10)>0,VLOOKUP(A10,'6-Biogas Production'!$O$58:$T$72,4,FALSE)*E10*ConversionFactor*Average_Days_Waste_Stored,"") -> 
A11: =IFERROR('3-Digester Inputs'!B23,"-") -> 0 | B11: =IFERROR(('3-Digester Inputs'!H23*100)/(100-'3-Digester Inputs'!H23),"") ->  | C11: =IFERROR(B11*'3-Digester Inputs'!BE23/1000,"") ->  | E11: =IF(B11<>"",IFERROR(VLOOKUP(StorageMng,'13-MCF'!$B$9:$U$32,MATCH(AvgTemp,'13-MCF'!$B$9:$U$9,0),FALSE),0),"") ->  | F11: =IF(LEN(B11)>0,VLOOKUP(A11,'6-Biogas Production'!$O$58:$T$72,4,FALSE)*E11*ConversionFactor*Average_Days_Waste_Stored,"") -> 
A12: =IFERROR('3-Digester Inputs'!B24,"-") -> 0 | B12: =IFERROR(('3-Digester Inputs'!H24*100)/(100-'3-Digester Inputs'!H24),"") ->  | C12: =IFERROR(B12*'3-Digester Inputs'!BE24/1000,"") ->  | E12: =IF(B12<>"",IFERROR(VLOOKUP(StorageMng,'13-MCF'!$B$9:$U$32,MATCH(AvgTemp,'13-MCF'!$B$9:$U$9,0),FALSE),0),"") ->  | F12: =IF(LEN(B12)>0,VLOOKUP(A12,'6-Biogas Production'!$O$58:$T$72,4,FALSE)*E12*ConversionFactor*Average_Days_Waste_Stored,"") -> 
A13: =IFERROR('3-Digester Inputs'!B25,"-") -> 0 | B13: =IFERROR(('3-Digester Inputs'!H25*100)/(100-'3-Digester Inputs'!H25),"") ->  | C13: =IFERROR(B13*'3-Digester Inputs'!BE25/1000,"") ->  | E13: =IF(B13<>"",IFERROR(VLOOKUP(StorageMng,'13-MCF'!$B$9:$U$32,MATCH(AvgTemp,'13-MCF'!$B$9:$U$9,0),FALSE),0),"") ->  | F13: =IF(LEN(B13)>0,VLOOKUP(A13,'6-Biogas Production'!$O$58:$T$72,4,FALSE)*E13*ConversionFactor*Average_Days_Waste_Stored,"") -> 
A14: =IFERROR('3-Digester Inputs'!B26,"-") -> 0 | B14: =IFERROR(('3-Digester Inputs'!H26*100)/(100-'3-Digester Inputs'!H26),"") ->  | C14: =IFERROR(B14*'3-Digester Inputs'!BE26/1000,"") ->  | E14: =IF(B14<>"",IFERROR(VLOOKUP(StorageMng,'13-MCF'!$B$9:$U$32,MATCH(AvgTemp,'13-MCF'!$B$9:$U$9,0),FALSE),0),"") ->  | F14: =IF(LEN(B14)>0,VLOOKUP(A14,'6-Biogas Production'!$O$58:$T$72,4,FALSE)*E14*ConversionFactor*Average_Days_Waste_Stored,"") -> 
A15: =IFERROR('3-Digester Inputs'!B27,"-") -> 0 | B15: =IFERROR(('3-Digester Inputs'!H27*100)/(100-'3-Digester Inputs'!H27),"") ->  | C15: =IFERROR(B15*'3-Digester Inputs'!BE27/1000,"") ->  | E15: =IF(B15<>"",IFERROR(VLOOKUP(StorageMng,'13-MCF'!$B$9:$U$32,MATCH(AvgTemp,'13-MCF'!$B$9:$U$9,0),FALSE),0),"") ->  | F15: =IF(LEN(B15)>0,VLOOKUP(A15,'6-Biogas Production'!$O$58:$T$72,4,FALSE)*E15*ConversionFactor*Average_Days_Waste_Stored,"") -> 
A16: =IFERROR('3-Digester Inputs'!B28,"-") -> 0 | B16: =IFERROR(('3-Digester Inputs'!H28*100)/(100-'3-Digester Inputs'!H28),"") ->  | C16: =IFERROR(B16*'3-Digester Inputs'!BE28/1000,"") ->  | E16: =IF(B16<>"",IFERROR(VLOOKUP(StorageMng,'13-MCF'!$B$9:$U$32,MATCH(AvgTemp,'13-MCF'!$B$9:$U$9,0),FALSE),0),"") ->  | F16: =IF(LEN(B16)>0,VLOOKUP(A16,'6-Biogas Production'!$O$58:$T$72,4,FALSE)*E16*ConversionFactor*Average_Days_Waste_Stored,"") -> 
A17: =IFERROR('3-Digester Inputs'!B29,"-") -> 0 | B17: =IFERROR(('3-Digester Inputs'!H29*100)/(100-'3-Digester Inputs'!H29),"") ->  | C17: =IFERROR(B17*'3-Digester Inputs'!BE29/1000,"") ->  | E17: =IF(B17<>"",IFERROR(VLOOKUP(StorageMng,'13-MCF'!$B$9:$U$32,MATCH(AvgTemp,'13-MCF'!$B$9:$U$9,0),FALSE),0),"") ->  | F17: =IF(LEN(B17)>0,VLOOKUP(A17,'6-Biogas Production'!$O$58:$T$72,4,FALSE)*E17*ConversionFactor*Average_Days_Waste_Stored,"") -> 
A18: =IFERROR('3-Digester Inputs'!B30,"-") -> 0 | B18: =IFERROR(('3-Digester Inputs'!H30*100)/(100-'3-Digester Inputs'!H30),"") ->  | C18: =IFERROR(B18*'3-Digester Inputs'!BE30/1000,"") ->  | E18: =IF(B18<>"",IFERROR(VLOOKUP(StorageMng,'13-MCF'!$B$9:$U$32,MATCH(AvgTemp,'13-MCF'!$B$9:$U$9,0),FALSE),0),"") ->  | F18: =IF(LEN(B18)>0,VLOOKUP(A18,'6-Biogas Production'!$O$58:$T$72,4,FALSE)*E18*ConversionFactor*Average_Days_Waste_Stored,"") -> 
A19: =IFERROR('3-Digester Inputs'!B31,"-") -> 0 | B19: =IFERROR(('3-Digester Inputs'!H31*100)/(100-'3-Digester Inputs'!H31),"") ->  | C19: =IFERROR(B19*'3-Digester Inputs'!BE31/1000,"") ->  | E19: =IF(B19<>"",IFERROR(VLOOKUP(StorageMng,'13-MCF'!$B$9:$U$32,MATCH(AvgTemp,'13-MCF'!$B$9:$U$9,0),FALSE),0),"") ->  | F19: =IF(LEN(B19)>0,VLOOKUP(A19,'6-Biogas Production'!$O$58:$T$72,4,FALSE)*E19*ConversionFactor*Average_Days_Waste_Stored,"") -> 
A20: Total | B20: na | C20: =SUM(C5:C19) -> 0 | D20: na | E20: na | F20: =SUM(F5:F19) -> 0

Sheet 20-Methane Gen. & Utilization
A1: Methane Generation and Utilization
A4: Methane Utilization
A5: Combustion Process | B5: Destruction Efficiency
A6: none | B6: 0
A7: Lean Burn internal combustion engine | B7: 0.936
A8: Rich Burn internal combustion engine | B8: 0.995
A9: Boiler or Furnace | B9: 0.98
A10: Other Assumptions
A11: Conversion Factor | B11: 0.68 | C11: kg of CH4 per m3 (density of methane, 1 atm, 60 deg F)
A12: Methane Utilization Related Emissions
A13: Methane Utilization Related Emissions | B13: =IFERROR((Methane_Utilization*365*ConversionFactor)*(1-(VLOOKUP('4-Emissions Inputs'!B23,'20-Methane Gen. & Utilization'!A6:B9,2,FALSE))),"") ->  | C13: kg of CH4 per year
A14: Daily Methane Utilization
A15: Daily Methane Utilization (methane utilization*utilization %) | B15: =Estimated_Avg_Daily_Methane_Production*Methane_Utilization_Percentage -> 0 | C15: m3 CH4 per day

Sheet 21-Electricity Use
A1: Electricity Use Emissions
A3: Electricity Use
A4: Emissions Factor s | B4: Value | C4: Unit
A5: Default Grid Emisisons Factor | B5: ='4-Emissions Inputs'!$B$43 ->  | C5: kgCO2/kWh
A6: User Grid Emissions Factor | B6: =IF('4-Emissions Inputs'!B42="No",'4-Emissions Inputs'!B44,0) -> 0 | C6: kgCO2/kWh
A7: CO2 Emissions Factor for Biogas | B7: 57.61 | C7: kg/MMBtu
A8: CH4 Emissions Factor for Biogas | B8: =1.06/1000 -> 0.00106 | C8: kg/MMBtu
A9: Other Assumptions | B9: Value | C9: Unit
A10: Grid Electricity Use Per Year | B10: =Estimated_Electricity_Use*365 -> 0 | C10: kWh
A11: Electricity Generated and Used Onsite Per Year | B11: =Electricity_from_Biogas*365 -> 0 | C11: kWh
A12: Grid Gross Loss | B12: =GridGrossLoss -> 0.051
A13: MMBtu to kWh | B13: 0.0034
A14: Electricity Related Carbon Emissions | B14: Value
A15: CO2 Emissions from Grid Electricity Use | B15: =IFERROR(IF($B$6>0,$B$6*($B$10*(1+$B$12)),$B$5*($B$10*(1+$B$12))),"-") -> - | C15: kgCO2
A16: CO2 Emissions from Generation Used Onsite | B16: =$B$11*$B$13*$B$7 -> 0 | C16: kgCO2
A17: CH4 Emissions from Generation Used Onsite | B17: =B11*$B$13*$B$8 -> 0 | C17: kgCH4
A21: Country | B21: CO2 Emissions from Electricity and Heat Production | C21: Unit | D21: Electricity Generation | E21: Unit | F21: Emissions Factor | G21: Unit | H21: Emissions Factor | I21: Unit
A22: Argentina | B22: 55174670 | C22: Tonnes CO2 | D22: 147.1928209 | E22: TWh | F22: =B22/D22 -> 374846.203 | G22: TCO2/TWh | H22: =$F22*$D$54/$D$55 -> 0.374846203 | I22: kg CO2/kWh
A23: Australia | B23: 194547378 | C23: Tonnes CO2 | D23: 259.367009 | E23: TWh | F23: 750085.2894 | G23: TCO2/TWh | H23: 0.7500852894 | I23: kg CO2/kWh
A24: Brazil | B24: 69486733 | C24: Tonnes CO2 | D24: 578.8983089 | E24: TWh | F24: 120032.7103 | G24: TCO2/TWh | H24: 0.1200327103 | I24: kg CO2/kWh
A25: Canada | B25: 101200691 | C25: Tonnes CO2 | D25: 664.6490372 | E25: TWh | F25: 152261.8485 | G25: TCO2/TWh | H25: 0.1522618485 | I25: kg CO2/kWh
A26: China | B26: 4386420463 | C26: Tonnes CO2 | D26: 6133.16 | E26: TWh | F26: 715197.4615 | G26: TCO2/TWh | H26: 0.7151974615 | I26: kg CO2/kWh
A27: Egypt | B27: 89300294 | C27: Tonnes CO2 | D27: 188.1910987 | E27: TWh | F27: 474519.2233 | G27: TCO2/TWh | H27: 0.4745192233 | I27: kg CO2/kWh
A28: Germany | B28: 321808485 | C28: Tonnes CO2 | D28: 649.1169854 | E28: TWh | F28: 495763.4636 | G28: TCO2/TWh | H28: 0.4957634636 | I28: kg CO2/kWh
A29: India | B29: 1072472691 | C29: Tonnes CO2 | D29: 1421.503757 | E29: TWh | F29: 754463.4936 | G29: TCO2/TWh | H29: 0.7544634936 | I29: kg CO2/kWh
A30: Indonesia | B30: 181266140 | C30: Tonnes CO2 | D30: 248.61229 | E30: TWh | F30: 729111.7426 | G30: TCO2/TWh | H30: 0.7291117426 | I30: kg CO2/kWh
A31: Iran | B31: 153602395 | C31: Tonnes CO2 | D31: 286.143 | E31: TWh | F31: 536802.9097 | G31: TCO2/TWh | H31: 0.5368029097 | I31: kg CO2/kWh
A32: Italy | B32: 108225192 | C32: Tonnes CO2 | D32: 289.7682 | E32: TWh | F32: 373488.8507 | G32: TCO2/TWh | H32: 0.3734888507 | I32: kg CO2/kWh
A33: Japan | B33: 572800439 | C33: Tonnes CO2 | D33: 1002.336018 | E33: TWh | F33: 571465.4854 | G33: TCO2/TWh | H33: 0.5714654854 | I33: kg CO2/kWh
A34: Kazakhstan | B34: 91587684 | C34: Tonnes CO2 | D34: 94.642384 | E34: TWh | F34: 967723.7632 | G34: TCO2/TWh | H34: 0.9677237632 | I34: kg CO2/kWh
A35: Malaysia | B35: 102599164 | C35: Tonnes CO2 | D35: 159.2520731 | E35: TWh | F35: 644256.3791 | G35: TCO2/TWh | H35: 0.6442563791 | I35: kg CO2/kWh
A36: Mexico | B36: 148755123 | C36: Tonnes CO2 | D36: 320.3447225 | E36: TWh | F36: 464359.5245 | G36: TCO2/TWh | H36: 0.4643595245 | I36: kg CO2/kWh
A37: Netherlands | B37: 60749994 | C37: Tonnes CO2 | D37: 115.170275 | E37: TWh | F37: 527479.8033 | G37: TCO2/TWh | H37: 0.5274798033 | I37: kg CO2/kWh
A38: Poland | B38: 150042386 | C38: Tonnes CO2 | D38: 166.634 | E38: TWh | F38: 900430.8004 | G38: TCO2/TWh | H38: 0.9004308004 | I38: kg CO2/kWh
A39: Russian Federation | B39: 776785371 | C39: Tonnes CO2 | D39: 1090.970224 | E39: TWh | F39: 712013.3565 | G39: TCO2/TWh | H39: 0.7120133565 | I39: kg CO2/kWh
A40: Saudi Arabia | B40: 246055506 | C40: Tonnes CO2 | D40: 370.4281985 | E40: TWh | F40: 664246.1535 | G40: TCO2/TWh | H40: 0.6642461535 | I40: kg CO2/kWh
A41: South Africa | B41: 235781046 | C41: Tonnes CO2 | D41: 252.747 | E41: TWh | F41: 932873.767 | G41: TCO2/TWh | H41: 0.932873767 | I41: kg CO2/kWh
A42: South Korea | B42: 310232263 | C42: Tonnes CO2 | D42: 560.98459 | E42: TWh | F42: 553013.8769 | G42: TCO2/TWh | H42: 0.5530138769 | I42: kg CO2/kWh
A43: Spain | B43: 66684037 | C43: Tonnes CO2 | D43: 274.630073 | E43: TWh | F43: 242814.0381 | G43: TCO2/TWh | H43: 0.2428140381 | I43: kg CO2/kWh
A44: Taiwan | B44: 153110680 | C44: Tonnes CO2 | D44: 264.1141593 | E44: TWh | F44: 579714.0162 | G44: TCO2/TWh | H44: 0.5797140162 | I44: kg CO2/kWh
A45: Thailand | B45: 91296297 | C45: Tonnes CO2 | D45: 179.7414752 | E45: TWh | F45: 507931.1657 | G45: TCO2/TWh | H45: 0.5079311657 | I45: kg CO2/kWh
A46: Turkey | B46: 130021325 | C46: Tonnes CO2 | D46: 274.4077622 | E46: TWh | F46: 473825.2444 | G46: TCO2/TWh | H46: 0.4738252444 | I46: kg CO2/kWh
A47: Ukraine | B47: 101444091 | C47: Tonnes CO2 | D47: 164.573 | E47: TWh | F47: 616407.8616 | G47: TCO2/TWh | H47: 0.6164078616 | I47: kg CO2/kWh
A48: United Arab Emirates | B48: 85635964 | C48: Tonnes CO2 | D48: 129.5962504 | E48: TWh | F48: 660790.4451 | G48: TCO2/TWh | H48: 0.6607904451 | I48: kg CO2/kWh
A49: United Kingdom | B49: 99373423 | C49: Tonnes CO2 | D49: 339.3975052 | E49: TWh | F49: 292793.6166 | G49: TCO2/TWh | H49: 0.2927936166 | I49: kg CO2/kWh
A50: United States | B50: 1893664413 | C50: Tonnes CO2 | D50: 4347.910814 | E50: TWh | F50: 435534.3276 | G50: TCO2/TWh | H50: 0.4355343276 | I50: kg CO2/kWh
A51: Vietnam | B51: 73935412 | C51: Tonnes CO2 | D51: 174.56382 | E51: TWh | F51: 423543.7331 | G51: TCO2/TWh | H51: 0.4235437331 | I51: kg CO2/kWh
A53: Emissions Data Source: OECD/IEA, Paris, 2018 | C53: Conversions
A54: Electricity Generation Data Source: BP Statistical Review of World Energy, 2018 | C54: TWh to kWh | D54: =1/1000000000 -> 1e-09
C55: Tonnes to kg | D55: =1/1000 -> 0.001

Sheet 22-Flaring & Leakage
A1: Flaring & Leakage Emissions
A3: Flaring
A4: Combustion Process (Ceff) | B4: Value | C4: Units
A5: Open Flare Continuous | B5: 0.96
A6: Open Flare Non-continuous | B6: 0.5
A7: Enclosed Flare | B7: 0.995
A8: User Value | B8: =IF('4-Emissions Inputs'!B29="No",'4-Emissions Inputs'!$B$30,"") -> 
A9: Flare Analysis Value | B9: =IF(Use_Defaults_Flare="Yes",VLOOKUP(FlareType,'22-Flaring & Leakage'!$A$5:$B$7,2,FALSE),$B$8) -> 
A10: Other Assumptions | B10: Value | C10: Units
A11: Conversion Factor | B11: 0.68 | C11: kg of CH4 per m3 (density of methane, 1 atm, 60 deg F)
A12: Flare Related Methane Emissions | B12: Value | C12: Units
A13: Flare Related Methane Emissions | B13: =IFERROR(ConversionFactor*((1-AnalysisCombustionEffValue)*Measured_Methane_sent_to_Flare)*365,0) -> 0 | C13: kg CH4 per year
A15: Leakage | B15: Value | C15: Units
A16: Project Methane Leakage | B16: =Estimated_Avg_Daily_Methane_Production*ConversionFactor*Assumed_Fraction_of_Methane_Leakage*365 -> 0 | C16: kg CH4 per year
A18: Average Methane Emissions (average of the high and low calibration values) | B18: Value | C18: Units
A19: Average daily methane emissions | B19: =Estimated_Avg_Daily_Methane_Production*Methane_Flare_Percentage -> 0 | C19: m3 CH4 per day

Sheet 23-Look up values (hidden)
A1: Lookup Values
A3: Input Units | B3: Conversion | F3: Feedstock List | H3: General | J3: Specific
A4: kg/day | B4: 1 | F4: General | H4: Lactating Cow | J4: Lactating Cow
A5: lb/day | B5: 0.453592 | F5: Specific | H5: Calf | J5: Calf
A6: metric tons/day | B6: 1000 | H6: Swine - Gestating (190 kg.) | J6: Heifer
A7: short tons/day | B7: 907.185 | H7: Swine - Lactating (190 kg.) | J7: Dry Dairy Cow
A8: liters/day | B8: 1 | H8: Adolescents Pigs | J8: Cattle with Primarily Grain/Grass Diet
A9: gallons/day | B9: 3.785 | H9: Poultry Chicken | J9: Calf In Shelter (200 -350 kg.)
H10: Broiler Chicken | J10: Cattle With Corn Supplement to Diet
H11: Mixed Food Waste With Non‐Veg. | J11: Cattle With Other Diet Supplements
A12: Biogas Output Units | B12: Conversion | H12: Composite Wastewater | J12: Swine - Gestating (190 kg.)
A13: m3/year | B13: 1 | J13: Swine - Lactating (190 kg.)
A14: scf/year | B14: 35.31466671 | J14: Boar (200 kg.)
A15: m3/day | B15: 1 | J15: Piglets
A16: scf/day | B16: 35.31466671 | J16: Adolescents Pigs
A17: Digestate Output Units | B17: Conversion | J17: Poultry Chicken
A18: kg/year | B18: 1 | J18: Broiler Chicken
A19: lb/year | B19: 0.453592 | J19: Turkey Male
A20: metric tons/year | B20: 1000 | J20: Turkey Female
A21: short tons/year | B21: 907.185 | J21: Duck
J22: Lamb/Sheep/Goat
A23: Methane Utilization | J23: Veal
A24: none | J24: Horse
A25: Lean Burn internal combustion engine | J25: Alfalfa
A26: Rich Burn internal combustion engine | J26: Bananas
A27: Boiler or Furnace | J27: Broccoli
J28: Cabbage
A29: Flare Type | J29: Chinese Cabbage (Pak-Choi)
A30: Open Flare Continuous | J30: Carrot Root
A31: Open Flare Non-Continuous | J31: Cauliflower
A32: Enclosed Flare | J32: Sweet Corn
J33: Kale
A34: Average Temperature | J34: Lettuce
A35: Temperature conversion | B35: =ROUND(IF('4-Emissions Inputs'!C14="Fahrenheit",('4-Emissions Inputs'!B14-32)/1.8,'4-Emissions Inputs'!B14),0) -> 0 | J35: Onions
J36: Orange Flesh
J37: Orange Pulp
J38: Potato, Top, Mature
J39: Potato Peel
J40: Pumpkins
J41: Spinach
J42: Tomatoes
J43: Tomatoes (Solid Waste)
J44: Maize (Early Harvest Or Milk Ripeness)
J45: Maize (Middle Harvest Or Wax Ripeness)
J46: Rice Straw
J47: Rice Husk
J48: Rice Residue (Dried)
J49: Wheat Straw
J50: Maize Cob
J51: Coffee Grounds
J52: Tea Leaves
J53: Dairy Wastewater
J54: Whey - Sweet Cheese
J55: Whey - Acid Cheese
J56: Water Hyacinths
J57: Leaves
J58: Grass
J59: Branches
J60: Wood
J61: Textiles
J62: Newsprint
J63: Corrugated Cardboard
J64: Office Paper
J65: Magazines
J66: Junk Mail & Paper
J67: Folding Cartons
J68: Paper Bags And Sacks
J69: Paper Non‐Recyclable
J70: Human Waste
J71: Graywater
J72: Septage Tank Wastewater
J73: Composite Wastewater
J74: Raw Sewage Sludge
J75: Diverted Municipal Waste (Food Only)
J76: Diverted Municipal Waste (All Organics)
J77: Mixed Vegetable Waste Only
J78: Mixed Food Waste With Non‐Veg.
J79: Bread Feedstocks
J80: Brewery Grain Feedstocks
J81: Mixed Cafeteria Or Canteen Waste
J82: Cooked Meat
J83: Boiled Rice
J84: Slaughterhouse Waste (Raw waste)
J85: Slaughterhouse Waste (Animal Hair)
J86: Slaughterhouse Waste (Blood)
J87: Slaughterhouse Waste (Carcass/Paunch)
J88: Pacific Saury Fish Waste Silage
J89: Cuttle Fish Waste Silage
J90: Mackerel Fish Waste Silage
J91: Agave (Agave sisalana)
J92: Sugarcane Pretreated (Bagasse)
J93: Sugarcane Untreated (Bagasse)
J94: Sugar Beet Tops
J95: Rapeseed Meal
J96: Sunflower Meal
J97: Palms (Empty Fruit)
J98: Palms (Pressed Fibers)
J99: Palms (Decanter Cake)
J100: Pressmud
J101: De-oiled Cake
J102: Added Water
